Organisation Name,Organisation Code,Effective Date,Directorate  Where Expenditure Incurred,Supplier Name,Payment Date,Transaction Number,Gross Amount,Purpose of Spend,Merchant Category,Card Transaction
WALSALL COUNCIL,HTTP://OPENDATACOMMUNITIES.ORG/ID/METROPOLITAN-DISTRICT-COUNCIL/WALSALL,31/03/2020,RESOURCES & TRANSFORMATION,CHICKEN JOES LTD,01/01/2020,H59620200103APPBMJFJE-1,47.34,CA OAKWOOD SPECIAL SCHOOL-FOOD & DRINK SUPPLIES,CATERERS,GPC
WALSALL COUNCIL,HTTP://OPENDATACOMMUNITIES.ORG/ID/METROPOLITAN-DISTRICT-COUNCIL/WALSALL,31/03/2020,RESOURCES & TRANSFORMATION,CHICKEN JOES LTD,01/01/2020,H59620200103ATCNMKJYH-1,26.48,CA CASTLEFORT JMI SCHOOL-FOOD & DRINK SUPPLIES,CATERERS,GPC
WALSALL COUNCIL,HTTP://OPENDATACOMMUNITIES.ORG/ID/METROPOLITAN-DISTRICT-COUNCIL/WALSALL,31/03/2020,RESOURCES & TRANSFORMATION,CHICKEN JOES LTD,01/01/2020,H59620200103COYSFJTOU-1,36.48,CA LEIGHSWOOD PRIMARY SCHOOL-FOOD & DRINK SUPPLIES,CATERERS,GPC
WALSALL COUNCIL,HTTP://OPENDATACOMMUNITIES.ORG/ID/METROPOLITAN-DISTRICT-COUNCIL/WALSALL,31/03/2020,RESOURCES & TRANSFORMATION,CHICKEN JOES LTD,01/01/2020,H59620200103EALCWYDWU-1,53.36,CA RUSHALL JMI SCHOOL-FOOD & DRINK SUPPLIES,CATERERS,GPC
WALSALL COUNCIL,HTTP://OPENDATACOMMUNITIES.ORG/ID/METROPOLITAN-DISTRICT-COUNCIL/WALSALL,31/03/2020,RESOURCES & TRANSFORMATION,CHICKEN JOES LTD,01/01/2020,H59620200103FPYZPNPWA-1,215.37,CA ST JOHNS C.E. PRIMARY SCHOO-FOOD & DRINK SUPPLIES,CATERERS,GPC
WALSALL COUNCIL,HTTP://OPENDATACOMMUNITIES.ORG/ID/METROPOLITAN-DISTRICT-COUNCIL/WALSALL,31/03/2020,ECONOMY & ENVIRONMENT,WETRANSFER,01/01/2020,H59620200103FXLMZIABT-1,8.55,NAG - TEMPORARY EXHIBITIONS-POSTAGES AND COURIER SERVICES,COMPUTER SOFTWARE STORES,GPC
WALSALL COUNCIL,HTTP://OPENDATACOMMUNITIES.ORG/ID/METROPOLITAN-DISTRICT-COUNCIL/WALSALL,31/03/2020,RESOURCES & TRANSFORMATION,CHICKEN JOES LTD,01/01/2020,H59620200103GMTEPOUOU-1,78.55,CA BEACON PRIMARY SCHOOL-FOOD & DRINK SUPPLIES,CATERERS,GPC
WALSALL COUNCIL,HTTP://OPENDATACOMMUNITIES.ORG/ID/METROPOLITAN-DISTRICT-COUNCIL/WALSALL,31/03/2020,RESOURCES & TRANSFORMATION,CHICKEN JOES LTD,01/01/2020,H59620200103IQQMIRXPY-1,89.70,CA LINDENS PRIMARY SCHOOL-FOOD & DRINK SUPPLIES,CATERERS,GPC
WALSALL COUNCIL,HTTP://OPENDATACOMMUNITIES.ORG/ID/METROPOLITAN-DISTRICT-COUNCIL/WALSALL,31/03/2020,SCHOOLS,123 REG LTD,01/01/2020,H59620200103JKXMILGBO-1,11.99,ADMINISTRATIVE SUPPLIES-GENERAL MATERIALS,DIRECT MARKETING CONTINUITY SUBSCRIPTION MERCHANTS,GPC
WALSALL COUNCIL,HTTP://OPENDATACOMMUNITIES.ORG/ID/METROPOLITAN-DISTRICT-COUNCIL/WALSALL,31/03/2020,RESOURCES & TRANSFORMATION,CHICKEN JOES LTD,01/01/2020,H59620200103LUJPSBINQ-1,40.05,CA ELMWOOD SPECIAL SCHOOL-FOOD & DRINK SUPPLIES,CATERERS,GPC
WALSALL COUNCIL,HTTP://OPENDATACOMMUNITIES.ORG/ID/METROPOLITAN-DISTRICT-COUNCIL/WALSALL,31/03/2020,RESOURCES & TRANSFORMATION,INDEED TEL+35312545907,01/01/2020,H59620200103QBYXCIVDJ-1,136.20,SCHOOL HR TRANSACTIONAL TEAM-ADVERTISING STAFF VACANCIES,OTHER BUSINESS SERVICES,GPC
WALSALL COUNCIL,HTTP://OPENDATACOMMUNITIES.ORG/ID/METROPOLITAN-DISTRICT-COUNCIL/WALSALL,31/03/2020,RESOURCES & TRANSFORMATION,CHICKEN JOES LTD,01/01/2020,H59620200103TCWZLSPMH-1,60.80,CA ST MICHAELS C.E. PRIMARY SC-FOOD & DRINK SUPPLIES,CATERERS,GPC
WALSALL COUNCIL,HTTP://OPENDATACOMMUNITIES.ORG/ID/METROPOLITAN-DISTRICT-COUNCIL/WALSALL,31/03/2020,RESOURCES & TRANSFORMATION,CHICKEN JOES LTD,01/01/2020,H59620200103TIDUSCVWB-1,103.62,CA RADLEYS PRIMARY SCHOOL-FOOD & DRINK SUPPLIES,CATERERS,GPC
WALSALL COUNCIL,HTTP://OPENDATACOMMUNITIES.ORG/ID/METROPOLITAN-DISTRICT-COUNCIL/WALSALL,31/03/2020,CHILDRENS SERVICES,AMZNMKTPLACE,01/01/2020,H59620200103UEBGAOJOZ-1,12.45,EARLY HELP HUB-GENERAL MATERIALS,MISCELLANEOUS AND SPECIALTY RETAIL STORES,GPC
WALSALL COUNCIL,HTTP://OPENDATACOMMUNITIES.ORG/ID/METROPOLITAN-DISTRICT-COUNCIL/WALSALL,31/03/2020,RESOURCES & TRANSFORMATION,CHICKEN JOES LTD,01/01/2020,H59620200103UMSYAYOMS-1,41.48,CA MEADOW VIEW JMI PRIMARY SCH-FOOD & DRINK SUPPLIES,CATERERS,GPC
WALSALL COUNCIL,HTTP://OPENDATACOMMUNITIES.ORG/ID/METROPOLITAN-DISTRICT-COUNCIL/WALSALL,31/03/2020,RESOURCES & TRANSFORMATION,CHICKEN JOES LTD,01/01/2020,H59620200103URUDAXQGQ-1,82.21,CA MOORCROFT WOOD-FOOD & DRINK SUPPLIES,CATERERS,GPC
WALSALL COUNCIL,HTTP://OPENDATACOMMUNITIES.ORG/ID/METROPOLITAN-DISTRICT-COUNCIL/WALSALL,31/03/2020,RESOURCES & TRANSFORMATION,CHICKEN JOES LTD,01/01/2020,H59620200103VPUDNCORY-1,45.73,CA COOPER JORDAN CE PRIMARY SC-FOOD & DRINK SUPPLIES,CATERERS,GPC
WALSALL COUNCIL,HTTP://OPENDATACOMMUNITIES.ORG/ID/METROPOLITAN-DISTRICT-COUNCIL/WALSALL,31/03/2020,ECONOMY & ENVIRONMENT,FOREIGN EXCHANGE FEE,02/01/2020,H59620200103TMUTCJJWO-1,0.24,NAG - TEMPORARY EXHIBITIONS-OTHER EXPENSES-EXPENSES,,GPC
WALSALL COUNCIL,HTTP://OPENDATACOMMUNITIES.ORG/ID/METROPOLITAN-DISTRICT-COUNCIL/WALSALL,31/03/2020,RESOURCES & TRANSFORMATION,TRAVELODGE GB0000,02/01/2020,H59620200104CBYEODZGS-1,36.00,BED & BREAKFAST PAYMENTS-HOTEL ACCOMMODATION-EMPLOYEES,TRAVELODGE,GPC
WALSALL COUNCIL,HTTP://OPENDATACOMMUNITIES.ORG/ID/METROPOLITAN-DISTRICT-COUNCIL/WALSALL,31/03/2020,ECONOMY & ENVIRONMENT,FIRSTAID4LESS.CO.UK,02/01/2020,H59620200104CEDBTVHOL-1,44.28,WALSALL GALA CENTRE-GENERAL MATERIALS,MISCELLANEOUS AND SPECIALTY RETAIL STORES,GPC
WALSALL COUNCIL,HTTP://OPENDATACOMMUNITIES.ORG/ID/METROPOLITAN-DISTRICT-COUNCIL/WALSALL,31/03/2020,CHILDRENS SERVICES,SERVICE SEATS,02/01/2020,H59620200104DXQCXGFQH-1,12.97,SUPPORT UNDER SECT 23 OF THE C-SUPPORT UNDER SECTION 23 OF TH,MISCELLANEOUS AND SPECIALTY RETAIL STORES,GPC
WALSALL COUNCIL,HTTP://OPENDATACOMMUNITIES.ORG/ID/METROPOLITAN-DISTRICT-COUNCIL/WALSALL,31/03/2020,CHILDRENS SERVICES,TRAVEL WEST MIDLAN,02/01/2020,H59620200104DXQHFLIYG-1,90.85,SUPPORT UNDER SECT 23 OF THE C-SUPPORT UNDER SECTION 23 OF TH,BUS LINES,GPC
WALSALL COUNCIL,HTTP://OPENDATACOMMUNITIES.ORG/ID/METROPOLITAN-DISTRICT-COUNCIL/WALSALL,31/03/2020,ECONOMY & ENVIRONMENT,HALFORDS 0727,02/01/2020,H59620200104FEFJLOMWA-1,83.24,OAK PARK-GENERAL MATERIALS,BICYCLE SHOPS-SALES AND SERVICE,GPC
WALSALL COUNCIL,HTTP://OPENDATACOMMUNITIES.ORG/ID/METROPOLITAN-DISTRICT-COUNCIL/WALSALL,31/03/2020,CHILDRENS SERVICES,AMZNMKTPLACE,02/01/2020,H59620200104GKLFBSWMG-1,6.20,SAFEGUARDING & FAMILY SUPPORT-STATIONERY & GENERAL SUPPLIES,MISCELLANEOUS AND SPECIALTY RETAIL STORES,GPC
WALSALL COUNCIL,HTTP://OPENDATACOMMUNITIES.ORG/ID/METROPOLITAN-DISTRICT-COUNCIL/WALSALL,31/03/2020,CHILDRENS SERVICES,WALSALL STN T/O,02/01/2020,H59620200104GUWJDHMVN-1,98.60,LOOKED AFTER CHILDRENS SOCIAL -OFFICER/STAFF-PUBLIC TRANSPORT,PASSENGER RAILWAYS,GPC
WALSALL COUNCIL,HTTP://OPENDATACOMMUNITIES.ORG/ID/METROPOLITAN-DISTRICT-COUNCIL/WALSALL,31/03/2020,RESOURCES & TRANSFORMATION,AMZNMKTPLACE,02/01/2020,H59620200104IONEYMGGK-1,18.75,CHARGING & PAYMENTS-STATIONERY & GENERAL SUPPLIES,MISCELLANEOUS AND SPECIALTY RETAIL STORES,GPC
WALSALL COUNCIL,HTTP://OPENDATACOMMUNITIES.ORG/ID/METROPOLITAN-DISTRICT-COUNCIL/WALSALL,31/03/2020,CHILDRENS SERVICES,ALDI 42 772,02/01/2020,H59620200104JGVMOUUJO-1,2.19,REDRUTH ROAD-FOOD & DRINK SUPPLIES,GROCERY STORES AND SUPERMARKETS,GPC
WALSALL COUNCIL,HTTP://OPENDATACOMMUNITIES.ORG/ID/METROPOLITAN-DISTRICT-COUNCIL/WALSALL,31/03/2020,CHILDRENS SERVICES,ALDI 42 772,02/01/2020,H59620200104JGVMOUUJO-2,62.87,REDRUTH ROAD-FOOD & DRINK SUPPLIES,GROCERY STORES AND SUPERMARKETS,GPC
WALSALL COUNCIL,HTTP://OPENDATACOMMUNITIES.ORG/ID/METROPOLITAN-DISTRICT-COUNCIL/WALSALL,31/03/2020,ECONOMY & ENVIRONMENT,PARK PLACE SHOE REPAIRS,02/01/2020,H59620200104KUELBXVKO-1,3.50,LEATHER MUSEUM-GENERAL MATERIALS,"HAT CLEANING SHOPS, SHOE REPAIR SHOPS, SHOE SHINE ",GPC
WALSALL COUNCIL,HTTP://OPENDATACOMMUNITIES.ORG/ID/METROPOLITAN-DISTRICT-COUNCIL/WALSALL,31/03/2020,CHILDRENS SERVICES,WEST MIDLANDS TRAV,02/01/2020,H59620200104KWSWGQPWH-1,59.00,SCHOOL IMPROVEMENT - VIRTUAL S-OFFICER/STAFF-PUBLIC TRANSPORT,BUS LINES,GPC
WALSALL COUNCIL,HTTP://OPENDATACOMMUNITIES.ORG/ID/METROPOLITAN-DISTRICT-COUNCIL/WALSALL,31/03/2020,CHILDRENS SERVICES,ARGOS LTD,02/01/2020,H59620200104LHCJXUIAM-1,134.99,SUPPORT UNDER SECT 23 OF THE C-SUPPORT UNDER SECTION 23 OF TH,DISCOUNT STORES,GPC
WALSALL COUNCIL,HTTP://OPENDATACOMMUNITIES.ORG/ID/METROPOLITAN-DISTRICT-COUNCIL/WALSALL,31/03/2020,RESOURCES & TRANSFORMATION,TESCO STORES 6161,02/01/2020,H59620200104MEGJIUYBC-1,25.00,WALSALL CRISIS SUPPORT SCHEME-FOOD & DRINK SUPPLIES,GROCERY STORES AND SUPERMARKETS,GPC
WALSALL COUNCIL,HTTP://OPENDATACOMMUNITIES.ORG/ID/METROPOLITAN-DISTRICT-COUNCIL/WALSALL,31/03/2020,RESOURCES & TRANSFORMATION,REGISTRATION SERVICES,02/01/2020,H59620200104MTWRWKGCC-1,11.00,HOMELESSNESS PREVENTION STRATE-MISC FEES AND EXPENSES,OTHER RECREATION SERVICES,GPC
WALSALL COUNCIL,HTTP://OPENDATACOMMUNITIES.ORG/ID/METROPOLITAN-DISTRICT-COUNCIL/WALSALL,31/03/2020,RESOURCES & TRANSFORMATION,WWW.THETOYSHOP.COM,02/01/2020,H59620200104NUXRQPNLJ-1,-274.10,ADVICE & GUIDANCE SERVICE-GENERAL MATERIALS,"GAME, TOY, AND HOBBY SHOPS",GPC
WALSALL COUNCIL,HTTP://OPENDATACOMMUNITIES.ORG/ID/METROPOLITAN-DISTRICT-COUNCIL/WALSALL,31/03/2020,CHILDRENS SERVICES,AMZ*AMATT,02/01/2020,H59620200104RXBWMOROU-1,-10.47,LOCALITY FAMILY SUPPORT-NORTH-FURNITURE & EQUIPMENT,MISCELLANEOUS AND SPECIALTY RETAIL STORES,GPC
WALSALL COUNCIL,HTTP://OPENDATACOMMUNITIES.ORG/ID/METROPOLITAN-DISTRICT-COUNCIL/WALSALL,31/03/2020,CHILDRENS SERVICES,WILKO RETAIL LIMITED,02/01/2020,H59620200104RXJEIWOUA-1,17.00,LOOKED AFTER CHILDRENS SOCIAL -SUPPORT UNDER SECTION 23 OF TH,MISCELLANEOUS GENERAL MERCHANDISE,GPC
WALSALL COUNCIL,HTTP://OPENDATACOMMUNITIES.ORG/ID/METROPOLITAN-DISTRICT-COUNCIL/WALSALL,31/03/2020,CHILDRENS SERVICES,ICELAND,02/01/2020,H59620200104SMWOOFQNH-1,23.18,GENERAL-GENERAL MATERIALS,GROCERY STORES AND SUPERMARKETS,GPC
WALSALL COUNCIL,HTTP://OPENDATACOMMUNITIES.ORG/ID/METROPOLITAN-DISTRICT-COUNCIL/WALSALL,31/03/2020,RESOURCES & TRANSFORMATION,OFFICIALRECORDCOUK,02/01/2020,H59620200104SOHUZWKOC-1,19.98,HOMELESSNESS PREVENTION STRATE-MISC FEES AND EXPENSES,"CONSULTING, MANAGEMENT, AND PR SERVICES",GPC
WALSALL COUNCIL,HTTP://OPENDATACOMMUNITIES.ORG/ID/METROPOLITAN-DISTRICT-COUNCIL/WALSALL,31/03/2020,ECONOMY & ENVIRONMENT,THE DM COLLECTION,02/01/2020,H59620200104SXSARBBDO-1,136.80,NAG - NEW ART GALLERY SHOP STO-GENERAL MATERIALS,"COMMERCIAL ART, GRAPHICS, PHOTOGRAPHY ",GPC
WALSALL COUNCIL,HTTP://OPENDATACOMMUNITIES.ORG/ID/METROPOLITAN-DISTRICT-COUNCIL/WALSALL,31/03/2020,CHILDRENS SERVICES,TESCO STORES 6161,02/01/2020,H59620200104TOYBFYULN-1,23.20,VIRTUAL SCHOOL - CENTRAL PUPIL-FOOD & DRINK SUPPLIES,GROCERY STORES AND SUPERMARKETS,GPC
WALSALL COUNCIL,HTTP://OPENDATACOMMUNITIES.ORG/ID/METROPOLITAN-DISTRICT-COUNCIL/WALSALL,31/03/2020,CHILDRENS SERVICES,AMZNMKTPLACE,02/01/2020,H59620200104UCYUHWHHW-1,8.48,SAFEGUARDING & FAMILY SUPPORT-STATIONERY & GENERAL SUPPLIES,MISCELLANEOUS AND SPECIALTY RETAIL STORES,GPC
WALSALL COUNCIL,HTTP://OPENDATACOMMUNITIES.ORG/ID/METROPOLITAN-DISTRICT-COUNCIL/WALSALL,31/03/2020,RESOURCES & TRANSFORMATION,TWITTER ONLINE ADS,02/01/2020,H59620200104WJYJYNYUC-1,40.00,SCHOOL HR TRANSACTIONAL TEAM-ADVERTISING STAFF VACANCIES,ADVERTISING SERVICES,GPC
WALSALL COUNCIL,HTTP://OPENDATACOMMUNITIES.ORG/ID/METROPOLITAN-DISTRICT-COUNCIL/WALSALL,31/03/2020,CHILDRENS SERVICES,AMZNMKTPLACE,02/01/2020,H59620200104XMWDSOICS-1,17.45,EARLY HELP HUB-GENERAL MATERIALS,MISCELLANEOUS AND SPECIALTY RETAIL STORES,GPC
WALSALL COUNCIL,HTTP://OPENDATACOMMUNITIES.ORG/ID/METROPOLITAN-DISTRICT-COUNCIL/WALSALL,31/03/2020,RESOURCES & TRANSFORMATION,CO-OPERATIVE FOOD,02/01/2020,H59620200104YHLFOLXHJ-1,20.00,WALSALL CRISIS SUPPORT SCHEME-CRISIS SUPPORT PAYMENTS,GROCERY STORES AND SUPERMARKETS,GPC
WALSALL COUNCIL,HTTP://OPENDATACOMMUNITIES.ORG/ID/METROPOLITAN-DISTRICT-COUNCIL/WALSALL,31/03/2020,RESOURCES & TRANSFORMATION,TESCO STORES 6161,02/01/2020,H59620200104ZBOUILFCG-1,14.99,YOUNG PERSONS HOMELESS SERVICE-CRISIS SUPPORT PAYMENTS,GROCERY STORES AND SUPERMARKETS,GPC
WALSALL COUNCIL,HTTP://OPENDATACOMMUNITIES.ORG/ID/METROPOLITAN-DISTRICT-COUNCIL/WALSALL,31/03/2020,CHILDRENS SERVICES,ARGOS WALSALL CROW,02/01/2020,H59620200107YITSOOOWL-1,148.15,LOOKED AFTER CHILDRENS SOCIAL -MATERIALS TO STORES,DISCOUNT STORES,GPC
WALSALL COUNCIL,HTTP://OPENDATACOMMUNITIES.ORG/ID/METROPOLITAN-DISTRICT-COUNCIL/WALSALL,31/03/2020,CHILDRENS SERVICES,ARGOS WALSALL CROW,02/01/2020,H59620200107YVFETOQHQ-1,-79.73,LOOKED AFTER CHILDRENS SOCIAL -SUPPORT UNDER SECTION 23 OF TH,DISCOUNT STORES,GPC
WALSALL COUNCIL,HTTP://OPENDATACOMMUNITIES.ORG/ID/METROPOLITAN-DISTRICT-COUNCIL/WALSALL,31/03/2020,CHILDRENS SERVICES,AMZNMKTPLACE,03/01/2020,H59620200107BIMMIOCJN-1,123.06,EARLY HELP HUB-GENERAL MATERIALS,MISCELLANEOUS AND SPECIALTY RETAIL STORES,GPC
WALSALL COUNCIL,HTTP://OPENDATACOMMUNITIES.ORG/ID/METROPOLITAN-DISTRICT-COUNCIL/WALSALL,31/03/2020,CHILDRENS SERVICES,TESCO STORES 6161,03/01/2020,H59620200107BQKTQRIZK-1,3.62,57 LICHFIELD ROAD-FOOD & DRINK SUPPLIES,GROCERY STORES AND SUPERMARKETS,GPC
WALSALL COUNCIL,HTTP://OPENDATACOMMUNITIES.ORG/ID/METROPOLITAN-DISTRICT-COUNCIL/WALSALL,31/03/2020,CHILDRENS SERVICES,TESCO STORES 6161,03/01/2020,H59620200107BQKTQRIZK-2,16.13,57 LICHFIELD ROAD-FOOD & DRINK SUPPLIES,GROCERY STORES AND SUPERMARKETS,GPC
WALSALL COUNCIL,HTTP://OPENDATACOMMUNITIES.ORG/ID/METROPOLITAN-DISTRICT-COUNCIL/WALSALL,31/03/2020,ECONOMY & ENVIRONMENT,AMZNMKTPLACE,03/01/2020,H59620200107BTBOGGHWV-1,17.13,ALDRIDGE LIBRARY-FURNITURE & EQUIPMENT,MISCELLANEOUS AND SPECIALTY RETAIL STORES,GPC
WALSALL COUNCIL,HTTP://OPENDATACOMMUNITIES.ORG/ID/METROPOLITAN-DISTRICT-COUNCIL/WALSALL,31/03/2020,RESOURCES & TRANSFORMATION,AMZNMKTPLACE,03/01/2020,H59620200107CQNETSYID-1,26.40,CL ADMIN-STATIONERY & GENERAL SUPPLIES,MISCELLANEOUS AND SPECIALTY RETAIL STORES,GPC
WALSALL COUNCIL,HTTP://OPENDATACOMMUNITIES.ORG/ID/METROPOLITAN-DISTRICT-COUNCIL/WALSALL,31/03/2020,ECONOMY & ENVIRONMENT,MIDLANDNEWS.COM,03/01/2020,H59620200107CVOXZBBZA-1,84.24,DEVELOPMENT MANAGEMENT-PUBLICATIONS/ORGANISATIONS-SUB,NEWS DEALERS AND NEWSSTANDS,GPC
WALSALL COUNCIL,HTTP://OPENDATACOMMUNITIES.ORG/ID/METROPOLITAN-DISTRICT-COUNCIL/WALSALL,31/03/2020,ECONOMY & ENVIRONMENT,AMAZON.CO.UK*DM6A52YF5,03/01/2020,H59620200107DDQZNJROY-1,14.40,GROWTH DEAL - REVENUE-GENERAL MATERIALS,OTHER DIRECT MARKETING-OTHER DIRECT MARKETERS,GPC
WALSALL COUNCIL,HTTP://OPENDATACOMMUNITIES.ORG/ID/METROPOLITAN-DISTRICT-COUNCIL/WALSALL,31/03/2020,RESOURCES & TRANSFORMATION,TESCO STORES 6161,03/01/2020,H59620200107EDJQRDTKE-1,35.50,WALSALL CRISIS SUPPORT SCHEME-CRISIS SUPPORT PAYMENTS,GROCERY STORES AND SUPERMARKETS,GPC
WALSALL COUNCIL,HTTP://OPENDATACOMMUNITIES.ORG/ID/METROPOLITAN-DISTRICT-COUNCIL/WALSALL,31/03/2020,RESOURCES & TRANSFORMATION,WP ENGINE,03/01/2020,H59620200107ELDVFVQAN-1,266.60,APPLICATIONS-COMPUTER EQUIPMENT AND SUPPLIE,"COMPUTER PROGRAM, SYSTEM DESIGN",GPC
WALSALL COUNCIL,HTTP://OPENDATACOMMUNITIES.ORG/ID/METROPOLITAN-DISTRICT-COUNCIL/WALSALL,31/03/2020,ADULT SOCIAL CARE,AMZNMKTPLACE,03/01/2020,H59620200107ETRJCJPTJ-1,14.32,GOSCOTE-STATIONERY & GENERAL SUPPLIES,MISCELLANEOUS AND SPECIALTY RETAIL STORES,GPC
WALSALL COUNCIL,HTTP://OPENDATACOMMUNITIES.ORG/ID/METROPOLITAN-DISTRICT-COUNCIL/WALSALL,31/03/2020,ECONOMY & ENVIRONMENT,WH SMITH,03/01/2020,H59620200107EUEWAKXDX-1,5.24,LEATHER MUSEUM-GENERAL MATERIALS,NEWS DEALERS AND NEWSSTANDS,GPC
WALSALL COUNCIL,HTTP://OPENDATACOMMUNITIES.ORG/ID/METROPOLITAN-DISTRICT-COUNCIL/WALSALL,31/03/2020,RESOURCES & TRANSFORMATION,HARGUNS,03/01/2020,H59620200107IDUXADBYQ-1,11.90,TOWN HALL RESTAURANT BISTRO-SUBSISTENCE OFFICERS-EXPENSES,QUICK PAYMENT SERVICE-FAST-FOOD RESTAURANTS,GPC
WALSALL COUNCIL,HTTP://OPENDATACOMMUNITIES.ORG/ID/METROPOLITAN-DISTRICT-COUNCIL/WALSALL,31/03/2020,CHILDRENS SERVICES,CO-OPERATIVE FOOD,03/01/2020,H59620200107IVPPKRCER-1,7.80,REDRUTH ROAD-FOOD & DRINK SUPPLIES,GROCERY STORES AND SUPERMARKETS,GPC
WALSALL COUNCIL,HTTP://OPENDATACOMMUNITIES.ORG/ID/METROPOLITAN-DISTRICT-COUNCIL/WALSALL,31/03/2020,RESOURCES & TRANSFORMATION,TESCO STORES 6161,03/01/2020,H59620200107IVRAMHRXP-1,29.98,WALSALL CRISIS SUPPORT SCHEME-FURNITURE & EQUIPMENT,GROCERY STORES AND SUPERMARKETS,GPC
WALSALL COUNCIL,HTTP://OPENDATACOMMUNITIES.ORG/ID/METROPOLITAN-DISTRICT-COUNCIL/WALSALL,31/03/2020,RESOURCES & TRANSFORMATION,TESCO STORES 6161,03/01/2020,H59620200107JYVRBRULN-1,29.98,WALSALL CRISIS SUPPORT SCHEME-FURNITURE & EQUIPMENT,GROCERY STORES AND SUPERMARKETS,GPC
WALSALL COUNCIL,HTTP://OPENDATACOMMUNITIES.ORG/ID/METROPOLITAN-DISTRICT-COUNCIL/WALSALL,31/03/2020,CHILDRENS SERVICES,WWW.BANNERUK.COM,03/01/2020,H59620200107KIGINVIDB-1,31.49,SAFEGUARDING & FAMILY SUPPORT-STATIONERY & GENERAL SUPPLIES,"STATIONERY, OFFICE SUPPLIES AND WRITING PAPER",GPC
WALSALL COUNCIL,HTTP://OPENDATACOMMUNITIES.ORG/ID/METROPOLITAN-DISTRICT-COUNCIL/WALSALL,31/03/2020,CHILDRENS SERVICES,AMZNMKTPLACE,03/01/2020,H59620200107KSLGAGIKX-1,13.48,SAFEGUARDING & FAMILY SUPPORT-STATIONERY & GENERAL SUPPLIES,MISCELLANEOUS AND SPECIALTY RETAIL STORES,GPC
WALSALL COUNCIL,HTTP://OPENDATACOMMUNITIES.ORG/ID/METROPOLITAN-DISTRICT-COUNCIL/WALSALL,31/03/2020,RESOURCES & TRANSFORMATION,TESCO STORES 6161,03/01/2020,H59620200107LPQJTRIKC-1,198.55,WALSALL CRISIS SUPPORT SCHEME-CRISIS SUPPORT PAYMENTS,GROCERY STORES AND SUPERMARKETS,GPC
WALSALL COUNCIL,HTTP://OPENDATACOMMUNITIES.ORG/ID/METROPOLITAN-DISTRICT-COUNCIL/WALSALL,31/03/2020,CHILDRENS SERVICES,W M MORRISONS.COM,03/01/2020,H59620200107LWATJWTVG-1,39.78,BLUEBELLS-FOOD & DRINK SUPPLIES,GROCERY STORES AND SUPERMARKETS,GPC
WALSALL COUNCIL,HTTP://OPENDATACOMMUNITIES.ORG/ID/METROPOLITAN-DISTRICT-COUNCIL/WALSALL,31/03/2020,CHILDRENS SERVICES,W M MORRISONS.COM,03/01/2020,H59620200107LWATJWTVG-2,131.27,BLUEBELLS-FOOD & DRINK SUPPLIES,GROCERY STORES AND SUPERMARKETS,GPC
WALSALL COUNCIL,HTTP://OPENDATACOMMUNITIES.ORG/ID/METROPOLITAN-DISTRICT-COUNCIL/WALSALL,31/03/2020,RESOURCES & TRANSFORMATION,AMZNMKTPLACE,03/01/2020,H59620200107MCBQHIFFO-1,3.95,CL ADMIN-STATIONERY & GENERAL SUPPLIES,MISCELLANEOUS AND SPECIALTY RETAIL STORES,GPC
WALSALL COUNCIL,HTTP://OPENDATACOMMUNITIES.ORG/ID/METROPOLITAN-DISTRICT-COUNCIL/WALSALL,31/03/2020,CHILDRENS SERVICES,AMZ*FIRSTAID4LESS,03/01/2020,H59620200107MXPJYIQTD-1,34.08,REDRUTH ROAD-STATIONERY & GENERAL SUPPLIES,ADVERTISING SERVICES,GPC
WALSALL COUNCIL,HTTP://OPENDATACOMMUNITIES.ORG/ID/METROPOLITAN-DISTRICT-COUNCIL/WALSALL,31/03/2020,ECONOMY & ENVIRONMENT,ASDA STORES,03/01/2020,H59620200107NVQGRDJCP-1,15.00,STREETLY LIBRARY-GENERAL MATERIALS,GROCERY STORES AND SUPERMARKETS,GPC
WALSALL COUNCIL,HTTP://OPENDATACOMMUNITIES.ORG/ID/METROPOLITAN-DISTRICT-COUNCIL/WALSALL,31/03/2020,RESOURCES & TRANSFORMATION,WM MORRISONS STORE,03/01/2020,H59620200107OGHCNMBIA-1,13.70,WALSALL CRISIS SUPPORT SCHEME-CRISIS SUPPORT PAYMENTS,GROCERY STORES AND SUPERMARKETS,GPC
WALSALL COUNCIL,HTTP://OPENDATACOMMUNITIES.ORG/ID/METROPOLITAN-DISTRICT-COUNCIL/WALSALL,31/03/2020,RESOURCES & TRANSFORMATION,WM MORRISONS STORE,03/01/2020,H59620200107OGHCNMBIA-2,39.18,WALSALL CRISIS SUPPORT SCHEME-CRISIS SUPPORT PAYMENTS,GROCERY STORES AND SUPERMARKETS,GPC
WALSALL COUNCIL,HTTP://OPENDATACOMMUNITIES.ORG/ID/METROPOLITAN-DISTRICT-COUNCIL/WALSALL,31/03/2020,CHILDRENS SERVICES,WWW.BANNERUK.COM,03/01/2020,H59620200107OQGIRTIKB-1,15.68,BIRCHILLS CHILDCARE SERVICES-STATIONERY & GENERAL SUPPLIES,"STATIONERY, OFFICE SUPPLIES AND WRITING PAPER",GPC
WALSALL COUNCIL,HTTP://OPENDATACOMMUNITIES.ORG/ID/METROPOLITAN-DISTRICT-COUNCIL/WALSALL,31/03/2020,CHILDRENS SERVICES,WWW.BANNERUK.COM,03/01/2020,H59620200107OQGIRTIKB-2,86.40,BIRCHILLS CHILDCARE SERVICES-GENERAL MATERIALS,"STATIONERY, OFFICE SUPPLIES AND WRITING PAPER",GPC
WALSALL COUNCIL,HTTP://OPENDATACOMMUNITIES.ORG/ID/METROPOLITAN-DISTRICT-COUNCIL/WALSALL,31/03/2020,ECONOMY & ENVIRONMENT,WWW.BANNERUK.COM,03/01/2020,H59620200107OQQJQKFPX-1,66.21,CENTRALISED STATIONARY-STATIONERY & GENERAL SUPPLIES,"STATIONERY, OFFICE SUPPLIES AND WRITING PAPER",GPC
WALSALL COUNCIL,HTTP://OPENDATACOMMUNITIES.ORG/ID/METROPOLITAN-DISTRICT-COUNCIL/WALSALL,31/03/2020,ECONOMY & ENVIRONMENT,AMZ*HSD ONLINE,03/01/2020,H59620200107PFRUWGHQX-1,227.91,BLOXWICH LEISURE CENTRE-REPAIR & MAINTENANCE OF FURNIT,ADVERTISING SERVICES,GPC
WALSALL COUNCIL,HTTP://OPENDATACOMMUNITIES.ORG/ID/METROPOLITAN-DISTRICT-COUNCIL/WALSALL,31/03/2020,ECONOMY & ENVIRONMENT,WWW.BANNERUK.COM,03/01/2020,H59620200107QVRKHOOEF-1,87.00,CENTRALISED STATIONARY-STATIONERY & GENERAL SUPPLIES,"STATIONERY, OFFICE SUPPLIES AND WRITING PAPER",GPC
WALSALL COUNCIL,HTTP://OPENDATACOMMUNITIES.ORG/ID/METROPOLITAN-DISTRICT-COUNCIL/WALSALL,31/03/2020,ECONOMY & ENVIRONMENT,CARTRIDGE SAVE,03/01/2020,H59620200107RIJJUOJLJ-1,28.62,GROUNDS-GENERAL MATERIALS,"STATIONERY, OFFICE SUPPLIES AND WRITING PAPER",GPC
WALSALL COUNCIL,HTTP://OPENDATACOMMUNITIES.ORG/ID/METROPOLITAN-DISTRICT-COUNCIL/WALSALL,31/03/2020,RESOURCES & TRANSFORMATION,WWW.WMCA.ORG.UK,03/01/2020,H59620200107RJOHTRAUL-1,40.00,LAW LIBRARY-STATIONERY & GENERAL SUPPLIES,LOCAL AND SUBURBAN COMMUTER TRANSPORTATION,GPC
WALSALL COUNCIL,HTTP://OPENDATACOMMUNITIES.ORG/ID/METROPOLITAN-DISTRICT-COUNCIL/WALSALL,31/03/2020,ECONOMY & ENVIRONMENT,WWW.SERVOCHEM.UK.COM,03/01/2020,H59620200107RLDNUFZIT-1,50.02,OAK PARK-CHEMICALS & SCIENTIFIC MATS-MA,OTHER CHEMICALS AND ALLIED PRODUCTS,GPC
WALSALL COUNCIL,HTTP://OPENDATACOMMUNITIES.ORG/ID/METROPOLITAN-DISTRICT-COUNCIL/WALSALL,31/03/2020,CHILDRENS SERVICES,ARGOS LTD,03/01/2020,H59620200107RNJMXOIMP-1,35.00,57 LICHFIELD ROAD-RESIDENTS PERSONAL EXPENSES-AL,DISCOUNT STORES,GPC
WALSALL COUNCIL,HTTP://OPENDATACOMMUNITIES.ORG/ID/METROPOLITAN-DISTRICT-COUNCIL/WALSALL,31/03/2020,ECONOMY & ENVIRONMENT,FACEBK BYQW7RW6X2,03/01/2020,H59620200107SYWQXCBBJ-1,148.32,COMMUNITY LIASON-PUBLICITY & ADVERTISING (NOT S,ADVERTISING SERVICES,GPC
WALSALL COUNCIL,HTTP://OPENDATACOMMUNITIES.ORG/ID/METROPOLITAN-DISTRICT-COUNCIL/WALSALL,31/03/2020,RESOURCES & TRANSFORMATION,ALDI 772 129,03/01/2020,H59620200107TDLHHYJXU-1,11.61,CA MOORCROFT WOOD-FOOD & DRINK SUPPLIES,GROCERY STORES AND SUPERMARKETS,GPC
WALSALL COUNCIL,HTTP://OPENDATACOMMUNITIES.ORG/ID/METROPOLITAN-DISTRICT-COUNCIL/WALSALL,31/03/2020,RESOURCES & TRANSFORMATION,ARTHUR BRETT CATER,03/01/2020,H59620200107TKOKVDAXX-1,21.57,TOWN HALL RESTAURANT BISTRO-FOOD & DRINK SUPPLIES,MISCELLANEOUS FOOD STORES & CONVENIENCE STORES,GPC
WALSALL COUNCIL,HTTP://OPENDATACOMMUNITIES.ORG/ID/METROPOLITAN-DISTRICT-COUNCIL/WALSALL,31/03/2020,ECONOMY & ENVIRONMENT,WWW.SERVOCHEM.UK.COM,03/01/2020,H59620200107TVRXUONJT-1,86.16,OAK PARK-CHEMICALS & SCIENTIFIC MATS-MA,OTHER CHEMICALS AND ALLIED PRODUCTS,GPC
WALSALL COUNCIL,HTTP://OPENDATACOMMUNITIES.ORG/ID/METROPOLITAN-DISTRICT-COUNCIL/WALSALL,31/03/2020,CHILDRENS SERVICES,SUBWAY WATERFRONT,03/01/2020,H59620200107UCIFBJYAM-1,5.38,ADOLESCENT SERVICE-SUBSISTENCE OFFICERS-EXPENSES,QUICK PAYMENT SERVICE-FAST-FOOD RESTAURANTS,GPC
WALSALL COUNCIL,HTTP://OPENDATACOMMUNITIES.ORG/ID/METROPOLITAN-DISTRICT-COUNCIL/WALSALL,31/03/2020,ECONOMY & ENVIRONMENT,CITIZENCARD,03/01/2020,H59620200107VCDXFSUOW-1,7.50,YEI ESF FUNDING-PROFESSIONAL FEES AND SERVICES,"ORGANIZATIONS, MEMBERSHIP",GPC
WALSALL COUNCIL,HTTP://OPENDATACOMMUNITIES.ORG/ID/METROPOLITAN-DISTRICT-COUNCIL/WALSALL,31/03/2020,ECONOMY & ENVIRONMENT,CITIZENCARD,03/01/2020,H59620200107VCDXFSUOW-2,7.50,YEI (IMPACT) PROGRAMME-PROFESSIONAL FEES AND SERVICES,"ORGANIZATIONS, MEMBERSHIP",GPC
WALSALL COUNCIL,HTTP://OPENDATACOMMUNITIES.ORG/ID/METROPOLITAN-DISTRICT-COUNCIL/WALSALL,31/03/2020,ECONOMY & ENVIRONMENT,AMZNMKTPLACE,03/01/2020,H59620200107VOTGWSOOT-1,3.00,ALDRIDGE LIBRARY-FURNITURE & EQUIPMENT,MISCELLANEOUS AND SPECIALTY RETAIL STORES,GPC
WALSALL COUNCIL,HTTP://OPENDATACOMMUNITIES.ORG/ID/METROPOLITAN-DISTRICT-COUNCIL/WALSALL,31/03/2020,ECONOMY & ENVIRONMENT,WWW.BANNERUK.COM,03/01/2020,H59620200107WIYUBAZSJ-1,37.63,LIBRARY OPERATIONS CENTRAL-STATIONERY & GENERAL SUPPLIES,"STATIONERY, OFFICE SUPPLIES AND WRITING PAPER",GPC
WALSALL COUNCIL,HTTP://OPENDATACOMMUNITIES.ORG/ID/METROPOLITAN-DISTRICT-COUNCIL/WALSALL,31/03/2020,RESOURCES & TRANSFORMATION,ALLPAY *ACCORD HOUSING AS,03/01/2020,H59620200107WSPSAJLBS-1,384.10,ADVICE & GUIDANCE SERVICE-ACCOMMODATION AND RELATED COST,"ORGANIZATIONS, CHARITABLE AND SOCIAL SERVICE",GPC
WALSALL COUNCIL,HTTP://OPENDATACOMMUNITIES.ORG/ID/METROPOLITAN-DISTRICT-COUNCIL/WALSALL,31/03/2020,CHILDRENS SERVICES,DUNELM (SOFT FURNISHIN,03/01/2020,H59620200107XTQRBMLLI-1,20.00,BLUEBELLS-FURNITURE & EQUIPMENT,"DRAPERY, UPHOLSTERY, AND WINDOW COVERINGS STORES",GPC
WALSALL COUNCIL,HTTP://OPENDATACOMMUNITIES.ORG/ID/METROPOLITAN-DISTRICT-COUNCIL/WALSALL,31/03/2020,CHILDRENS SERVICES,POUNDLAND LTD 1427,03/01/2020,H59620200107XYXUUABQL-1,4.50,FOOD TECHNOLOGY/HOSPITALITY-GENERAL MATERIALS,DISCOUNT STORES,GPC
WALSALL COUNCIL,HTTP://OPENDATACOMMUNITIES.ORG/ID/METROPOLITAN-DISTRICT-COUNCIL/WALSALL,31/03/2020,CHILDRENS SERVICES,HTTP://WWW.STOP-CSE.OR,03/01/2020,H59620200107YHWNWRKDW-1,273.12,ADOLESCENT SERVICE-INTERNAL TRAINING,"ORGANIZATIONS, CHARITABLE AND SOCIAL SERVICE",GPC
WALSALL COUNCIL,HTTP://OPENDATACOMMUNITIES.ORG/ID/METROPOLITAN-DISTRICT-COUNCIL/WALSALL,31/03/2020,ADULT SOCIAL CARE,WWW.BANNERUK.COM,03/01/2020,H59620200107YZDTHPEAZ-1,123.72,INTERMEDIATE CARE SERVICE-STATIONERY & GENERAL SUPPLIES,"STATIONERY, OFFICE SUPPLIES AND WRITING PAPER",GPC
WALSALL COUNCIL,HTTP://OPENDATACOMMUNITIES.ORG/ID/METROPOLITAN-DISTRICT-COUNCIL/WALSALL,31/03/2020,SCHOOLS,BARRINGTON STOKE LTD,03/01/2020,H59620200107ZNITFSEEW-1,22.99,E19-GENERAL MATERIALS,BOOK STORES,GPC
WALSALL COUNCIL,HTTP://OPENDATACOMMUNITIES.ORG/ID/METROPOLITAN-DISTRICT-COUNCIL/WALSALL,31/03/2020,CHILDRENS SERVICES,WIX.COM,03/01/2020,H59620200108VRDNFPUBN-1,111.75,EDUCATION BUSINESS PARTNERSHIP-GENERAL MATERIALS,DIGITAL GOODS - APPLICATIONS (EXCLUDES GAMES),GPC
WALSALL COUNCIL,HTTP://OPENDATACOMMUNITIES.ORG/ID/METROPOLITAN-DISTRICT-COUNCIL/WALSALL,31/03/2020,RESOURCES & TRANSFORMATION,HTTP://WEBEX.COM,04/01/2020,H59620200107JKRZKTOLH-1,14.40,DATA CENTRES-PROFESSIONAL FEES AND SERVICES,OTHER BUSINESS SERVICES,GPC
WALSALL COUNCIL,HTTP://OPENDATACOMMUNITIES.ORG/ID/METROPOLITAN-DISTRICT-COUNCIL/WALSALL,31/03/2020,CHILDRENS SERVICES,ASDA SUPERSTORE,04/01/2020,H59620200107QJIJXNXVO-1,3.30,MARY ELLIOTT SCHOOL-FOOD & DRINK SUPPLIES,GROCERY STORES AND SUPERMARKETS,GPC
WALSALL COUNCIL,HTTP://OPENDATACOMMUNITIES.ORG/ID/METROPOLITAN-DISTRICT-COUNCIL/WALSALL,31/03/2020,CHILDRENS SERVICES,ASDA SUPERSTORE,04/01/2020,H59620200107QJIJXNXVO-2,3.50,MARY ELLIOTT SCHOOL-FOOD & DRINK SUPPLIES,GROCERY STORES AND SUPERMARKETS,GPC
WALSALL COUNCIL,HTTP://OPENDATACOMMUNITIES.ORG/ID/METROPOLITAN-DISTRICT-COUNCIL/WALSALL,31/03/2020,CHILDRENS SERVICES,ARGOS LTD,04/01/2020,H59620200107TQVPSCNHJ-1,-134.99,SUPPORT UNDER SECT 23 OF THE C-SUPPORT UNDER SECTION 23 OF TH,DISCOUNT STORES,GPC
WALSALL COUNCIL,HTTP://OPENDATACOMMUNITIES.ORG/ID/METROPOLITAN-DISTRICT-COUNCIL/WALSALL,31/03/2020,RESOURCES & TRANSFORMATION,LINKEDIN-431*6358306,04/01/2020,H59620200107VCIZXJGNS-1,74.62,SCHOOL HR TRANSACTIONAL TEAM-ADVERTISING STAFF VACANCIES,DIRECT MARKETING CONTINUITY SUBSCRIPTION MERCHANTS,GPC
WALSALL COUNCIL,HTTP://OPENDATACOMMUNITIES.ORG/ID/METROPOLITAN-DISTRICT-COUNCIL/WALSALL,31/03/2020,ECONOMY & ENVIRONMENT,WILKO RETAIL LIMITED,04/01/2020,H59620200107WZALGQWUQ-1,3.00,BLOXWICH LIBRARY-GENERAL MATERIALS,MISCELLANEOUS GENERAL MERCHANDISE,GPC
WALSALL COUNCIL,HTTP://OPENDATACOMMUNITIES.ORG/ID/METROPOLITAN-DISTRICT-COUNCIL/WALSALL,31/03/2020,CHILDRENS SERVICES,POST OFFICE COUNTER,04/01/2020,H59620200107XVLCRDPFA-1,3.00,ADMINISTRATIVE SUPPLIES-POSTAGES AND COURIER SERVICES,POSTAL SERVICES - GOVERNMENT ONLY,GPC
WALSALL COUNCIL,HTTP://OPENDATACOMMUNITIES.ORG/ID/METROPOLITAN-DISTRICT-COUNCIL/WALSALL,31/03/2020,RESOURCES & TRANSFORMATION,PARK INN BY RADISSON,05/01/2020,H59620200107GHJTEDIYT-1,25.90,BED & BREAKFAST PAYMENTS-BED & BREAKFAST PAYMENTS,"HOTELS, MOTELS, RESORTS",GPC
WALSALL COUNCIL,HTTP://OPENDATACOMMUNITIES.ORG/ID/METROPOLITAN-DISTRICT-COUNCIL/WALSALL,31/03/2020,RESOURCES & TRANSFORMATION,EXPEDIA 7510027060396,05/01/2020,H59620200107GPBNLUSTE-1,40.01,BED & BREAKFAST PAYMENTS-BED & BREAKFAST PAYMENTS,TRAVEL AGENCIES AND TOUR OPERATORS,GPC
WALSALL COUNCIL,HTTP://OPENDATACOMMUNITIES.ORG/ID/METROPOLITAN-DISTRICT-COUNCIL/WALSALL,31/03/2020,CHILDRENS SERVICES,AMAZON.CO.UK*JU53G3BN5,05/01/2020,H59620200107HYWKGQPJJ-1,55.70,CONTINGENCY-GENERAL MATERIALS,OTHER DIRECT MARKETING-OTHER DIRECT MARKETERS,GPC
WALSALL COUNCIL,HTTP://OPENDATACOMMUNITIES.ORG/ID/METROPOLITAN-DISTRICT-COUNCIL/WALSALL,31/03/2020,CHILDRENS SERVICES,AMAZON.CO.UK*JU53G3BN5,05/01/2020,H59620200107HYWKGQPJJ-2,29.94,CONTINGENCY-GENERAL MATERIALS,OTHER DIRECT MARKETING-OTHER DIRECT MARKETERS,GPC
WALSALL COUNCIL,HTTP://OPENDATACOMMUNITIES.ORG/ID/METROPOLITAN-DISTRICT-COUNCIL/WALSALL,31/03/2020,RESOURCES & TRANSFORMATION,WWW.ONLINESAFETYSUPPLI,05/01/2020,H59620200107MHTYCPIGG-1,34.92,CA CENTRAL SUPPORT SERVICES-CLOTHING & LAUNDRY,MISCELLANEOUS AND SPECIALTY RETAIL STORES,GPC
WALSALL COUNCIL,HTTP://OPENDATACOMMUNITIES.ORG/ID/METROPOLITAN-DISTRICT-COUNCIL/WALSALL,31/03/2020,ADULT SOCIAL CARE,AMZNMKTPLACE,05/01/2020,H59620200107MNIEYAXWX-1,20.57,"STRATEGY, COMMISSIONING, AND D-STATIONERY & GENERAL SUPPLIES",MISCELLANEOUS AND SPECIALTY RETAIL STORES,GPC
WALSALL COUNCIL,HTTP://OPENDATACOMMUNITIES.ORG/ID/METROPOLITAN-DISTRICT-COUNCIL/WALSALL,31/03/2020,CHILDRENS SERVICES,ASDA SUPERSTORE,05/01/2020,H59620200107NBGNRBJKM-1,20.20,REDRUTH ROAD-FOOD & DRINK SUPPLIES,GROCERY STORES AND SUPERMARKETS,GPC
WALSALL COUNCIL,HTTP://OPENDATACOMMUNITIES.ORG/ID/METROPOLITAN-DISTRICT-COUNCIL/WALSALL,31/03/2020,CHILDRENS SERVICES,ASDA SUPERSTORE,05/01/2020,H59620200107NLYYSNYXE-1,14.00,REDRUTH ROAD-FURNITURE & EQUIPMENT,GROCERY STORES AND SUPERMARKETS,GPC
WALSALL COUNCIL,HTTP://OPENDATACOMMUNITIES.ORG/ID/METROPOLITAN-DISTRICT-COUNCIL/WALSALL,31/03/2020,RESOURCES & TRANSFORMATION,LINKEDIN-507*0367893,05/01/2020,H59620200107UEGVIJJYN-1,459.96,SCHOOL HR TRANSACTIONAL TEAM-ADVERTISING STAFF VACANCIES,DIRECT MARKETING CONTINUITY SUBSCRIPTION MERCHANTS,GPC
WALSALL COUNCIL,HTTP://OPENDATACOMMUNITIES.ORG/ID/METROPOLITAN-DISTRICT-COUNCIL/WALSALL,31/03/2020,RESOURCES & TRANSFORMATION,TRAVELODGE GB0000,05/01/2020,H59620200107VPXUAWEPF-1,33.00,BED & BREAKFAST PAYMENTS-BED & BREAKFAST PAYMENTS,TRAVELODGE,GPC
WALSALL COUNCIL,HTTP://OPENDATACOMMUNITIES.ORG/ID/METROPOLITAN-DISTRICT-COUNCIL/WALSALL,31/03/2020,RESOURCES & TRANSFORMATION,FOREIGN EXCHANGE FEE,06/01/2020,H59620200107EGOLPJNMF-1,7.33,APPLICATIONS-COMPUTER EQUIPMENT AND SUPPLIE,,GPC
WALSALL COUNCIL,HTTP://OPENDATACOMMUNITIES.ORG/ID/METROPOLITAN-DISTRICT-COUNCIL/WALSALL,31/03/2020,ECONOMY & ENVIRONMENT,WILKO RETAIL LIMITED,06/01/2020,H59620200108BYFPFKRVI-1,7.50,STREETLY LIBRARY-GENERAL MATERIALS,MISCELLANEOUS GENERAL MERCHANDISE,GPC
WALSALL COUNCIL,HTTP://OPENDATACOMMUNITIES.ORG/ID/METROPOLITAN-DISTRICT-COUNCIL/WALSALL,31/03/2020,CHILDRENS SERVICES,WWW.PHS.CO.UK,06/01/2020,H59620200108COPGGUYEP-1,92.02,CHILD PROTECTION & REVIEW SERV-PROFESSIONAL FEES AND SERVICES,OTHER BUSINESS SERVICES,GPC
WALSALL COUNCIL,HTTP://OPENDATACOMMUNITIES.ORG/ID/METROPOLITAN-DISTRICT-COUNCIL/WALSALL,31/03/2020,CHILDRENS SERVICES,WWW.BANNERUK.COM,06/01/2020,H59620200108CXWZVZWFN-1,26.91,BIRCHILLS CHILDCARE SERVICES-STATIONERY & GENERAL SUPPLIES,"STATIONERY, OFFICE SUPPLIES AND WRITING PAPER",GPC
WALSALL COUNCIL,HTTP://OPENDATACOMMUNITIES.ORG/ID/METROPOLITAN-DISTRICT-COUNCIL/WALSALL,31/03/2020,CHILDRENS SERVICES,WWW.BANNERUK.COM,06/01/2020,H59620200108CXWZVZWFN-2,17.42,BIRCHILLS CHILDCARE SERVICES-GENERAL MATERIALS,"STATIONERY, OFFICE SUPPLIES AND WRITING PAPER",GPC
WALSALL COUNCIL,HTTP://OPENDATACOMMUNITIES.ORG/ID/METROPOLITAN-DISTRICT-COUNCIL/WALSALL,31/03/2020,CHILDRENS SERVICES,NISA LOCAL,06/01/2020,H59620200108DGGAWTSHJ-1,5.72,REDRUTH ROAD-FOOD & DRINK SUPPLIES,MISCELLANEOUS FOOD STORES & CONVENIENCE STORES,GPC
WALSALL COUNCIL,HTTP://OPENDATACOMMUNITIES.ORG/ID/METROPOLITAN-DISTRICT-COUNCIL/WALSALL,31/03/2020,CHILDRENS SERVICES,WM MORRISON FOOD.COM,06/01/2020,H59620200108DPKMKHSGB-1,13.68,PELSALL VILLAGE SCHOOL-FOOD & DRINK SUPPLIES,GROCERY STORES AND SUPERMARKETS,GPC
WALSALL COUNCIL,HTTP://OPENDATACOMMUNITIES.ORG/ID/METROPOLITAN-DISTRICT-COUNCIL/WALSALL,31/03/2020,CHILDRENS SERVICES,WM MORRISON FOOD.COM,06/01/2020,H59620200108DPKMKHSGB-2,28.22,PELSALL VILLAGE SCHOOL-FOOD & DRINK SUPPLIES,GROCERY STORES AND SUPERMARKETS,GPC
WALSALL COUNCIL,HTTP://OPENDATACOMMUNITIES.ORG/ID/METROPOLITAN-DISTRICT-COUNCIL/WALSALL,31/03/2020,ECONOMY & ENVIRONMENT,AMZNMKTPLACE,06/01/2020,H59620200108DPSPQHLYL-1,43.96,BLOXWICH LEISURE CENTRE-STATIONERY & GENERAL SUPPLIES,MISCELLANEOUS AND SPECIALTY RETAIL STORES,GPC
WALSALL COUNCIL,HTTP://OPENDATACOMMUNITIES.ORG/ID/METROPOLITAN-DISTRICT-COUNCIL/WALSALL,31/03/2020,ECONOMY & ENVIRONMENT,TRAINLINE,06/01/2020,H59620200108DSGFZBXHD-1,49.90,ERDF BLACK COUNTRY TA PROGRAMM-OFFICER/STAFF-PUBLIC TRANSPORT,PASSENGER RAILWAYS,GPC
WALSALL COUNCIL,HTTP://OPENDATACOMMUNITIES.ORG/ID/METROPOLITAN-DISTRICT-COUNCIL/WALSALL,31/03/2020,CHILDRENS SERVICES,AMZNMKTPLACE,06/01/2020,H59620200108EGCAGGPTW-1,40.00,ADMINISTRATIVE SUPPLIES-STATIONERY & GENERAL SUPPLIES,MISCELLANEOUS AND SPECIALTY RETAIL STORES,GPC
WALSALL COUNCIL,HTTP://OPENDATACOMMUNITIES.ORG/ID/METROPOLITAN-DISTRICT-COUNCIL/WALSALL,31/03/2020,CHILDRENS SERVICES,WM MORRISONS STORE,06/01/2020,H59620200108ETSPCPBTI-1,5.10,57 LICHFIELD ROAD-FOOD & DRINK SUPPLIES,GROCERY STORES AND SUPERMARKETS,GPC
WALSALL COUNCIL,HTTP://OPENDATACOMMUNITIES.ORG/ID/METROPOLITAN-DISTRICT-COUNCIL/WALSALL,31/03/2020,ECONOMY & ENVIRONMENT,WWW.WOLVERHAMPTON.GOV.,06/01/2020,H59620200108FFYSVXGSV-1,30.00,FLEET-PROFESSIONAL SERVICES-PRIV CON,GOVERNMENT SERVICES,GPC
WALSALL COUNCIL,HTTP://OPENDATACOMMUNITIES.ORG/ID/METROPOLITAN-DISTRICT-COUNCIL/WALSALL,31/03/2020,CHILDRENS SERVICES,ASDA GROCERIES ONLINE,06/01/2020,H59620200108GICVDXLZA-1,54.09,BREAKFAST CLUB-GENERAL MATERIALS,GROCERY STORES AND SUPERMARKETS,GPC
WALSALL COUNCIL,HTTP://OPENDATACOMMUNITIES.ORG/ID/METROPOLITAN-DISTRICT-COUNCIL/WALSALL,31/03/2020,CHILDRENS SERVICES,ALDI 42 772,06/01/2020,H59620200108GJQRWXMTI-1,5.48,REDRUTH ROAD-FURNITURE & EQUIPMENT,GROCERY STORES AND SUPERMARKETS,GPC
WALSALL COUNCIL,HTTP://OPENDATACOMMUNITIES.ORG/ID/METROPOLITAN-DISTRICT-COUNCIL/WALSALL,31/03/2020,RESOURCES & TRANSFORMATION,TESCO STORES 6161,06/01/2020,H59620200108GJVKSXJWM-1,40.10,WALSALL CRISIS SUPPORT SCHEME-CRISIS SUPPORT PAYMENTS,GROCERY STORES AND SUPERMARKETS,GPC
WALSALL COUNCIL,HTTP://OPENDATACOMMUNITIES.ORG/ID/METROPOLITAN-DISTRICT-COUNCIL/WALSALL,31/03/2020,RESOURCES & TRANSFORMATION,AMAZON.CO.UK*NY0YE82E5,06/01/2020,H59620200108GOJABVKRN-1,20.60,CL ADMIN-GENERAL MATERIALS,OTHER DIRECT MARKETING-OTHER DIRECT MARKETERS,GPC
WALSALL COUNCIL,HTTP://OPENDATACOMMUNITIES.ORG/ID/METROPOLITAN-DISTRICT-COUNCIL/WALSALL,31/03/2020,RESOURCES & TRANSFORMATION,AMAZON.CO.UK*ID46V1NB5,06/01/2020,H59620200108GPRXWIIAF-1,15.49,PRINTING SERVICES-FURNITURE & EQUIPMENT,OTHER DIRECT MARKETING-OTHER DIRECT MARKETERS,GPC
WALSALL COUNCIL,HTTP://OPENDATACOMMUNITIES.ORG/ID/METROPOLITAN-DISTRICT-COUNCIL/WALSALL,31/03/2020,ECONOMY & ENVIRONMENT,WILKO RETAIL LIMITED,06/01/2020,H59620200108GQNDBLSXZ-1,11.00,OAK PARK-GENERAL MATERIALS,MISCELLANEOUS GENERAL MERCHANDISE,GPC
WALSALL COUNCIL,HTTP://OPENDATACOMMUNITIES.ORG/ID/METROPOLITAN-DISTRICT-COUNCIL/WALSALL,31/03/2020,CHILDRENS SERVICES,ALDI 42 772,06/01/2020,H59620200108GUHIYIQOB-1,5.96,REDRUTH ROAD-FOOD & DRINK SUPPLIES,GROCERY STORES AND SUPERMARKETS,GPC
WALSALL COUNCIL,HTTP://OPENDATACOMMUNITIES.ORG/ID/METROPOLITAN-DISTRICT-COUNCIL/WALSALL,31/03/2020,CHILDRENS SERVICES,ALDI 42 772,06/01/2020,H59620200108GUHIYIQOB-2,67.26,REDRUTH ROAD-FOOD & DRINK SUPPLIES,GROCERY STORES AND SUPERMARKETS,GPC
WALSALL COUNCIL,HTTP://OPENDATACOMMUNITIES.ORG/ID/METROPOLITAN-DISTRICT-COUNCIL/WALSALL,31/03/2020,ECONOMY & ENVIRONMENT,AMZNMKTPLACE,06/01/2020,H59620200108HHKUPBPPJ-1,28.99,WALSALL ARENA AND ARTS CENTRE-STATIONERY & GENERAL SUPPLIES,MISCELLANEOUS AND SPECIALTY RETAIL STORES,GPC
WALSALL COUNCIL,HTTP://OPENDATACOMMUNITIES.ORG/ID/METROPOLITAN-DISTRICT-COUNCIL/WALSALL,31/03/2020,SCHOOLS,WWW.OUTOFTHEARK.COM,06/01/2020,H59620200108KPYWCKWOC-1,28.20,E19-LIBRARY BOOKS,MUSIC STORES & MUSICAL INSTRUMENTS,GPC
WALSALL COUNCIL,HTTP://OPENDATACOMMUNITIES.ORG/ID/METROPOLITAN-DISTRICT-COUNCIL/WALSALL,31/03/2020,CHILDRENS SERVICES,TRAINLINE,06/01/2020,H59620200108KXPEMQYIT-1,42.21,SAFEGUARDING & FAMILY SUPPORT-OFFICER/STAFF-PUBLIC TRANSPORT,PASSENGER RAILWAYS,GPC
WALSALL COUNCIL,HTTP://OPENDATACOMMUNITIES.ORG/ID/METROPOLITAN-DISTRICT-COUNCIL/WALSALL,31/03/2020,CHILDRENS SERVICES,WM MORRISON FOOD.COM,06/01/2020,H59620200108NBUGATWON-1,24.18,BIRCHILLS CHILDCARE SERVICES-FOOD & DRINK SUPPLIES,GROCERY STORES AND SUPERMARKETS,GPC
WALSALL COUNCIL,HTTP://OPENDATACOMMUNITIES.ORG/ID/METROPOLITAN-DISTRICT-COUNCIL/WALSALL,31/03/2020,CHILDRENS SERVICES,WM MORRISON FOOD.COM,06/01/2020,H59620200108NBUGATWON-2,91.28,BIRCHILLS CHILDCARE SERVICES-FOOD & DRINK SUPPLIES,GROCERY STORES AND SUPERMARKETS,GPC
WALSALL COUNCIL,HTTP://OPENDATACOMMUNITIES.ORG/ID/METROPOLITAN-DISTRICT-COUNCIL/WALSALL,31/03/2020,CHILDRENS SERVICES,PAYPAL *LOVESKIRTIN,06/01/2020,H59620200108NGOTYBWKU-1,95.96,ST FRANCIS OF ASSISI CATHOLIC -OPERATIONAL MAINTENANCE,"ANTIQUE SALES, REPAIRS, AND RESTORATION SERVICES",GPC
WALSALL COUNCIL,HTTP://OPENDATACOMMUNITIES.ORG/ID/METROPOLITAN-DISTRICT-COUNCIL/WALSALL,31/03/2020,CHILDRENS SERVICES,TESCO STORES 6161,06/01/2020,H59620200108OFSPEPLFI-1,37.62,FOOD TECHNOLOGY/HOSPITALITY-GENERAL MATERIALS,GROCERY STORES AND SUPERMARKETS,GPC
WALSALL COUNCIL,HTTP://OPENDATACOMMUNITIES.ORG/ID/METROPOLITAN-DISTRICT-COUNCIL/WALSALL,31/03/2020,RESOURCES & TRANSFORMATION,TRAVELODGE GB0000,06/01/2020,H59620200108OITICGQCE-1,91.00,BED & BREAKFAST PAYMENTS-BED & BREAKFAST PAYMENTS,TRAVELODGE,GPC
WALSALL COUNCIL,HTTP://OPENDATACOMMUNITIES.ORG/ID/METROPOLITAN-DISTRICT-COUNCIL/WALSALL,31/03/2020,RESOURCES & TRANSFORMATION,TRAVELODGE GB0000,06/01/2020,H59620200108OQBCCVIXT-1,73.50,BED & BREAKFAST PAYMENTS-BED & BREAKFAST PAYMENTS,TRAVELODGE,GPC
WALSALL COUNCIL,HTTP://OPENDATACOMMUNITIES.ORG/ID/METROPOLITAN-DISTRICT-COUNCIL/WALSALL,31/03/2020,RESOURCES & TRANSFORMATION,TRAVELODGE GB0000,06/01/2020,H59620200108OQBCCVIXT-2,295.93,BED & BREAKFAST PAYMENTS-BED & BREAKFAST PAYMENTS,TRAVELODGE,GPC
WALSALL COUNCIL,HTTP://OPENDATACOMMUNITIES.ORG/ID/METROPOLITAN-DISTRICT-COUNCIL/WALSALL,31/03/2020,CHILDRENS SERVICES,WM MORRISONS STORE,06/01/2020,H59620200108OVCNSARIK-1,17.87,EARLY HELP HUB-FOOD & DRINK SUPPLIES,GROCERY STORES AND SUPERMARKETS,GPC
WALSALL COUNCIL,HTTP://OPENDATACOMMUNITIES.ORG/ID/METROPOLITAN-DISTRICT-COUNCIL/WALSALL,31/03/2020,CHILDRENS SERVICES,WORDERY,06/01/2020,H59620200108QXGSVNKNC-1,104.85,ENGLISH-GENERAL MATERIALS,BOOK STORES,GPC
WALSALL COUNCIL,HTTP://OPENDATACOMMUNITIES.ORG/ID/METROPOLITAN-DISTRICT-COUNCIL/WALSALL,31/03/2020,CHILDRENS SERVICES,AMZNMKTPLACE,06/01/2020,H59620200108REMOZFOCZ-1,37.80,LEIGHSWOOD PRIMARY SCHOOL-GENERAL MATERIALS,MISCELLANEOUS AND SPECIALTY RETAIL STORES,GPC
WALSALL COUNCIL,HTTP://OPENDATACOMMUNITIES.ORG/ID/METROPOLITAN-DISTRICT-COUNCIL/WALSALL,31/03/2020,CHILDRENS SERVICES,THETRAINLINE.COM,06/01/2020,H59620200108RPEUPLPCQ-1,37.53,GENERAL MANAGEMENT SUPPORT (IN-OFFICER/STAFF-PUBLIC TRANSPORT,PASSENGER RAILWAYS,GPC
WALSALL COUNCIL,HTTP://OPENDATACOMMUNITIES.ORG/ID/METROPOLITAN-DISTRICT-COUNCIL/WALSALL,31/03/2020,CHILDRENS SERVICES,EB *SAFEGUARDING MISSI,06/01/2020,H59620200108RSSSKSEHJ-1,64.42,GENERAL MANAGEMENT SUPPORT (IN-EXTERNAL TRAINING,OTHER BUSINESS SERVICES,GPC
WALSALL COUNCIL,HTTP://OPENDATACOMMUNITIES.ORG/ID/METROPOLITAN-DISTRICT-COUNCIL/WALSALL,31/03/2020,RESOURCES & TRANSFORMATION,LINKEDIN-431*9594776,06/01/2020,H59620200108RTEUFSRVC-1,124.88,SCHOOL HR TRANSACTIONAL TEAM-ADVERTISING STAFF VACANCIES,DIRECT MARKETING CONTINUITY SUBSCRIPTION MERCHANTS,GPC
WALSALL COUNCIL,HTTP://OPENDATACOMMUNITIES.ORG/ID/METROPOLITAN-DISTRICT-COUNCIL/WALSALL,31/03/2020,RESOURCES & TRANSFORMATION,FARMFOODS- WALSALL,06/01/2020,H59620200108SCDKSFLPH-1,9.00,CORPORATE MANAGEMENT TEAM-FOOD & DRINK SUPPLIES,GROCERY STORES AND SUPERMARKETS,GPC
WALSALL COUNCIL,HTTP://OPENDATACOMMUNITIES.ORG/ID/METROPOLITAN-DISTRICT-COUNCIL/WALSALL,31/03/2020,CHILDRENS SERVICES,W M MORRISONS.COM,06/01/2020,H59620200108SFPXLXMHV-1,16.74,57 LICHFIELD ROAD-FOOD & DRINK SUPPLIES,GROCERY STORES AND SUPERMARKETS,GPC
WALSALL COUNCIL,HTTP://OPENDATACOMMUNITIES.ORG/ID/METROPOLITAN-DISTRICT-COUNCIL/WALSALL,31/03/2020,CHILDRENS SERVICES,W M MORRISONS.COM,06/01/2020,H59620200108SFPXLXMHV-2,75.66,57 LICHFIELD ROAD-FOOD & DRINK SUPPLIES,GROCERY STORES AND SUPERMARKETS,GPC
WALSALL COUNCIL,HTTP://OPENDATACOMMUNITIES.ORG/ID/METROPOLITAN-DISTRICT-COUNCIL/WALSALL,31/03/2020,ECONOMY & ENVIRONMENT,VESTA VODAFONE,06/01/2020,H59620200108SXNYFLDAD-1,72.36,POLLUTION DIVISION-LANDLINE PHONES,TELECOMMUNICATION SERVICES,GPC
WALSALL COUNCIL,HTTP://OPENDATACOMMUNITIES.ORG/ID/METROPOLITAN-DISTRICT-COUNCIL/WALSALL,31/03/2020,CHILDRENS SERVICES,WEST MID TRAVEL,06/01/2020,H59620200108TDYCLCGGG-1,236.35,YOUTH JUSTICE SERVICE-OFFICER/STAFF-PUBLIC TRANSPORT,BUS LINES,GPC
WALSALL COUNCIL,HTTP://OPENDATACOMMUNITIES.ORG/ID/METROPOLITAN-DISTRICT-COUNCIL/WALSALL,31/03/2020,RESOURCES & TRANSFORMATION,WM MORRISONS STORE,06/01/2020,H59620200108TLCKQKBCG-1,10.00,TOWN HALL RESTAURANT BISTRO-FOOD & DRINK SUPPLIES,GROCERY STORES AND SUPERMARKETS,GPC
WALSALL COUNCIL,HTTP://OPENDATACOMMUNITIES.ORG/ID/METROPOLITAN-DISTRICT-COUNCIL/WALSALL,31/03/2020,CHILDRENS SERVICES,CADBURY WORLD INTERNET,06/01/2020,H59620200108TVXXMYRXJ-1,53.80,PUPIL AWARDS-GENERAL MATERIALS,"AMUSEMENT PARKS, CARNIVALS, CIRCUSES",GPC
WALSALL COUNCIL,HTTP://OPENDATACOMMUNITIES.ORG/ID/METROPOLITAN-DISTRICT-COUNCIL/WALSALL,31/03/2020,SCHOOLS,BT BILL PAYMENT 2,06/01/2020,H59620200108TWLGNSAIP-1,103.80,ADMINISTRATIVE SUPPLIES-GENERAL MATERIALS,TELECOMMUNICATION EQUIPMENT & SALES,GPC
WALSALL COUNCIL,HTTP://OPENDATACOMMUNITIES.ORG/ID/METROPOLITAN-DISTRICT-COUNCIL/WALSALL,31/03/2020,ECONOMY & ENVIRONMENT,AMZNMKTPLACE,06/01/2020,H59620200108UPFFBTWUF-1,25.96,BLOXWICH LEISURE CENTRE-GENERAL MATERIALS,MISCELLANEOUS AND SPECIALTY RETAIL STORES,GPC
WALSALL COUNCIL,HTTP://OPENDATACOMMUNITIES.ORG/ID/METROPOLITAN-DISTRICT-COUNCIL/WALSALL,31/03/2020,CHILDRENS SERVICES,HOTEL ON BOOKING.COM,06/01/2020,H59620200108VBSBBGMVE-1,60.00,SAFEGUARDING & FAMILY SUPPORT-HOTEL ACCOMMODATION-EMPLOYEES,"HOTELS, MOTELS, RESORTS",GPC
WALSALL COUNCIL,HTTP://OPENDATACOMMUNITIES.ORG/ID/METROPOLITAN-DISTRICT-COUNCIL/WALSALL,31/03/2020,CHILDRENS SERVICES,WM MORRISONS STORE,06/01/2020,H59620200108VWYXOEEPY-1,4.00,ADOLESCENT SERVICE-FOOD & DRINK SUPPLIES,GROCERY STORES AND SUPERMARKETS,GPC
WALSALL COUNCIL,HTTP://OPENDATACOMMUNITIES.ORG/ID/METROPOLITAN-DISTRICT-COUNCIL/WALSALL,31/03/2020,CHILDRENS SERVICES,WWW.TARPAULINSDIRECT.C,06/01/2020,H59620200108WTVEGWNSF-1,79.98,CONTINGENCY-GENERAL MATERIALS,TENT AND AWNING SHOPS,GPC
WALSALL COUNCIL,HTTP://OPENDATACOMMUNITIES.ORG/ID/METROPOLITAN-DISTRICT-COUNCIL/WALSALL,31/03/2020,RESOURCES & TRANSFORMATION,TRAVELODGE GB0000,06/01/2020,H59620200108XCSBYQMIB-1,73.50,BED & BREAKFAST PAYMENTS-BED & BREAKFAST PAYMENTS,TRAVELODGE,GPC
WALSALL COUNCIL,HTTP://OPENDATACOMMUNITIES.ORG/ID/METROPOLITAN-DISTRICT-COUNCIL/WALSALL,31/03/2020,RESOURCES & TRANSFORMATION,TRAVELODGE GB0000,06/01/2020,H59620200108XCSBYQMIB-2,298.00,BED & BREAKFAST PAYMENTS-BED & BREAKFAST PAYMENTS,TRAVELODGE,GPC
WALSALL COUNCIL,HTTP://OPENDATACOMMUNITIES.ORG/ID/METROPOLITAN-DISTRICT-COUNCIL/WALSALL,31/03/2020,CHILDRENS SERVICES,W M MORRISON STORE,06/01/2020,H59620200108ZBQEKGQIH-1,9.00,ELMWOOD SCHOOL-CATERING,GROCERY STORES AND SUPERMARKETS,GPC
WALSALL COUNCIL,HTTP://OPENDATACOMMUNITIES.ORG/ID/METROPOLITAN-DISTRICT-COUNCIL/WALSALL,31/03/2020,CHILDRENS SERVICES,WALSALL STN T/O,06/01/2020,H59620200108ZUEJVVFKR-1,101.40,LOOKED AFTER CHILDRENS SOCIAL -SECTION 34 (CONTACT),PASSENGER RAILWAYS,GPC
WALSALL COUNCIL,HTTP://OPENDATACOMMUNITIES.ORG/ID/METROPOLITAN-DISTRICT-COUNCIL/WALSALL,31/03/2020,ECONOMY & ENVIRONMENT,PRIMARK 690,06/01/2020,H59620200109QDKNDZTEK-1,22.25,YEI ESF FUNDING-CLOTHING & LAUNDRY,CLOTHING STORES,GPC
WALSALL COUNCIL,HTTP://OPENDATACOMMUNITIES.ORG/ID/METROPOLITAN-DISTRICT-COUNCIL/WALSALL,31/03/2020,ECONOMY & ENVIRONMENT,PRIMARK 690,06/01/2020,H59620200109QDKNDZTEK-2,22.25,YEI (IMPACT) PROGRAMME-PROFESSIONAL FEES AND SERVICES,CLOTHING STORES,GPC
WALSALL COUNCIL,HTTP://OPENDATACOMMUNITIES.ORG/ID/METROPOLITAN-DISTRICT-COUNCIL/WALSALL,31/03/2020,RESOURCES & TRANSFORMATION,WWW.SCC.COM,06/01/2020,H59620200129EOFKRFIQI-1,105.74,RECHARGEABLE EQUIPMENT-COMPUTER EQUIPMENT AND SUPPLIE,"COMPUTERS, COMPUTER PERIPHERAL EQUIPMENT, SOFTWARE",GPC
WALSALL COUNCIL,HTTP://OPENDATACOMMUNITIES.ORG/ID/METROPOLITAN-DISTRICT-COUNCIL/WALSALL,31/03/2020,RESOURCES & TRANSFORMATION,WWW.SCC.COM,06/01/2020,H59620200213FJGSBQOKV-1,63.82,RECHARGEABLE EQUIPMENT-COMPUTER EQUIPMENT AND SUPPLIE,"COMPUTERS, COMPUTER PERIPHERAL EQUIPMENT, SOFTWARE",GPC
WALSALL COUNCIL,HTTP://OPENDATACOMMUNITIES.ORG/ID/METROPOLITAN-DISTRICT-COUNCIL/WALSALL,31/03/2020,RESOURCES & TRANSFORMATION,ARTHUR BRETT CATER,07/01/2020,H59620200109BBQQHKSOE-1,56.14,CA ST BERNADETTES CATHOLIC PRI-FOOD & DRINK SUPPLIES,MISCELLANEOUS FOOD STORES & CONVENIENCE STORES,GPC
WALSALL COUNCIL,HTTP://OPENDATACOMMUNITIES.ORG/ID/METROPOLITAN-DISTRICT-COUNCIL/WALSALL,31/03/2020,CHILDRENS SERVICES,AMZNMKTPLACE,07/01/2020,H59620200109BFQTIRHUJ-1,64.10,SEN-STATIONERY & GENERAL SUPPLIES,MISCELLANEOUS AND SPECIALTY RETAIL STORES,GPC
WALSALL COUNCIL,HTTP://OPENDATACOMMUNITIES.ORG/ID/METROPOLITAN-DISTRICT-COUNCIL/WALSALL,31/03/2020,RESOURCES & TRANSFORMATION,ARTHUR BRETT CATER,07/01/2020,H59620200109BKLQLVMCM-1,221.12,CA ST JOHNS C.E. PRIMARY SCHOO-FOOD & DRINK SUPPLIES,MISCELLANEOUS FOOD STORES & CONVENIENCE STORES,GPC
WALSALL COUNCIL,HTTP://OPENDATACOMMUNITIES.ORG/ID/METROPOLITAN-DISTRICT-COUNCIL/WALSALL,31/03/2020,SCHOOLS,SP * LOWPLEXBOOKS,07/01/2020,H59620200109BVMUYXMBD-1,51.98,E19-GENERAL MATERIALS,COMPUTER SOFTWARE STORES,GPC
WALSALL COUNCIL,HTTP://OPENDATACOMMUNITIES.ORG/ID/METROPOLITAN-DISTRICT-COUNCIL/WALSALL,31/03/2020,CHILDRENS SERVICES,ASDA GROCERIES ONLINE,07/01/2020,H59620200109CKLLPHFCS-1,5.00,SPECIAL FACILITIES -  BEFORE/A-GENERAL MATERIALS,GROCERY STORES AND SUPERMARKETS,GPC
WALSALL COUNCIL,HTTP://OPENDATACOMMUNITIES.ORG/ID/METROPOLITAN-DISTRICT-COUNCIL/WALSALL,31/03/2020,CHILDRENS SERVICES,ASDA GROCERIES ONLINE,07/01/2020,H59620200109CKLLPHFCS-2,48.32,SPECIAL FACILITIES -  BEFORE/A-GENERAL MATERIALS,GROCERY STORES AND SUPERMARKETS,GPC
WALSALL COUNCIL,HTTP://OPENDATACOMMUNITIES.ORG/ID/METROPOLITAN-DISTRICT-COUNCIL/WALSALL,31/03/2020,SCHOOLS,AMZNMKTPLACE,07/01/2020,H59620200109CNDGJPLVK-1,220.65,E19-GENERAL MATERIALS,MISCELLANEOUS AND SPECIALTY RETAIL STORES,GPC
WALSALL COUNCIL,HTTP://OPENDATACOMMUNITIES.ORG/ID/METROPOLITAN-DISTRICT-COUNCIL/WALSALL,31/03/2020,CHILDRENS SERVICES,JOHAL DAIRIES LTD,07/01/2020,H59620200109CNVXLOEEU-1,7.20,57 LICHFIELD ROAD-FOOD & DRINK SUPPLIES,OTHER NONDURABLE GOODS,GPC
WALSALL COUNCIL,HTTP://OPENDATACOMMUNITIES.ORG/ID/METROPOLITAN-DISTRICT-COUNCIL/WALSALL,31/03/2020,CHILDRENS SERVICES,HOTEL ON BOOKING.COM,07/01/2020,H59620200109CSWOMUTMM-1,59.00,SAFEGUARDING & FAMILY SUPPORT-HOTEL ACCOMMODATION-EMPLOYEES,"HOTELS, MOTELS, RESORTS",GPC
WALSALL COUNCIL,HTTP://OPENDATACOMMUNITIES.ORG/ID/METROPOLITAN-DISTRICT-COUNCIL/WALSALL,31/03/2020,RESOURCES & TRANSFORMATION,ARTHUR BRETT CATER,07/01/2020,H59620200109DBPPJDRPN-1,85.69,CA WHITEHALL JUNIOR COMMUNITY -FOOD & DRINK SUPPLIES,MISCELLANEOUS FOOD STORES & CONVENIENCE STORES,GPC
WALSALL COUNCIL,HTTP://OPENDATACOMMUNITIES.ORG/ID/METROPOLITAN-DISTRICT-COUNCIL/WALSALL,31/03/2020,ECONOMY & ENVIRONMENT,AVENUEGROUP,07/01/2020,H59620200109DEUXGBVLI-1,14.98,CENTRALISED STATIONARY-STATIONERY & GENERAL SUPPLIES,"OFFICE, SCHOOL SUPPLY, AND STATIONERY STORES",GPC
WALSALL COUNCIL,HTTP://OPENDATACOMMUNITIES.ORG/ID/METROPOLITAN-DISTRICT-COUNCIL/WALSALL,31/03/2020,ECONOMY & ENVIRONMENT,AMZNMKTPLACE,07/01/2020,H59620200109DOUWLEEOF-1,25.11,WALSALL ARENA AND ARTS CENTRE-FURNITURE & EQUIPMENT,MISCELLANEOUS AND SPECIALTY RETAIL STORES,GPC
WALSALL COUNCIL,HTTP://OPENDATACOMMUNITIES.ORG/ID/METROPOLITAN-DISTRICT-COUNCIL/WALSALL,31/03/2020,RESOURCES & TRANSFORMATION,ARTHUR BRETT CATER,07/01/2020,H59620200109DXEYBTXTT-1,95.19,CA CROFT COMMUNITY PRIMARY SCH-FOOD & DRINK SUPPLIES,MISCELLANEOUS FOOD STORES & CONVENIENCE STORES,GPC
WALSALL COUNCIL,HTTP://OPENDATACOMMUNITIES.ORG/ID/METROPOLITAN-DISTRICT-COUNCIL/WALSALL,31/03/2020,RESOURCES & TRANSFORMATION,ARTHUR BRETT CATER,07/01/2020,H59620200109DZMCJRNEH-1,50.37,CA ALUMWELL INFANT SCHOOL-FOOD & DRINK SUPPLIES,MISCELLANEOUS FOOD STORES & CONVENIENCE STORES,GPC
WALSALL COUNCIL,HTTP://OPENDATACOMMUNITIES.ORG/ID/METROPOLITAN-DISTRICT-COUNCIL/WALSALL,31/03/2020,RESOURCES & TRANSFORMATION,ARTHUR BRETT CATER,07/01/2020,H59620200109EJSCTOCTO-1,97.21,CA RUSHALL JMI SCHOOL-FOOD & DRINK SUPPLIES,MISCELLANEOUS FOOD STORES & CONVENIENCE STORES,GPC
WALSALL COUNCIL,HTTP://OPENDATACOMMUNITIES.ORG/ID/METROPOLITAN-DISTRICT-COUNCIL/WALSALL,31/03/2020,SCHOOLS,AMZNMKTPLACE,07/01/2020,H59620200109EKIECKQXH-1,239.85,E19-GENERAL MATERIALS,MISCELLANEOUS AND SPECIALTY RETAIL STORES,GPC
WALSALL COUNCIL,HTTP://OPENDATACOMMUNITIES.ORG/ID/METROPOLITAN-DISTRICT-COUNCIL/WALSALL,31/03/2020,CHILDRENS SERVICES,AMAZON.CO.UK*QC7NH4JO5,07/01/2020,H59620200109EKIHEBNMN-1,5.75,LITERACY-LIBRARY BOOKS,OTHER DIRECT MARKETING-OTHER DIRECT MARKETERS,GPC
WALSALL COUNCIL,HTTP://OPENDATACOMMUNITIES.ORG/ID/METROPOLITAN-DISTRICT-COUNCIL/WALSALL,31/03/2020,RESOURCES & TRANSFORMATION,ARTHUR BRETT CATER,07/01/2020,H59620200109ELKPNIISQ-1,102.65,CA BROWNHILLS WEST PRIMARY SCH-FOOD & DRINK SUPPLIES,MISCELLANEOUS FOOD STORES & CONVENIENCE STORES,GPC
WALSALL COUNCIL,HTTP://OPENDATACOMMUNITIES.ORG/ID/METROPOLITAN-DISTRICT-COUNCIL/WALSALL,31/03/2020,RESOURCES & TRANSFORMATION,HOMEBASE LTD 114,07/01/2020,H59620200109EMJAOEQVD-1,199.00,CA ST GILES C.E. PRIMARY SCHOO-FURNITURE & EQUIPMENT,HOME SUPPLY WAREHOUSE STORES,GPC
WALSALL COUNCIL,HTTP://OPENDATACOMMUNITIES.ORG/ID/METROPOLITAN-DISTRICT-COUNCIL/WALSALL,31/03/2020,SCHOOLS,WM MORRISONS STORE,07/01/2020,H59620200109EUOQLRYHJ-1,9.20,CHUCKERY PRIMARY SCHOOL-FOOD & DRINK SUPPLIES,GROCERY STORES AND SUPERMARKETS,GPC
WALSALL COUNCIL,HTTP://OPENDATACOMMUNITIES.ORG/ID/METROPOLITAN-DISTRICT-COUNCIL/WALSALL,31/03/2020,SCHOOLS,WM MORRISONS STORE,07/01/2020,H59620200109EUOQLRYHJ-2,37.10,CHUCKERY PRIMARY SCHOOL-FOOD & DRINK SUPPLIES,GROCERY STORES AND SUPERMARKETS,GPC
WALSALL COUNCIL,HTTP://OPENDATACOMMUNITIES.ORG/ID/METROPOLITAN-DISTRICT-COUNCIL/WALSALL,31/03/2020,RESOURCES & TRANSFORMATION,ARTHUR BRETT CATER,07/01/2020,H59620200109EYDJCLXOC-1,54.34,CA WATLING STREET PRIMARY SCHO-FOOD & DRINK SUPPLIES,MISCELLANEOUS FOOD STORES & CONVENIENCE STORES,GPC
WALSALL COUNCIL,HTTP://OPENDATACOMMUNITIES.ORG/ID/METROPOLITAN-DISTRICT-COUNCIL/WALSALL,31/03/2020,RESOURCES & TRANSFORMATION,ARTHUR BRETT CATER,07/01/2020,H59620200109FBKLWBDRJ-1,83.60,CA BUSILL JONES PRIMARY SCHOOL-FOOD & DRINK SUPPLIES,MISCELLANEOUS FOOD STORES & CONVENIENCE STORES,GPC
WALSALL COUNCIL,HTTP://OPENDATACOMMUNITIES.ORG/ID/METROPOLITAN-DISTRICT-COUNCIL/WALSALL,31/03/2020,RESOURCES & TRANSFORMATION,ARTHUR BRETT CATER,07/01/2020,H59620200109FERQNFJUC-1,57.10,CA ST MICHAELS C.E. PRIMARY SC-FOOD & DRINK SUPPLIES,MISCELLANEOUS FOOD STORES & CONVENIENCE STORES,GPC
WALSALL COUNCIL,HTTP://OPENDATACOMMUNITIES.ORG/ID/METROPOLITAN-DISTRICT-COUNCIL/WALSALL,31/03/2020,CHILDRENS SERVICES,AMZNMKTPLACE,07/01/2020,H59620200109FFCTEFJDK-1,29.94,FOUNDATION STAGE/EARLY YEARS-GENERAL MATERIALS,MISCELLANEOUS AND SPECIALTY RETAIL STORES,GPC
WALSALL COUNCIL,HTTP://OPENDATACOMMUNITIES.ORG/ID/METROPOLITAN-DISTRICT-COUNCIL/WALSALL,31/03/2020,RESOURCES & TRANSFORMATION,ARTHUR BRETT CATER,07/01/2020,H59620200109FKRRUNHYI-1,22.39,CA BLOXWICH C.E. JMI PRIMARY S-FOOD & DRINK SUPPLIES,MISCELLANEOUS FOOD STORES & CONVENIENCE STORES,GPC
WALSALL COUNCIL,HTTP://OPENDATACOMMUNITIES.ORG/ID/METROPOLITAN-DISTRICT-COUNCIL/WALSALL,31/03/2020,CHILDRENS SERVICES,AMZNMKTPLACE,07/01/2020,H59620200109FOHXVJNHQ-1,9.59,FOUNDATION STAGE-GENERAL MATERIALS,MISCELLANEOUS AND SPECIALTY RETAIL STORES,GPC
WALSALL COUNCIL,HTTP://OPENDATACOMMUNITIES.ORG/ID/METROPOLITAN-DISTRICT-COUNCIL/WALSALL,31/03/2020,RESOURCES & TRANSFORMATION,ARTHUR BRETT CATER,07/01/2020,H59620200109FXKXEPEJO-1,51.83,CA LITTLE BLOXWICH CE PRIMARY -FOOD & DRINK SUPPLIES,MISCELLANEOUS FOOD STORES & CONVENIENCE STORES,GPC
WALSALL COUNCIL,HTTP://OPENDATACOMMUNITIES.ORG/ID/METROPOLITAN-DISTRICT-COUNCIL/WALSALL,31/03/2020,CHILDRENS SERVICES,AMAZON.CO.UK*LU3Q68AX5,07/01/2020,H59620200109GEHDEMNTY-1,37.22,SIXTH FORM - YEAR 12-GENERAL MATERIALS,OTHER DIRECT MARKETING-OTHER DIRECT MARKETERS,GPC
WALSALL COUNCIL,HTTP://OPENDATACOMMUNITIES.ORG/ID/METROPOLITAN-DISTRICT-COUNCIL/WALSALL,31/03/2020,ECONOMY & ENVIRONMENT,BOCONLINE.CO.UK,07/01/2020,H59620200109GGMWSUDWQ-1,11.52,WALSALL TOWN HALL-FURNITURE & EQUIPMENT,HOUSEHOLD APPLIANCE STORES,GPC
WALSALL COUNCIL,HTTP://OPENDATACOMMUNITIES.ORG/ID/METROPOLITAN-DISTRICT-COUNCIL/WALSALL,31/03/2020,ECONOMY & ENVIRONMENT,AMZNMKTPLACE,07/01/2020,H59620200109GHZKIXHKA-1,23.94,WALSALL ARENA AND ARTS CENTRE-STATIONERY & GENERAL SUPPLIES,MISCELLANEOUS AND SPECIALTY RETAIL STORES,GPC
WALSALL COUNCIL,HTTP://OPENDATACOMMUNITIES.ORG/ID/METROPOLITAN-DISTRICT-COUNCIL/WALSALL,31/03/2020,ECONOMY & ENVIRONMENT,AMZNMKTPLACE,07/01/2020,H59620200109GWJBYDMYM-1,25.97,WALSALL ARENA AND ARTS CENTRE-FURNITURE & EQUIPMENT,MISCELLANEOUS AND SPECIALTY RETAIL STORES,GPC
WALSALL COUNCIL,HTTP://OPENDATACOMMUNITIES.ORG/ID/METROPOLITAN-DISTRICT-COUNCIL/WALSALL,31/03/2020,RESOURCES & TRANSFORMATION,ARTHUR BRETT CATER,07/01/2020,H59620200109GXDCUASUJ-1,121.78,CA ELMORE GREEN PRIMARY SCHOOL-FOOD & DRINK SUPPLIES,MISCELLANEOUS FOOD STORES & CONVENIENCE STORES,GPC
WALSALL COUNCIL,HTTP://OPENDATACOMMUNITIES.ORG/ID/METROPOLITAN-DISTRICT-COUNCIL/WALSALL,31/03/2020,CHILDRENS SERVICES,AMAZON.CO.UK*8A2V20AO5,07/01/2020,H59620200109GXGLYLDDN-1,21.31,PRIMARY-GENERAL MATERIALS,OTHER DIRECT MARKETING-OTHER DIRECT MARKETERS,GPC
WALSALL COUNCIL,HTTP://OPENDATACOMMUNITIES.ORG/ID/METROPOLITAN-DISTRICT-COUNCIL/WALSALL,31/03/2020,RESOURCES & TRANSFORMATION,ARTHUR BRETT CATER,07/01/2020,H59620200109GYRBHUIYT-1,113.92,CA LINDENS PRIMARY SCHOOL-FOOD & DRINK SUPPLIES,MISCELLANEOUS FOOD STORES & CONVENIENCE STORES,GPC
WALSALL COUNCIL,HTTP://OPENDATACOMMUNITIES.ORG/ID/METROPOLITAN-DISTRICT-COUNCIL/WALSALL,31/03/2020,RESOURCES & TRANSFORMATION,ARTHUR BRETT CATER,07/01/2020,H59620200109HCWBWUFPQ-1,176.71,CA MEADOW VIEW JMI PRIMARY SCH-FOOD & DRINK SUPPLIES,MISCELLANEOUS FOOD STORES & CONVENIENCE STORES,GPC
WALSALL COUNCIL,HTTP://OPENDATACOMMUNITIES.ORG/ID/METROPOLITAN-DISTRICT-COUNCIL/WALSALL,31/03/2020,RESOURCES & TRANSFORMATION,NOBISCO LIMITED,07/01/2020,H59620200109ICCAHTFMM-1,6.59,CA BARCROFT D/C-FURNITURE & EQUIPMENT,OTHER INDUSTRIAL SUPPLIES,GPC
WALSALL COUNCIL,HTTP://OPENDATACOMMUNITIES.ORG/ID/METROPOLITAN-DISTRICT-COUNCIL/WALSALL,31/03/2020,CHILDRENS SERVICES,WWW.WMCA.CO.UK,07/01/2020,H59620200109IGNYHNLVE-1,7.50,SUPPORT UNDER SECT 23 OF THE C-SUPPORT UNDER SECTION 23 OF TH,PASSENGER RAILWAYS,GPC
WALSALL COUNCIL,HTTP://OPENDATACOMMUNITIES.ORG/ID/METROPOLITAN-DISTRICT-COUNCIL/WALSALL,31/03/2020,RESOURCES & TRANSFORMATION,ARTHUR BRETT CATER,07/01/2020,H59620200109ITPGYOYIU-1,113.76,CA BARCROFT D/C-FOOD & DRINK SUPPLIES,MISCELLANEOUS FOOD STORES & CONVENIENCE STORES,GPC
WALSALL COUNCIL,HTTP://OPENDATACOMMUNITIES.ORG/ID/METROPOLITAN-DISTRICT-COUNCIL/WALSALL,31/03/2020,RESOURCES & TRANSFORMATION,ARTHUR BRETT CATER,07/01/2020,H59620200109JATERUABC-1,113.08,CA RADLEYS PRIMARY SCHOOL-FOOD & DRINK SUPPLIES,MISCELLANEOUS FOOD STORES & CONVENIENCE STORES,GPC
WALSALL COUNCIL,HTTP://OPENDATACOMMUNITIES.ORG/ID/METROPOLITAN-DISTRICT-COUNCIL/WALSALL,31/03/2020,CHILDRENS SERVICES,AMZNMKTPLACE,07/01/2020,H59620200109JGLEWDRUG-1,11.48,CURRICULUM STOCK-GENERAL MATERIALS,MISCELLANEOUS AND SPECIALTY RETAIL STORES,GPC
WALSALL COUNCIL,HTTP://OPENDATACOMMUNITIES.ORG/ID/METROPOLITAN-DISTRICT-COUNCIL/WALSALL,31/03/2020,RESOURCES & TRANSFORMATION,REGISTRATION SERVICES,07/01/2020,H59620200109JLVEJZYNC-1,11.00,ADVICE & GUIDANCE SERVICE-OTHER FEES & LICENCES-SERVICES,OTHER RECREATION SERVICES,GPC
WALSALL COUNCIL,HTTP://OPENDATACOMMUNITIES.ORG/ID/METROPOLITAN-DISTRICT-COUNCIL/WALSALL,31/03/2020,ECONOMY & ENVIRONMENT,MIDLANDCHILLED.CO.,07/01/2020,H59620200109JLWBMDRHX-1,222.46,BLOXWICH LEISURE CENTRE-FOOD & DRINK SUPPLIES,MOTOR FREIGHT CARRIERS,GPC
WALSALL COUNCIL,HTTP://OPENDATACOMMUNITIES.ORG/ID/METROPOLITAN-DISTRICT-COUNCIL/WALSALL,31/03/2020,CHILDRENS SERVICES,AMZNMKTPLACE,07/01/2020,H59620200109JMNGBYUVW-1,5.94,SEN-STATIONERY & GENERAL SUPPLIES,MISCELLANEOUS AND SPECIALTY RETAIL STORES,GPC
WALSALL COUNCIL,HTTP://OPENDATACOMMUNITIES.ORG/ID/METROPOLITAN-DISTRICT-COUNCIL/WALSALL,31/03/2020,CHILDRENS SERVICES,NANDOS WEDNESFIELD,07/01/2020,H59620200109JZYDUIDYW-1,44.45,"43A HILTON ROAD, WILLENHALL-RESIDENTS PERSONAL EXPENSES-AL","EATING PLACES, RESTAURANTS",GPC
WALSALL COUNCIL,HTTP://OPENDATACOMMUNITIES.ORG/ID/METROPOLITAN-DISTRICT-COUNCIL/WALSALL,31/03/2020,CHILDRENS SERVICES,AMZNMKTPLACE,07/01/2020,H59620200109KRXPXAVMW-1,2.99,SEN-STATIONERY & GENERAL SUPPLIES,MISCELLANEOUS AND SPECIALTY RETAIL STORES,GPC
WALSALL COUNCIL,HTTP://OPENDATACOMMUNITIES.ORG/ID/METROPOLITAN-DISTRICT-COUNCIL/WALSALL,31/03/2020,SCHOOLS,BUZZ CONNECT,07/01/2020,H59620200109KZCABGXJQ-1,12.96,ADMINISTRATIVE SUPPLIES-GENERAL MATERIALS,TELECOMMUNICATION SERVICES,GPC
WALSALL COUNCIL,HTTP://OPENDATACOMMUNITIES.ORG/ID/METROPOLITAN-DISTRICT-COUNCIL/WALSALL,31/03/2020,CHILDRENS SERVICES,ROCK UP LIMITED,07/01/2020,H59620200109KZPWYBMRY-1,225.00,REWARDS-GENERAL MATERIALS,"ATHLETIC FIELDS, COMMERCIAL SPORTS SERVICES",GPC
WALSALL COUNCIL,HTTP://OPENDATACOMMUNITIES.ORG/ID/METROPOLITAN-DISTRICT-COUNCIL/WALSALL,31/03/2020,RESOURCES & TRANSFORMATION,ARTHUR BRETT CATER,07/01/2020,H59620200109LHCSBLXSF-1,49.61,CA CASTLEFORT JMI SCHOOL-FOOD & DRINK SUPPLIES,MISCELLANEOUS FOOD STORES & CONVENIENCE STORES,GPC
WALSALL COUNCIL,HTTP://OPENDATACOMMUNITIES.ORG/ID/METROPOLITAN-DISTRICT-COUNCIL/WALSALL,31/03/2020,SCHOOLS,CO-OPERATIVE FOOD,07/01/2020,H59620200109LJWHFXKIN-1,12.18,CADMUS FEDERATION-FREE STAFF MEALS-EMPLOYEES,GROCERY STORES AND SUPERMARKETS,GPC
WALSALL COUNCIL,HTTP://OPENDATACOMMUNITIES.ORG/ID/METROPOLITAN-DISTRICT-COUNCIL/WALSALL,31/03/2020,SCHOOLS,CO-OPERATIVE FOOD,07/01/2020,H59620200109LJWHFXKIN-2,0.05,CADMUS FEDERATION-FREE STAFF MEALS-EMPLOYEES,GROCERY STORES AND SUPERMARKETS,GPC
WALSALL COUNCIL,HTTP://OPENDATACOMMUNITIES.ORG/ID/METROPOLITAN-DISTRICT-COUNCIL/WALSALL,31/03/2020,CHILDRENS SERVICES,AMAZON.CO.UK*QD8UR0QG5,07/01/2020,H59620200109LZXTGGXGY-1,5.24,LITERACY-LIBRARY BOOKS,OTHER DIRECT MARKETING-OTHER DIRECT MARKETERS,GPC
WALSALL COUNCIL,HTTP://OPENDATACOMMUNITIES.ORG/ID/METROPOLITAN-DISTRICT-COUNCIL/WALSALL,31/03/2020,ECONOMY & ENVIRONMENT,W & J SMITH (METAL STOCK,07/01/2020,H59620200109MEXZCXDLV-1,31.20,INFRASTRUCTURE MAINTENANCE-GENERAL MATERIALS,OTHER INDUSTRIAL SUPPLIES,GPC
WALSALL COUNCIL,HTTP://OPENDATACOMMUNITIES.ORG/ID/METROPOLITAN-DISTRICT-COUNCIL/WALSALL,31/03/2020,ECONOMY & ENVIRONMENT,PAYPAL *TRAILERTEK,07/01/2020,H59620200109MRZEJVDLQ-1,111.89,FLEET-GENERAL MATERIALS,"AUTOMOTIVE PARTS, ACCESSORIES STORES",GPC
WALSALL COUNCIL,HTTP://OPENDATACOMMUNITIES.ORG/ID/METROPOLITAN-DISTRICT-COUNCIL/WALSALL,31/03/2020,CHILDRENS SERVICES,AMZNMKTPLACE,07/01/2020,H59620200109NCKFNIHIE-1,17.08,BLUEBELLS-FURNITURE & EQUIPMENT,MISCELLANEOUS AND SPECIALTY RETAIL STORES,GPC
WALSALL COUNCIL,HTTP://OPENDATACOMMUNITIES.ORG/ID/METROPOLITAN-DISTRICT-COUNCIL/WALSALL,31/03/2020,RESOURCES & TRANSFORMATION,ARTHUR BRETT CATER,07/01/2020,H59620200109NHJGOQHTU-1,34.59,CA ABBEY PRIMARY SCHOOL-FOOD & DRINK SUPPLIES,MISCELLANEOUS FOOD STORES & CONVENIENCE STORES,GPC
WALSALL COUNCIL,HTTP://OPENDATACOMMUNITIES.ORG/ID/METROPOLITAN-DISTRICT-COUNCIL/WALSALL,31/03/2020,ECONOMY & ENVIRONMENT,ASDA SUPERSTORE,07/01/2020,H59620200109NQJENKKJO-1,5.35,BLOXWICH LEISURE CENTRE-GENERAL MATERIALS,GROCERY STORES AND SUPERMARKETS,GPC
WALSALL COUNCIL,HTTP://OPENDATACOMMUNITIES.ORG/ID/METROPOLITAN-DISTRICT-COUNCIL/WALSALL,31/03/2020,CHILDRENS SERVICES,AMAZON.CO.UK*FL8RN2W05,07/01/2020,H59620200109NTWVWVNXP-1,15.39,"43A HILTON ROAD, WILLENHALL-RESIDENTS PERSONAL EXPENSES-AL",OTHER DIRECT MARKETING-OTHER DIRECT MARKETERS,GPC
WALSALL COUNCIL,HTTP://OPENDATACOMMUNITIES.ORG/ID/METROPOLITAN-DISTRICT-COUNCIL/WALSALL,31/03/2020,CHILDRENS SERVICES,WWW.THEWORKS.CO.UK,07/01/2020,H59620200109NUKCPJJNI-1,172.50,ENGLISH-LIBRARY BOOKS,DISCOUNT STORES,GPC
WALSALL COUNCIL,HTTP://OPENDATACOMMUNITIES.ORG/ID/METROPOLITAN-DISTRICT-COUNCIL/WALSALL,31/03/2020,CHILDRENS SERVICES,AMZNMKTPLACE,07/01/2020,H59620200109OEUTYCGGE-1,35.92,P E DEPARTMENT-GENERAL MATERIALS,MISCELLANEOUS AND SPECIALTY RETAIL STORES,GPC
WALSALL COUNCIL,HTTP://OPENDATACOMMUNITIES.ORG/ID/METROPOLITAN-DISTRICT-COUNCIL/WALSALL,31/03/2020,RESOURCES & TRANSFORMATION,ARTHUR BRETT CATER,07/01/2020,H59620200109OJUTYRKIR-1,190.38,CA COOPER JORDAN CE PRIMARY SC-FOOD & DRINK SUPPLIES,MISCELLANEOUS FOOD STORES & CONVENIENCE STORES,GPC
WALSALL COUNCIL,HTTP://OPENDATACOMMUNITIES.ORG/ID/METROPOLITAN-DISTRICT-COUNCIL/WALSALL,31/03/2020,RESOURCES & TRANSFORMATION,ARTHUR BRETT CATER,07/01/2020,H59620200109OMBOVSCPN-1,75.95,CA ELMWOOD SPECIAL SCHOOL-FOOD & DRINK SUPPLIES,MISCELLANEOUS FOOD STORES & CONVENIENCE STORES,GPC
WALSALL COUNCIL,HTTP://OPENDATACOMMUNITIES.ORG/ID/METROPOLITAN-DISTRICT-COUNCIL/WALSALL,31/03/2020,RESOURCES & TRANSFORMATION,AMAZON.CO.UK*J817252M5,07/01/2020,H59620200109OPMRQRAUC-1,32.28,CL ADMIN-STATIONERY & GENERAL SUPPLIES,OTHER DIRECT MARKETING-OTHER DIRECT MARKETERS,GPC
WALSALL COUNCIL,HTTP://OPENDATACOMMUNITIES.ORG/ID/METROPOLITAN-DISTRICT-COUNCIL/WALSALL,31/03/2020,CHILDRENS SERVICES,AMZNMKTPLACE,07/01/2020,H59620200109ORRKPGEQR-1,9.95,WELFARE/SOCIAL CARE-GENERAL MATERIALS,MISCELLANEOUS AND SPECIALTY RETAIL STORES,GPC
WALSALL COUNCIL,HTTP://OPENDATACOMMUNITIES.ORG/ID/METROPOLITAN-DISTRICT-COUNCIL/WALSALL,31/03/2020,CHILDRENS SERVICES,AMZNMKTPLACE,07/01/2020,H59620200109PDJCZPMWP-1,13.91,SEN-STATIONERY & GENERAL SUPPLIES,MISCELLANEOUS AND SPECIALTY RETAIL STORES,GPC
WALSALL COUNCIL,HTTP://OPENDATACOMMUNITIES.ORG/ID/METROPOLITAN-DISTRICT-COUNCIL/WALSALL,31/03/2020,SCHOOLS,AMZNMKTPLACE,07/01/2020,H59620200109PZKNRUKSJ-1,13.84,E19-GENERAL MATERIALS,MISCELLANEOUS AND SPECIALTY RETAIL STORES,GPC
WALSALL COUNCIL,HTTP://OPENDATACOMMUNITIES.ORG/ID/METROPOLITAN-DISTRICT-COUNCIL/WALSALL,31/03/2020,RESOURCES & TRANSFORMATION,AMZNMKTPLACE,07/01/2020,H59620200109QCGEXRWFY-1,10.90,ACCOMMODATION SERVICES MANAGEM-STATIONERY & GENERAL SUPPLIES,MISCELLANEOUS AND SPECIALTY RETAIL STORES,GPC
WALSALL COUNCIL,HTTP://OPENDATACOMMUNITIES.ORG/ID/METROPOLITAN-DISTRICT-COUNCIL/WALSALL,31/03/2020,SCHOOLS,AMAZON.CO.UK*WG50V3V45,07/01/2020,H59620200109QDEDTFKCI-1,10.99,E19-LIBRARY BOOKS,OTHER DIRECT MARKETING-OTHER DIRECT MARKETERS,GPC
WALSALL COUNCIL,HTTP://OPENDATACOMMUNITIES.ORG/ID/METROPOLITAN-DISTRICT-COUNCIL/WALSALL,31/03/2020,CHILDRENS SERVICES,AMZNMKTPLACE,07/01/2020,H59620200109QFHWXJELO-1,149.92,EDUCATIONAL PSYCHOLOGISTS-STATIONERY & GENERAL SUPPLIES,MISCELLANEOUS AND SPECIALTY RETAIL STORES,GPC
WALSALL COUNCIL,HTTP://OPENDATACOMMUNITIES.ORG/ID/METROPOLITAN-DISTRICT-COUNCIL/WALSALL,31/03/2020,RESOURCES & TRANSFORMATION,ARTHUR BRETT CATER,07/01/2020,H59620200109QIIZAUVPP-1,64.16,CA WALSALL WOOD PRIMARY SCHOOL-FOOD & DRINK SUPPLIES,MISCELLANEOUS FOOD STORES & CONVENIENCE STORES,GPC
WALSALL COUNCIL,HTTP://OPENDATACOMMUNITIES.ORG/ID/METROPOLITAN-DISTRICT-COUNCIL/WALSALL,31/03/2020,SCHOOLS,AMZNMKTPLACE,07/01/2020,H59620200109QIKSIXFXK-1,98.85,E19-GENERAL MATERIALS,MISCELLANEOUS AND SPECIALTY RETAIL STORES,GPC
WALSALL COUNCIL,HTTP://OPENDATACOMMUNITIES.ORG/ID/METROPOLITAN-DISTRICT-COUNCIL/WALSALL,31/03/2020,RESOURCES & TRANSFORMATION,ARTHUR BRETT CATER,07/01/2020,H59620200109QRDEOAHPL-1,49.23,CA OLD HALL SPECIAL SCHOOL-FOOD & DRINK SUPPLIES,MISCELLANEOUS FOOD STORES & CONVENIENCE STORES,GPC
WALSALL COUNCIL,HTTP://OPENDATACOMMUNITIES.ORG/ID/METROPOLITAN-DISTRICT-COUNCIL/WALSALL,31/03/2020,CHILDRENS SERVICES,THE BRITISH ASSOCIATIO,07/01/2020,H59620200109RCXVKEHPZ-1,178.80,GENERAL MANAGEMENT SUPPORT (IN-EXTERNAL TRAINING,"ORGANIZATIONS, MEMBERSHIP",GPC
WALSALL COUNCIL,HTTP://OPENDATACOMMUNITIES.ORG/ID/METROPOLITAN-DISTRICT-COUNCIL/WALSALL,31/03/2020,RESOURCES & TRANSFORMATION,ARTHUR BRETT CATER,07/01/2020,H59620200109REXXQYFCY-1,92.48,CA ST GILES C.E. PRIMARY SCHOO-FOOD & DRINK SUPPLIES,MISCELLANEOUS FOOD STORES & CONVENIENCE STORES,GPC
WALSALL COUNCIL,HTTP://OPENDATACOMMUNITIES.ORG/ID/METROPOLITAN-DISTRICT-COUNCIL/WALSALL,31/03/2020,CHILDRENS SERVICES,AMZNMKTPLACE,07/01/2020,H59620200109RLIIQJGFK-1,12.66,SEN-STATIONERY & GENERAL SUPPLIES,MISCELLANEOUS AND SPECIALTY RETAIL STORES,GPC
WALSALL COUNCIL,HTTP://OPENDATACOMMUNITIES.ORG/ID/METROPOLITAN-DISTRICT-COUNCIL/WALSALL,31/03/2020,SCHOOLS,AMAZON.CO.UK*WY1U77K35,07/01/2020,H59620200109RUCAYZNPM-1,14.97,E19-LIBRARY BOOKS,OTHER DIRECT MARKETING-OTHER DIRECT MARKETERS,GPC
WALSALL COUNCIL,HTTP://OPENDATACOMMUNITIES.ORG/ID/METROPOLITAN-DISTRICT-COUNCIL/WALSALL,31/03/2020,CHILDRENS SERVICES,AMAZON.CO.UK*XF1WN1IY5,07/01/2020,H59620200109RWVIRIYZN-1,55.98,ADMINISTRATIVE SUPPLIES-GENERAL MATERIALS,OTHER DIRECT MARKETING-OTHER DIRECT MARKETERS,GPC
WALSALL COUNCIL,HTTP://OPENDATACOMMUNITIES.ORG/ID/METROPOLITAN-DISTRICT-COUNCIL/WALSALL,31/03/2020,RESOURCES & TRANSFORMATION,AMZNMKTPLACE,07/01/2020,H59620200109RZDQPBHJE-1,62.94,PRINTING SERVICES-GENERAL MATERIALS,MISCELLANEOUS AND SPECIALTY RETAIL STORES,GPC
WALSALL COUNCIL,HTTP://OPENDATACOMMUNITIES.ORG/ID/METROPOLITAN-DISTRICT-COUNCIL/WALSALL,31/03/2020,RESOURCES & TRANSFORMATION,ARTHUR BRETT CATER,07/01/2020,H59620200109THXPHSULR-1,111.35,CA BEACON PRIMARY SCHOOL-FOOD & DRINK SUPPLIES,MISCELLANEOUS FOOD STORES & CONVENIENCE STORES,GPC
WALSALL COUNCIL,HTTP://OPENDATACOMMUNITIES.ORG/ID/METROPOLITAN-DISTRICT-COUNCIL/WALSALL,31/03/2020,SCHOOLS,AMAZON.CO.UK*FU3X41QW5,07/01/2020,H59620200109TMITKHVHE-1,60.84,E19-GENERAL MATERIALS,OTHER DIRECT MARKETING-OTHER DIRECT MARKETERS,GPC
WALSALL COUNCIL,HTTP://OPENDATACOMMUNITIES.ORG/ID/METROPOLITAN-DISTRICT-COUNCIL/WALSALL,31/03/2020,CHILDRENS SERVICES,NAMCO UK LTD,07/01/2020,H59620200109TMTCSPMOF-1,50.00,REWARDS-GENERAL MATERIALS,"BANDS, ORCHESTRAS, AND MISCELLANEOUS ENTERTAINERS",GPC
WALSALL COUNCIL,HTTP://OPENDATACOMMUNITIES.ORG/ID/METROPOLITAN-DISTRICT-COUNCIL/WALSALL,31/03/2020,RESOURCES & TRANSFORMATION,ARTHUR BRETT CATER,07/01/2020,H59620200109TSOIIWPQZ-1,58.86,CA OAKWOOD SPECIAL SCHOOL-FOOD & DRINK SUPPLIES,MISCELLANEOUS FOOD STORES & CONVENIENCE STORES,GPC
WALSALL COUNCIL,HTTP://OPENDATACOMMUNITIES.ORG/ID/METROPOLITAN-DISTRICT-COUNCIL/WALSALL,31/03/2020,CHILDRENS SERVICES,SAINSBURYS S/MKT,07/01/2020,H59620200109UGHPTNXRH-1,5.50,FAMILY PLACEMENTS-FOOD & DRINK SUPPLIES,GROCERY STORES AND SUPERMARKETS,GPC
WALSALL COUNCIL,HTTP://OPENDATACOMMUNITIES.ORG/ID/METROPOLITAN-DISTRICT-COUNCIL/WALSALL,31/03/2020,CHILDRENS SERVICES,AMAZON.CO.UK*TS6710DB5,07/01/2020,H59620200109UMEDWSTBK-1,39.98,ADMINISTRATIVE SUPPLIES-GENERAL MATERIALS,OTHER DIRECT MARKETING-OTHER DIRECT MARKETERS,GPC
WALSALL COUNCIL,HTTP://OPENDATACOMMUNITIES.ORG/ID/METROPOLITAN-DISTRICT-COUNCIL/WALSALL,31/03/2020,RESOURCES & TRANSFORMATION,ARTHUR BRETT CATER,07/01/2020,H59620200109UNKWONGSU-1,126.79,CA LEIGHSWOOD PRIMARY SCHOOL-FOOD & DRINK SUPPLIES,MISCELLANEOUS FOOD STORES & CONVENIENCE STORES,GPC
WALSALL COUNCIL,HTTP://OPENDATACOMMUNITIES.ORG/ID/METROPOLITAN-DISTRICT-COUNCIL/WALSALL,31/03/2020,CHILDRENS SERVICES,AMAZON.CO.UK*K27I997H5,07/01/2020,H59620200109UVFDXUEBC-1,23.39,MEDIA-GENERAL MATERIALS,OTHER DIRECT MARKETING-OTHER DIRECT MARKETERS,GPC
WALSALL COUNCIL,HTTP://OPENDATACOMMUNITIES.ORG/ID/METROPOLITAN-DISTRICT-COUNCIL/WALSALL,31/03/2020,CHILDRENS SERVICES,TRAINLINE,07/01/2020,H59620200109VPILTNUXD-1,119.19,SAFEGUARDING & FAMILY SUPPORT-SECTION 34 (CONTACT),PASSENGER RAILWAYS,GPC
WALSALL COUNCIL,HTTP://OPENDATACOMMUNITIES.ORG/ID/METROPOLITAN-DISTRICT-COUNCIL/WALSALL,31/03/2020,RESOURCES & TRANSFORMATION,ARTHUR BRETT CATER,07/01/2020,H59620200109VUMDWNVAY-1,78.67,CA KINGSHILL SCHOOL-FOOD & DRINK SUPPLIES,MISCELLANEOUS FOOD STORES & CONVENIENCE STORES,GPC
WALSALL COUNCIL,HTTP://OPENDATACOMMUNITIES.ORG/ID/METROPOLITAN-DISTRICT-COUNCIL/WALSALL,31/03/2020,CHILDRENS SERVICES,TESCO STORES 6161,07/01/2020,H59620200109VUVWFDOZM-1,8.00,"43A HILTON ROAD, WILLENHALL-RESIDENTS PERSONAL EXPENSES-AL",GROCERY STORES AND SUPERMARKETS,GPC
WALSALL COUNCIL,HTTP://OPENDATACOMMUNITIES.ORG/ID/METROPOLITAN-DISTRICT-COUNCIL/WALSALL,31/03/2020,SCHOOLS,AMZNMKTPLACE,07/01/2020,H59620200109WIAMBMZJT-1,16.84,E19-LIBRARY BOOKS,MISCELLANEOUS AND SPECIALTY RETAIL STORES,GPC
WALSALL COUNCIL,HTTP://OPENDATACOMMUNITIES.ORG/ID/METROPOLITAN-DISTRICT-COUNCIL/WALSALL,31/03/2020,CHILDRENS SERVICES,TRU NINJA,07/01/2020,H59620200109WJJRTMKQU-1,154.00,REWARDS-GENERAL MATERIALS,OTHER RECREATION SERVICES,GPC
WALSALL COUNCIL,HTTP://OPENDATACOMMUNITIES.ORG/ID/METROPOLITAN-DISTRICT-COUNCIL/WALSALL,31/03/2020,RESOURCES & TRANSFORMATION,CITY OF WOLVERHAMPTON,07/01/2020,H59620200109WKUSEOIJE-1,16.00,HOMELESSNESS PREVENTION STRATE-MISC FEES AND EXPENSES,GOVERNMENT SERVICES,GPC
WALSALL COUNCIL,HTTP://OPENDATACOMMUNITIES.ORG/ID/METROPOLITAN-DISTRICT-COUNCIL/WALSALL,31/03/2020,RESOURCES & TRANSFORMATION,AMAZON.CO.UK*ON4RP4D25,07/01/2020,H59620200109WMKILWRIL-1,14.64,INTEGRATED FACILITIES MANAGEME-FURNITURE & EQUIPMENT,OTHER DIRECT MARKETING-OTHER DIRECT MARKETERS,GPC
WALSALL COUNCIL,HTTP://OPENDATACOMMUNITIES.ORG/ID/METROPOLITAN-DISTRICT-COUNCIL/WALSALL,31/03/2020,RESOURCES & TRANSFORMATION,NOBISCO LIMITED,07/01/2020,H59620200109WTDGYVICR-1,39.82,CA MOORCROFT WOOD-FOOD & DRINK SUPPLIES,OTHER INDUSTRIAL SUPPLIES,GPC
WALSALL COUNCIL,HTTP://OPENDATACOMMUNITIES.ORG/ID/METROPOLITAN-DISTRICT-COUNCIL/WALSALL,31/03/2020,RESOURCES & TRANSFORMATION,ARTHUR BRETT CATER,07/01/2020,H59620200109WWXJERJCD-1,59.64,CA JANE LANE SPECIAL SCHOOL-FOOD & DRINK SUPPLIES,MISCELLANEOUS FOOD STORES & CONVENIENCE STORES,GPC
WALSALL COUNCIL,HTTP://OPENDATACOMMUNITIES.ORG/ID/METROPOLITAN-DISTRICT-COUNCIL/WALSALL,31/03/2020,ECONOMY & ENVIRONMENT,THE RANGE,07/01/2020,H59620200109XDZXSKPMM-1,21.48,LEATHER MUSEUM-GENERAL MATERIALS,DEPARTMENT STORES,GPC
WALSALL COUNCIL,HTTP://OPENDATACOMMUNITIES.ORG/ID/METROPOLITAN-DISTRICT-COUNCIL/WALSALL,31/03/2020,CHILDRENS SERVICES,WALSALL COUNCIL,07/01/2020,H59620200109XHRNBIXSP-1,42.34,ST FRANCIS OF ASSISI CATHOLIC -POLICE CHECKS-EMPLOYEES,GOVERNMENT SERVICES,GPC
WALSALL COUNCIL,HTTP://OPENDATACOMMUNITIES.ORG/ID/METROPOLITAN-DISTRICT-COUNCIL/WALSALL,31/03/2020,RESOURCES & TRANSFORMATION,JOHAL DAIRIES LTD,07/01/2020,H59620200109XOYOGXAJN-1,24.96,CA TOWN HALL RESTAURANT - CATE-FOOD & DRINK SUPPLIES,OTHER NONDURABLE GOODS,GPC
WALSALL COUNCIL,HTTP://OPENDATACOMMUNITIES.ORG/ID/METROPOLITAN-DISTRICT-COUNCIL/WALSALL,31/03/2020,CHILDRENS SERVICES,CURRYS ONLINE,07/01/2020,H59620200109XQJDBBSJX-1,195.99,57 LICHFIELD ROAD-FURNITURE & EQUIPMENT,ELECTRONIC SALES,GPC
WALSALL COUNCIL,HTTP://OPENDATACOMMUNITIES.ORG/ID/METROPOLITAN-DISTRICT-COUNCIL/WALSALL,31/03/2020,ECONOMY & ENVIRONMENT,AMENITYLANDSOLUTION,07/01/2020,H59620200109XSFIOONJF-1,491.94,COUNTRYSIDE MANAGEMENT - EXTER-GENERAL MATERIALS,"NURSERIES, LAWN AND GARDEN SUPPLY STORES",GPC
WALSALL COUNCIL,HTTP://OPENDATACOMMUNITIES.ORG/ID/METROPOLITAN-DISTRICT-COUNCIL/WALSALL,31/03/2020,CHILDRENS SERVICES,AMZNMKTPLACE,07/01/2020,H59620200109XUHNAGBMA-1,20.99,CONTINGENCY-GENERAL MATERIALS,MISCELLANEOUS AND SPECIALTY RETAIL STORES,GPC
WALSALL COUNCIL,HTTP://OPENDATACOMMUNITIES.ORG/ID/METROPOLITAN-DISTRICT-COUNCIL/WALSALL,31/03/2020,RESOURCES & TRANSFORMATION,ARTHUR BRETT CATER,07/01/2020,H59620200109YAPBLIFVX-1,70.16,CA MOORCROFT WOOD-FOOD & DRINK SUPPLIES,MISCELLANEOUS FOOD STORES & CONVENIENCE STORES,GPC
WALSALL COUNCIL,HTTP://OPENDATACOMMUNITIES.ORG/ID/METROPOLITAN-DISTRICT-COUNCIL/WALSALL,31/03/2020,ECONOMY & ENVIRONMENT,AMZNMKTPLACE,07/01/2020,H59620200109YEBAOOZVZ-1,26.48,FLEET-GENERAL MATERIALS,MISCELLANEOUS AND SPECIALTY RETAIL STORES,GPC
WALSALL COUNCIL,HTTP://OPENDATACOMMUNITIES.ORG/ID/METROPOLITAN-DISTRICT-COUNCIL/WALSALL,31/03/2020,CHILDRENS SERVICES,HTTP://WWW.FORWARDPRODUC,07/01/2020,H59620200109YQEITUTRW-1,72.84,ADMINISTRATIVE SUPPLIES-GENERAL MATERIALS,"STATIONERY, OFFICE SUPPLIES AND WRITING PAPER",GPC
WALSALL COUNCIL,HTTP://OPENDATACOMMUNITIES.ORG/ID/METROPOLITAN-DISTRICT-COUNCIL/WALSALL,31/03/2020,CHILDRENS SERVICES,WWW.NISBETS.COM,07/01/2020,H59620200109YQGCNXRZL-1,44.28,CURRICULUM STOCK-GENERAL MATERIALS,DIRECT MARKETING CATALOG MERCHANTS,GPC
WALSALL COUNCIL,HTTP://OPENDATACOMMUNITIES.ORG/ID/METROPOLITAN-DISTRICT-COUNCIL/WALSALL,31/03/2020,CHILDRENS SERVICES,FINDEL EDUCATION,07/01/2020,H59620200109YYHMIFCBX-1,46.67,CURRICULUM STOCK-GENERAL MATERIALS,OTHER DIRECT MARKETING-OTHER DIRECT MARKETERS,GPC
WALSALL COUNCIL,HTTP://OPENDATACOMMUNITIES.ORG/ID/METROPOLITAN-DISTRICT-COUNCIL/WALSALL,31/03/2020,CHILDRENS SERVICES,ASN FIRST AID AND HYGIENE,07/01/2020,H59620200109ZBKSCQUFY-1,172.50,PELSALL VILLAGE SCHOOL-PERSONAL REQUISITES-MATERIALS,DENTAL/LABORATORY/MEDICAL EQUIPMENT & SUPPLIES,GPC
WALSALL COUNCIL,HTTP://OPENDATACOMMUNITIES.ORG/ID/METROPOLITAN-DISTRICT-COUNCIL/WALSALL,31/03/2020,RESOURCES & TRANSFORMATION,ARTHUR BRETT CATER,07/01/2020,H59620200109ZBLKIKMSR-1,39.56,CA LEAMORE PRIMARY SCHOOL-FOOD & DRINK SUPPLIES,MISCELLANEOUS FOOD STORES & CONVENIENCE STORES,GPC
WALSALL COUNCIL,HTTP://OPENDATACOMMUNITIES.ORG/ID/METROPOLITAN-DISTRICT-COUNCIL/WALSALL,31/03/2020,ECONOMY & ENVIRONMENT,AMZNMKTPLACE,07/01/2020,H59620200109ZJLKMRJPQ-1,6.56,WALSALL ARENA AND ARTS CENTRE-STATIONERY & GENERAL SUPPLIES,MISCELLANEOUS AND SPECIALTY RETAIL STORES,GPC
WALSALL COUNCIL,HTTP://OPENDATACOMMUNITIES.ORG/ID/METROPOLITAN-DISTRICT-COUNCIL/WALSALL,31/03/2020,ECONOMY & ENVIRONMENT,ARGOS LTD,07/01/2020,H59620200110ARIATSBET-1,143.92,WALSALL GALA CENTRE-FURNITURE & EQUIPMENT,DISCOUNT STORES,GPC
WALSALL COUNCIL,HTTP://OPENDATACOMMUNITIES.ORG/ID/METROPOLITAN-DISTRICT-COUNCIL/WALSALL,31/03/2020,CHILDRENS SERVICES,ARGOS LTD,07/01/2020,H59620200110FZCJVOYLT-1,30.00,TRANSITION AND LEAVING CARE PL-CARE LEAVERS MTCE PAYMENTS,DISCOUNT STORES,GPC
WALSALL COUNCIL,HTTP://OPENDATACOMMUNITIES.ORG/ID/METROPOLITAN-DISTRICT-COUNCIL/WALSALL,31/03/2020,CHILDRENS SERVICES,ARGOS LTD,07/01/2020,H59620200110FZCJVOYLT-2,3.95,TRANSITION AND LEAVING CARE PL-CARE LEAVERS MTCE PAYMENTS,DISCOUNT STORES,GPC
WALSALL COUNCIL,HTTP://OPENDATACOMMUNITIES.ORG/ID/METROPOLITAN-DISTRICT-COUNCIL/WALSALL,31/03/2020,CHILDRENS SERVICES,ARGOS LTD,07/01/2020,H59620200110GCFODGPWK-1,214.99,TRANSITION AND LEAVING CARE PL-CARE LEAVERS MTCE PAYMENTS,DISCOUNT STORES,GPC
WALSALL COUNCIL,HTTP://OPENDATACOMMUNITIES.ORG/ID/METROPOLITAN-DISTRICT-COUNCIL/WALSALL,31/03/2020,CHILDRENS SERVICES,VIRGIN MEDIA PYMTS,07/01/2020,H59620200110HYEUVHYFM-1,47.69,57 LICHFIELD ROAD-PROFESSIONAL FEES AND SERVICES,TELECOMMUNICATION SERVICES,GPC
WALSALL COUNCIL,HTTP://OPENDATACOMMUNITIES.ORG/ID/METROPOLITAN-DISTRICT-COUNCIL/WALSALL,31/03/2020,ECONOMY & ENVIRONMENT,AMAZON.CO.UK*054D67FZ5 AM,07/01/2020,H59620200110NYOTQQFAD-1,20.49,FLEET-GENERAL MATERIALS,MISCELLANEOUS AND SPECIALTY RETAIL STORES,GPC
WALSALL COUNCIL,HTTP://OPENDATACOMMUNITIES.ORG/ID/METROPOLITAN-DISTRICT-COUNCIL/WALSALL,31/03/2020,CHILDRENS SERVICES,W M MORRISONS.COM,07/01/2020,H59620200110VHVENJAYR-1,8.82,ROSEDALE C.E. PRIMARY SCHOOL-FOOD & DRINK SUPPLIES,GROCERY STORES AND SUPERMARKETS,GPC
WALSALL COUNCIL,HTTP://OPENDATACOMMUNITIES.ORG/ID/METROPOLITAN-DISTRICT-COUNCIL/WALSALL,31/03/2020,CHILDRENS SERVICES,W M MORRISONS.COM,07/01/2020,H59620200110VHVENJAYR-2,47.08,ROSEDALE C.E. PRIMARY SCHOOL-FOOD & DRINK SUPPLIES,GROCERY STORES AND SUPERMARKETS,GPC
WALSALL COUNCIL,HTTP://OPENDATACOMMUNITIES.ORG/ID/METROPOLITAN-DISTRICT-COUNCIL/WALSALL,31/03/2020,CHILDRENS SERVICES,WWW.CORAM.ORG.UK,07/01/2020,H59620200110WNCQCPRMJ-1,283.50,GENERAL MANAGEMENT SUPPORT (IN-EXTERNAL TRAINING,"ORGANIZATIONS, CHARITABLE AND SOCIAL SERVICE",GPC
WALSALL COUNCIL,HTTP://OPENDATACOMMUNITIES.ORG/ID/METROPOLITAN-DISTRICT-COUNCIL/WALSALL,31/03/2020,CHILDRENS SERVICES,WWW.CORAM.ORG.UK,07/01/2020,H59620200110WNCQCPRMJ-2,283.50,RECRUITMENT TEAM-EXTERNAL TRAINING,"ORGANIZATIONS, CHARITABLE AND SOCIAL SERVICE",GPC
WALSALL COUNCIL,HTTP://OPENDATACOMMUNITIES.ORG/ID/METROPOLITAN-DISTRICT-COUNCIL/WALSALL,31/03/2020,ECONOMY & ENVIRONMENT,PRIMARK 690,07/01/2020,H59620200110ZLXFGYHDH-1,6.60,LEATHER MUSEUM-GENERAL MATERIALS,CLOTHING STORES,GPC
WALSALL COUNCIL,HTTP://OPENDATACOMMUNITIES.ORG/ID/METROPOLITAN-DISTRICT-COUNCIL/WALSALL,31/03/2020,RESOURCES & TRANSFORMATION,ARTHUR BRETT CATER,07/01/2020,H59620200111CZZCKGFQT-1,-2.75,CA ST GILES C.E. PRIMARY SCHOO-FOOD & DRINK SUPPLIES,MISCELLANEOUS FOOD STORES & CONVENIENCE STORES,GPC
WALSALL COUNCIL,HTTP://OPENDATACOMMUNITIES.ORG/ID/METROPOLITAN-DISTRICT-COUNCIL/WALSALL,31/03/2020,RESOURCES & TRANSFORMATION,WWW.SCC.COM,07/01/2020,H59620200111GDMEIHCMY-1,1858.92,RECHARGEABLE EQUIPMENT-COMPUTER EQUIPMENT AND SUPPLIE,"COMPUTERS, COMPUTER PERIPHERAL EQUIPMENT, SOFTWARE",GPC
WALSALL COUNCIL,HTTP://OPENDATACOMMUNITIES.ORG/ID/METROPOLITAN-DISTRICT-COUNCIL/WALSALL,31/03/2020,RESOURCES & TRANSFORMATION,ARTHUR BRETT CATER,07/01/2020,H59620200111MQSGMCPJT-1,-2.75,CA WALSALL WOOD PRIMARY SCHOOL-FOOD & DRINK SUPPLIES,MISCELLANEOUS FOOD STORES & CONVENIENCE STORES,GPC
WALSALL COUNCIL,HTTP://OPENDATACOMMUNITIES.ORG/ID/METROPOLITAN-DISTRICT-COUNCIL/WALSALL,31/03/2020,RESOURCES & TRANSFORMATION,ARTHUR BRETT CATER,07/01/2020,H59620200111QJRHIIBAW-1,-2.75,CA LINDENS PRIMARY SCHOOL-FOOD & DRINK SUPPLIES,MISCELLANEOUS FOOD STORES & CONVENIENCE STORES,GPC
WALSALL COUNCIL,HTTP://OPENDATACOMMUNITIES.ORG/ID/METROPOLITAN-DISTRICT-COUNCIL/WALSALL,31/03/2020,RESOURCES & TRANSFORMATION,ARTHUR BRETT CATER,07/01/2020,H59620200111RVXINYPNP-1,-2.75,CA LITTLE BLOXWICH CE PRIMARY -FOOD & DRINK SUPPLIES,MISCELLANEOUS FOOD STORES & CONVENIENCE STORES,GPC
WALSALL COUNCIL,HTTP://OPENDATACOMMUNITIES.ORG/ID/METROPOLITAN-DISTRICT-COUNCIL/WALSALL,31/03/2020,CHILDRENS SERVICES,WWW.CORAM.ORG.UK,07/01/2020,H59620200111TMGENITDV-1,-56.70,GENERAL MANAGEMENT SUPPORT (IN-EXTERNAL TRAINING,"ORGANIZATIONS, CHARITABLE AND SOCIAL SERVICE",GPC
WALSALL COUNCIL,HTTP://OPENDATACOMMUNITIES.ORG/ID/METROPOLITAN-DISTRICT-COUNCIL/WALSALL,31/03/2020,CHILDRENS SERVICES,WWW.CORAM.ORG.UK,07/01/2020,H59620200111TMGENITDV-2,-56.70,RECRUITMENT TEAM-EXTERNAL TRAINING,"ORGANIZATIONS, CHARITABLE AND SOCIAL SERVICE",GPC
WALSALL COUNCIL,HTTP://OPENDATACOMMUNITIES.ORG/ID/METROPOLITAN-DISTRICT-COUNCIL/WALSALL,31/03/2020,RESOURCES & TRANSFORMATION,ARTHUR BRETT CATER,07/01/2020,H59620200111VWSQGFJNU-1,-2.75,CA MEADOW VIEW JMI PRIMARY SCH-FOOD & DRINK SUPPLIES,MISCELLANEOUS FOOD STORES & CONVENIENCE STORES,GPC
WALSALL COUNCIL,HTTP://OPENDATACOMMUNITIES.ORG/ID/METROPOLITAN-DISTRICT-COUNCIL/WALSALL,31/03/2020,RESOURCES & TRANSFORMATION,ARTHUR BRETT CATER,07/01/2020,H59620200111WNSOBHEDP-1,-2.75,CA RADLEYS PRIMARY SCHOOL-FOOD & DRINK SUPPLIES,MISCELLANEOUS FOOD STORES & CONVENIENCE STORES,GPC
WALSALL COUNCIL,HTTP://OPENDATACOMMUNITIES.ORG/ID/METROPOLITAN-DISTRICT-COUNCIL/WALSALL,31/03/2020,RESOURCES & TRANSFORMATION,ARTHUR BRETT CATER,07/01/2020,H59620200111YYUPECJEH-1,-2.75,CA BROWNHILLS WEST PRIMARY SCH-FOOD & DRINK SUPPLIES,MISCELLANEOUS FOOD STORES & CONVENIENCE STORES,GPC
WALSALL COUNCIL,HTTP://OPENDATACOMMUNITIES.ORG/ID/METROPOLITAN-DISTRICT-COUNCIL/WALSALL,31/03/2020,CHILDRENS SERVICES,BLAKE STREET T/O,08/01/2020,H59620200110AJLKEOKND-1,7.60,ADOLESCENT SERVICE-OFFICER/STAFF-PUBLIC TRANSPORT,PASSENGER RAILWAYS,GPC
WALSALL COUNCIL,HTTP://OPENDATACOMMUNITIES.ORG/ID/METROPOLITAN-DISTRICT-COUNCIL/WALSALL,31/03/2020,CHILDRENS SERVICES,AMAZON.CO.UK*LW8924275,08/01/2020,H59620200110AXUJMXVEK-1,8.57,ADMINISTRATIVE SUPPLIES-STATIONERY & GENERAL SUPPLIES,OTHER DIRECT MARKETING-OTHER DIRECT MARKETERS,GPC
WALSALL COUNCIL,HTTP://OPENDATACOMMUNITIES.ORG/ID/METROPOLITAN-DISTRICT-COUNCIL/WALSALL,31/03/2020,ECONOMY & ENVIRONMENT,MAUDESPORT LTD,08/01/2020,H59620200110BOWCMTJOB-1,174.64,WALSALL GALA CENTRE-FURNITURE & EQUIPMENT,SPORTING GOODS STORES,GPC
WALSALL COUNCIL,HTTP://OPENDATACOMMUNITIES.ORG/ID/METROPOLITAN-DISTRICT-COUNCIL/WALSALL,31/03/2020,ECONOMY & ENVIRONMENT,OSCAR NEWS,08/01/2020,H59620200110BPWYRHBCD-1,69.07,BLOXWICH LIBRARY-NEWSPAPERS/PERIODICALS/MAGAZIN,GROCERY STORES AND SUPERMARKETS,GPC
WALSALL COUNCIL,HTTP://OPENDATACOMMUNITIES.ORG/ID/METROPOLITAN-DISTRICT-COUNCIL/WALSALL,31/03/2020,RESOURCES & TRANSFORMATION,BLAKEMORE FOODSERVICE,08/01/2020,H59620200110BRVNILXTN-1,161.97,CA BARCROFT D/C-FOOD & DRINK SUPPLIES,CATERERS,GPC
WALSALL COUNCIL,HTTP://OPENDATACOMMUNITIES.ORG/ID/METROPOLITAN-DISTRICT-COUNCIL/WALSALL,31/03/2020,CHILDRENS SERVICES,AMZNMKTPLACE,08/01/2020,H59620200110BWNTGVFEE-1,198.00,LOOKED AFTER CHILDRENS SOCIAL -CARE LEAVERS MTCE PAYMENTS,MISCELLANEOUS AND SPECIALTY RETAIL STORES,GPC
WALSALL COUNCIL,HTTP://OPENDATACOMMUNITIES.ORG/ID/METROPOLITAN-DISTRICT-COUNCIL/WALSALL,31/03/2020,CHILDRENS SERVICES,SCREWFIX DIRECT,08/01/2020,H59620200110BWYPGQWIN-1,9.99,WALSALL WOOD PRIMARY SCHOOL-OPERATIONAL MAINTENANCE,HOME SUPPLY WAREHOUSE STORES,GPC
WALSALL COUNCIL,HTTP://OPENDATACOMMUNITIES.ORG/ID/METROPOLITAN-DISTRICT-COUNCIL/WALSALL,31/03/2020,RESOURCES & TRANSFORMATION,AMZNMKTPLACE,08/01/2020,H59620200110CBUYTMTPJ-1,27.92,ACCOMMODATION SERVICES MANAGEM-STATIONERY & GENERAL SUPPLIES,MISCELLANEOUS AND SPECIALTY RETAIL STORES,GPC
WALSALL COUNCIL,HTTP://OPENDATACOMMUNITIES.ORG/ID/METROPOLITAN-DISTRICT-COUNCIL/WALSALL,31/03/2020,RESOURCES & TRANSFORMATION,BLAKEMORE FOODSERVICE,08/01/2020,H59620200110CBWEOSIJK-1,342.93,CA OLD HALL SPECIAL SCHOOL-CATERING,CATERERS,GPC
WALSALL COUNCIL,HTTP://OPENDATACOMMUNITIES.ORG/ID/METROPOLITAN-DISTRICT-COUNCIL/WALSALL,31/03/2020,RESOURCES & TRANSFORMATION,BLAKEMORE FOODSERVICE,08/01/2020,H59620200110CBWEOSIJK-2,7.58,CA OLD HALL SPECIAL SCHOOL-CATERING,CATERERS,GPC
WALSALL COUNCIL,HTTP://OPENDATACOMMUNITIES.ORG/ID/METROPOLITAN-DISTRICT-COUNCIL/WALSALL,31/03/2020,RESOURCES & TRANSFORMATION,BLAKEMORE FOODSERVICE,08/01/2020,H59620200110CCQKXNFWX-1,314.75,CA LEIGHSWOOD PRIMARY SCHOOL-FOOD & DRINK SUPPLIES,CATERERS,GPC
WALSALL COUNCIL,HTTP://OPENDATACOMMUNITIES.ORG/ID/METROPOLITAN-DISTRICT-COUNCIL/WALSALL,31/03/2020,CHILDRENS SERVICES,MCDONALDS,08/01/2020,H59620200110CIVDWIRQN-1,11.95,ADOLESCENT SERVICE-FOOD & DRINK SUPPLIES,QUICK PAYMENT SERVICE-FAST-FOOD RESTAURANTS,GPC
WALSALL COUNCIL,HTTP://OPENDATACOMMUNITIES.ORG/ID/METROPOLITAN-DISTRICT-COUNCIL/WALSALL,31/03/2020,RESOURCES & TRANSFORMATION,BLAKEMORE FOODSERVICE,08/01/2020,H59620200110CLDVILKEC-1,243.57,CA CASTLEFORT JMI SCHOOL-FOOD & DRINK SUPPLIES,CATERERS,GPC
WALSALL COUNCIL,HTTP://OPENDATACOMMUNITIES.ORG/ID/METROPOLITAN-DISTRICT-COUNCIL/WALSALL,31/03/2020,RESOURCES & TRANSFORMATION,THETRAINLINE.COM,08/01/2020,H59620200110DDMLLFAST-1,186.11,RECHARGEABLE EQUIPMENT-OFFICER/STAFF-PUBLIC TRANSPORT,PASSENGER RAILWAYS,GPC
WALSALL COUNCIL,HTTP://OPENDATACOMMUNITIES.ORG/ID/METROPOLITAN-DISTRICT-COUNCIL/WALSALL,31/03/2020,CHILDRENS SERVICES,MCDONALDS,08/01/2020,H59620200110DJRQIMBIJ-1,12.97,ADOLESCENT SERVICE-FOOD & DRINK SUPPLIES,QUICK PAYMENT SERVICE-FAST-FOOD RESTAURANTS,GPC
WALSALL COUNCIL,HTTP://OPENDATACOMMUNITIES.ORG/ID/METROPOLITAN-DISTRICT-COUNCIL/WALSALL,31/03/2020,CHILDRENS SERVICES,WWW.CREATIVE-HUT.CO.UK,08/01/2020,H59620200110DRPMDDOXH-1,65.80,INFORMATION SERVICES-COMPUTER EQUIPMENT AND SUPPLIE,"COMPUTER PROGRAM, SYSTEM DESIGN",GPC
WALSALL COUNCIL,HTTP://OPENDATACOMMUNITIES.ORG/ID/METROPOLITAN-DISTRICT-COUNCIL/WALSALL,31/03/2020,RESOURCES & TRANSFORMATION,BLAKEMORE FOODSERVICE,08/01/2020,H59620200110EHKPDIBYF-1,223.24,CA BEACON PRIMARY SCHOOL-CATERING,CATERERS,GPC
WALSALL COUNCIL,HTTP://OPENDATACOMMUNITIES.ORG/ID/METROPOLITAN-DISTRICT-COUNCIL/WALSALL,31/03/2020,ECONOMY & ENVIRONMENT,TESCO PFS 4188,08/01/2020,H59620200110EJEISCNKI-1,3.00,LEATHER MUSEUM-GENERAL MATERIALS,SERVICE STATIONS,GPC
WALSALL COUNCIL,HTTP://OPENDATACOMMUNITIES.ORG/ID/METROPOLITAN-DISTRICT-COUNCIL/WALSALL,31/03/2020,CHILDRENS SERVICES,WM MORRISONS STORE,08/01/2020,H59620200110ETPJBJIQX-1,1.10,57 LICHFIELD ROAD-FOOD & DRINK SUPPLIES,GROCERY STORES AND SUPERMARKETS,GPC
WALSALL COUNCIL,HTTP://OPENDATACOMMUNITIES.ORG/ID/METROPOLITAN-DISTRICT-COUNCIL/WALSALL,31/03/2020,RESOURCES & TRANSFORMATION,BLAKEMORE FOODSERVICE,08/01/2020,H59620200110EXKESPQHE-1,273.45,CA BUSILL JONES PRIMARY SCHOOL-FOOD & DRINK SUPPLIES,CATERERS,GPC
WALSALL COUNCIL,HTTP://OPENDATACOMMUNITIES.ORG/ID/METROPOLITAN-DISTRICT-COUNCIL/WALSALL,31/03/2020,RESOURCES & TRANSFORMATION,BLAKEMORE FOODSERVICE,08/01/2020,H59620200110EYBQEELKL-1,237.12,CA BROWNHILLS WEST PRIMARY SCH-CATERING,CATERERS,GPC
WALSALL COUNCIL,HTTP://OPENDATACOMMUNITIES.ORG/ID/METROPOLITAN-DISTRICT-COUNCIL/WALSALL,31/03/2020,CHILDRENS SERVICES,AMAZON.CO.UK*RX4GT51T5,08/01/2020,H59620200110FBUOYJEBG-1,39.00,ADMINISTRATIVE SUPPLIES-STATIONERY & GENERAL SUPPLIES,OTHER DIRECT MARKETING-OTHER DIRECT MARKETERS,GPC
WALSALL COUNCIL,HTTP://OPENDATACOMMUNITIES.ORG/ID/METROPOLITAN-DISTRICT-COUNCIL/WALSALL,31/03/2020,CHILDRENS SERVICES,AMAZON.CO.UK*HU6EF82K5,08/01/2020,H59620200110FSHSVSPFG-1,6.74,"43A HILTON ROAD, WILLENHALL-RESIDENTS PERSONAL EXPENSES-AL",OTHER DIRECT MARKETING-OTHER DIRECT MARKETERS,GPC
WALSALL COUNCIL,HTTP://OPENDATACOMMUNITIES.ORG/ID/METROPOLITAN-DISTRICT-COUNCIL/WALSALL,31/03/2020,RESOURCES & TRANSFORMATION,BLAKEMORE FOODSERVICE,08/01/2020,H59620200110GCSKKLWSS-1,169.38,CA WHITEHALL JUNIOR COMMUNITY -FOOD & DRINK SUPPLIES,CATERERS,GPC
WALSALL COUNCIL,HTTP://OPENDATACOMMUNITIES.ORG/ID/METROPOLITAN-DISTRICT-COUNCIL/WALSALL,31/03/2020,CHILDRENS SERVICES,AMAZON.CO.UK*107SY7IU5,08/01/2020,H59620200110GEHDTRJDS-1,7.91,PE-GENERAL MATERIALS,OTHER DIRECT MARKETING-OTHER DIRECT MARKETERS,GPC
WALSALL COUNCIL,HTTP://OPENDATACOMMUNITIES.ORG/ID/METROPOLITAN-DISTRICT-COUNCIL/WALSALL,31/03/2020,CHILDRENS SERVICES,INDESIT COMPANY UK,08/01/2020,H59620200110GYWPAXWWY-1,81.89,ST FRANCIS OF ASSISI CATHOLIC -OPERATIONAL MAINTENANCE,HOUSEHOLD APPLIANCE STORES,GPC
WALSALL COUNCIL,HTTP://OPENDATACOMMUNITIES.ORG/ID/METROPOLITAN-DISTRICT-COUNCIL/WALSALL,31/03/2020,RESOURCES & TRANSFORMATION,BLAKEMORE FOODSERVICE,08/01/2020,H59620200110GZNSTTCQM-1,216.63,CA ELMORE GREEN PRIMARY SCHOOL-FOOD & DRINK SUPPLIES,CATERERS,GPC
WALSALL COUNCIL,HTTP://OPENDATACOMMUNITIES.ORG/ID/METROPOLITAN-DISTRICT-COUNCIL/WALSALL,31/03/2020,RESOURCES & TRANSFORMATION,BLAKEMORE FOODSERVICE,08/01/2020,H59620200110GZNSTTCQM-2,8.83,CA ELMORE GREEN PRIMARY SCHOOL-FOOD & DRINK SUPPLIES,CATERERS,GPC
WALSALL COUNCIL,HTTP://OPENDATACOMMUNITIES.ORG/ID/METROPOLITAN-DISTRICT-COUNCIL/WALSALL,31/03/2020,ECONOMY & ENVIRONMENT,WILKO RETAIL LIMITED,08/01/2020,H59620200110HEBSCMCEE-1,9.00,LEATHER MUSEUM-GENERAL MATERIALS,MISCELLANEOUS GENERAL MERCHANDISE,GPC
WALSALL COUNCIL,HTTP://OPENDATACOMMUNITIES.ORG/ID/METROPOLITAN-DISTRICT-COUNCIL/WALSALL,31/03/2020,RESOURCES & TRANSFORMATION,BLAKEMORE FOODSERVICE,08/01/2020,H59620200110HHTMLSDWZ-1,30.04,CA ELMWOOD SPECIAL SCHOOL-FOOD & DRINK SUPPLIES,CATERERS,GPC
WALSALL COUNCIL,HTTP://OPENDATACOMMUNITIES.ORG/ID/METROPOLITAN-DISTRICT-COUNCIL/WALSALL,31/03/2020,RESOURCES & TRANSFORMATION,BLAKEMORE FOODSERVICE,08/01/2020,H59620200110HQMOMCVOP-1,142.42,CA RUSHALL JMI SCHOOL-FOOD & DRINK SUPPLIES,CATERERS,GPC
WALSALL COUNCIL,HTTP://OPENDATACOMMUNITIES.ORG/ID/METROPOLITAN-DISTRICT-COUNCIL/WALSALL,31/03/2020,CHILDRENS SERVICES,AMZNMKTPLACE,08/01/2020,H59620200110HXVBKPCUE-1,29.28,LOOKED AFTER CHILDRENS SOCIAL -STATIONERY & GENERAL SUPPLIES,MISCELLANEOUS AND SPECIALTY RETAIL STORES,GPC
WALSALL COUNCIL,HTTP://OPENDATACOMMUNITIES.ORG/ID/METROPOLITAN-DISTRICT-COUNCIL/WALSALL,31/03/2020,CHILDRENS SERVICES,AMZNMKTPLACE,08/01/2020,H59620200110HXVBKPCUE-2,1.65,LOOKED AFTER CHILDRENS SOCIAL -STATIONERY & GENERAL SUPPLIES,MISCELLANEOUS AND SPECIALTY RETAIL STORES,GPC
WALSALL COUNCIL,HTTP://OPENDATACOMMUNITIES.ORG/ID/METROPOLITAN-DISTRICT-COUNCIL/WALSALL,31/03/2020,RESOURCES & TRANSFORMATION,BLAKEMORE FOODSERVICE,08/01/2020,H59620200110IRAWICOKY-1,154.55,CA ST MICHAELS C.E. PRIMARY SC-FOOD & DRINK SUPPLIES,CATERERS,GPC
WALSALL COUNCIL,HTTP://OPENDATACOMMUNITIES.ORG/ID/METROPOLITAN-DISTRICT-COUNCIL/WALSALL,31/03/2020,CHILDRENS SERVICES,WWW.STARCARSBIRMINGHAM,08/01/2020,H59620200110IWBNUEOXN-1,117.50,SUPPORT UNDER SECT 23 OF THE C-TAXIS-TRAVEL ALLOWANCES,TAXI SERVICES,GPC
WALSALL COUNCIL,HTTP://OPENDATACOMMUNITIES.ORG/ID/METROPOLITAN-DISTRICT-COUNCIL/WALSALL,31/03/2020,ECONOMY & ENVIRONMENT,HINCKLEY & BOSWORTH BC,08/01/2020,H59620200110IZWBCXHDV-1,2.00,CENTRAL SUPPORT SERVICES LEISU-OTHER FEES & LICENCES-SERVICES,GOVERNMENT SERVICES,GPC
WALSALL COUNCIL,HTTP://OPENDATACOMMUNITIES.ORG/ID/METROPOLITAN-DISTRICT-COUNCIL/WALSALL,31/03/2020,RESOURCES & TRANSFORMATION,BLAKEMORE FOODSERVICE,08/01/2020,H59620200110JFOBRBUIP-1,30.74,CA KINGSHILL SCHOOL-FOOD & DRINK SUPPLIES,CATERERS,GPC
WALSALL COUNCIL,HTTP://OPENDATACOMMUNITIES.ORG/ID/METROPOLITAN-DISTRICT-COUNCIL/WALSALL,31/03/2020,RESOURCES & TRANSFORMATION,BLAKEMORE FOODSERVICE,08/01/2020,H59620200110JFOBRBUIP-2,191.25,CA KINGSHILL SCHOOL-FOOD & DRINK SUPPLIES,CATERERS,GPC
WALSALL COUNCIL,HTTP://OPENDATACOMMUNITIES.ORG/ID/METROPOLITAN-DISTRICT-COUNCIL/WALSALL,31/03/2020,RESOURCES & TRANSFORMATION,AMZNMKTPLACE,08/01/2020,H59620200110JHLOVEFKD-1,6.00,ACCOMMODATION SERVICES MANAGEM-STATIONERY & GENERAL SUPPLIES,MISCELLANEOUS AND SPECIALTY RETAIL STORES,GPC
WALSALL COUNCIL,HTTP://OPENDATACOMMUNITIES.ORG/ID/METROPOLITAN-DISTRICT-COUNCIL/WALSALL,31/03/2020,RESOURCES & TRANSFORMATION,BLAKEMORE FOODSERVICE,08/01/2020,H59620200110JRPXRIUJF-1,305.52,CA COOPER JORDAN CE PRIMARY SC-FOOD & DRINK SUPPLIES,CATERERS,GPC
WALSALL COUNCIL,HTTP://OPENDATACOMMUNITIES.ORG/ID/METROPOLITAN-DISTRICT-COUNCIL/WALSALL,31/03/2020,CHILDRENS SERVICES,AMZNMKTPLACE,08/01/2020,H59620200110JTSVPMYPK-1,40.55,SEN-STATIONERY & GENERAL SUPPLIES,MISCELLANEOUS AND SPECIALTY RETAIL STORES,GPC
WALSALL COUNCIL,HTTP://OPENDATACOMMUNITIES.ORG/ID/METROPOLITAN-DISTRICT-COUNCIL/WALSALL,31/03/2020,CHILDRENS SERVICES,AMAZON.CO.UK*YQ28R6Y95,08/01/2020,H59620200110JVJSIHJBL-1,21.64,LITERACY-LIBRARY BOOKS,OTHER DIRECT MARKETING-OTHER DIRECT MARKETERS,GPC
WALSALL COUNCIL,HTTP://OPENDATACOMMUNITIES.ORG/ID/METROPOLITAN-DISTRICT-COUNCIL/WALSALL,31/03/2020,RESOURCES & TRANSFORMATION,BLAKEMORE FOODSERVICE,08/01/2020,H59620200110JWIWLMOET-1,350.39,TOWN HALL RESTAURANT BISTRO-FOOD & DRINK SUPPLIES,CATERERS,GPC
WALSALL COUNCIL,HTTP://OPENDATACOMMUNITIES.ORG/ID/METROPOLITAN-DISTRICT-COUNCIL/WALSALL,31/03/2020,RESOURCES & TRANSFORMATION,BLAKEMORE FOODSERVICE,08/01/2020,H59620200110JWIWLMOET-2,86.61,TOWN HALL RESTAURANT BISTRO-FOOD & DRINK SUPPLIES,CATERERS,GPC
WALSALL COUNCIL,HTTP://OPENDATACOMMUNITIES.ORG/ID/METROPOLITAN-DISTRICT-COUNCIL/WALSALL,31/03/2020,CHILDRENS SERVICES,WWW.BANNERUK.COM,08/01/2020,H59620200110KEXNKGVRP-1,19.68,SAFEGUARDING & FAMILY SUPPORT-STATIONERY & GENERAL SUPPLIES,"STATIONERY, OFFICE SUPPLIES AND WRITING PAPER",GPC
WALSALL COUNCIL,HTTP://OPENDATACOMMUNITIES.ORG/ID/METROPOLITAN-DISTRICT-COUNCIL/WALSALL,31/03/2020,RESOURCES & TRANSFORMATION,SANDWELL M.B.C.,08/01/2020,H59620200110KIUNRZNNU-1,11.00,WALSALL CRISIS SUPPORT SCHEME-OTHER FEES & LICENCES-SERVICES,GOVERNMENT SERVICES,GPC
WALSALL COUNCIL,HTTP://OPENDATACOMMUNITIES.ORG/ID/METROPOLITAN-DISTRICT-COUNCIL/WALSALL,31/03/2020,ECONOMY & ENVIRONMENT,WWW.BANNERUK.COM,08/01/2020,H59620200110KJMIDNRXX-1,90.80,LIBRARY OPERATIONS CENTRAL-STATIONERY & GENERAL SUPPLIES,"STATIONERY, OFFICE SUPPLIES AND WRITING PAPER",GPC
WALSALL COUNCIL,HTTP://OPENDATACOMMUNITIES.ORG/ID/METROPOLITAN-DISTRICT-COUNCIL/WALSALL,31/03/2020,ADULT SOCIAL CARE,WWW.BANNERUK.COM,08/01/2020,H59620200110KKIYNYBMN-1,170.24,INTERMEDIATE CARE SERVICE-STATIONERY & GENERAL SUPPLIES,"STATIONERY, OFFICE SUPPLIES AND WRITING PAPER",GPC
WALSALL COUNCIL,HTTP://OPENDATACOMMUNITIES.ORG/ID/METROPOLITAN-DISTRICT-COUNCIL/WALSALL,31/03/2020,CHILDRENS SERVICES,CURRYS ONLINE,08/01/2020,H59620200110KOCVQCMNH-1,199.00,TRANSITION AND LEAVING CARE PL-CARE LEAVERS MTCE PAYMENTS,ELECTRONIC SALES,GPC
WALSALL COUNCIL,HTTP://OPENDATACOMMUNITIES.ORG/ID/METROPOLITAN-DISTRICT-COUNCIL/WALSALL,31/03/2020,ECONOMY & ENVIRONMENT,SWIMMING TEACHERS ASSO,08/01/2020,H59620200110KOEFPCFQW-1,123.13,DARLASTON LEISURE CENTRE-EXTERNAL TRAINING,OTHER RECREATION SERVICES,GPC
WALSALL COUNCIL,HTTP://OPENDATACOMMUNITIES.ORG/ID/METROPOLITAN-DISTRICT-COUNCIL/WALSALL,31/03/2020,ECONOMY & ENVIRONMENT,SWIMMING TEACHERS ASSO,08/01/2020,H59620200110KOEFPCFQW-2,123.13,OAK PARK-EXTERNAL TRAINING,OTHER RECREATION SERVICES,GPC
WALSALL COUNCIL,HTTP://OPENDATACOMMUNITIES.ORG/ID/METROPOLITAN-DISTRICT-COUNCIL/WALSALL,31/03/2020,ECONOMY & ENVIRONMENT,SWIMMING TEACHERS ASSO,08/01/2020,H59620200110KOEFPCFQW-3,123.13,BLOXWICH LEISURE CENTRE-EXTERNAL TRAINING,OTHER RECREATION SERVICES,GPC
WALSALL COUNCIL,HTTP://OPENDATACOMMUNITIES.ORG/ID/METROPOLITAN-DISTRICT-COUNCIL/WALSALL,31/03/2020,ECONOMY & ENVIRONMENT,SWIMMING TEACHERS ASSO,08/01/2020,H59620200110KOEFPCFQW-4,123.11,WALSALL GALA CENTRE-EXTERNAL TRAINING,OTHER RECREATION SERVICES,GPC
WALSALL COUNCIL,HTTP://OPENDATACOMMUNITIES.ORG/ID/METROPOLITAN-DISTRICT-COUNCIL/WALSALL,31/03/2020,RESOURCES & TRANSFORMATION,WALSALL COUNCIL,08/01/2020,H59620200110KWEDUTCRL-1,20.98,ACCOMMODATION SERVICES MANAGEM-OTHER FEES & LICENCES-SERVICES,GOVERNMENT SERVICES,GPC
WALSALL COUNCIL,HTTP://OPENDATACOMMUNITIES.ORG/ID/METROPOLITAN-DISTRICT-COUNCIL/WALSALL,31/03/2020,ECONOMY & ENVIRONMENT,AMZNMKTPLACE,08/01/2020,H59620200110LATONJGSQ-1,12.50,LIBRARY DEVELOPMENT 2-STATIONERY & GENERAL SUPPLIES,MISCELLANEOUS AND SPECIALTY RETAIL STORES,GPC
WALSALL COUNCIL,HTTP://OPENDATACOMMUNITIES.ORG/ID/METROPOLITAN-DISTRICT-COUNCIL/WALSALL,31/03/2020,CHILDRENS SERVICES,AMAZON.CO.UK*RM30O7DI5,08/01/2020,H59620200110LBVBPHMPK-1,59.85,ENGLISH-GENERAL MATERIALS,OTHER DIRECT MARKETING-OTHER DIRECT MARKETERS,GPC
WALSALL COUNCIL,HTTP://OPENDATACOMMUNITIES.ORG/ID/METROPOLITAN-DISTRICT-COUNCIL/WALSALL,31/03/2020,RESOURCES & TRANSFORMATION,WWW.BANNERUK.COM,08/01/2020,H59620200110LGEGDGPDJ-1,56.62,MAYORS SECRETARIAT-STATIONERY & GENERAL SUPPLIES,"STATIONERY, OFFICE SUPPLIES AND WRITING PAPER",GPC
WALSALL COUNCIL,HTTP://OPENDATACOMMUNITIES.ORG/ID/METROPOLITAN-DISTRICT-COUNCIL/WALSALL,31/03/2020,CHILDRENS SERVICES,ARGOS LTD,08/01/2020,H59620200110LNFPIJWBO-1,134.99,SUPPORT UNDER SECT 23 OF THE C-SUPPORT UNDER SECTION 23 OF TH,DISCOUNT STORES,GPC
WALSALL COUNCIL,HTTP://OPENDATACOMMUNITIES.ORG/ID/METROPOLITAN-DISTRICT-COUNCIL/WALSALL,31/03/2020,CHILDRENS SERVICES,AMZNMKTPLACE,08/01/2020,H59620200110LOXJZSMPQ-1,39.98,LOOKED AFTER CHILDRENS SOCIAL -STATIONERY & GENERAL SUPPLIES,MISCELLANEOUS AND SPECIALTY RETAIL STORES,GPC
WALSALL COUNCIL,HTTP://OPENDATACOMMUNITIES.ORG/ID/METROPOLITAN-DISTRICT-COUNCIL/WALSALL,31/03/2020,CHILDRENS SERVICES,AMZNMKTPLACE,08/01/2020,H59620200110LUKLHWAVR-1,5.36,SEN-STATIONERY & GENERAL SUPPLIES,MISCELLANEOUS AND SPECIALTY RETAIL STORES,GPC
WALSALL COUNCIL,HTTP://OPENDATACOMMUNITIES.ORG/ID/METROPOLITAN-DISTRICT-COUNCIL/WALSALL,31/03/2020,RESOURCES & TRANSFORMATION,BLAKEMORE FOODSERVICE,08/01/2020,H59620200110LYURQWVWH-1,411.37,CA RADLEYS PRIMARY SCHOOL-FOOD & DRINK SUPPLIES,CATERERS,GPC
WALSALL COUNCIL,HTTP://OPENDATACOMMUNITIES.ORG/ID/METROPOLITAN-DISTRICT-COUNCIL/WALSALL,31/03/2020,RESOURCES & TRANSFORMATION,BLAKEMORE FOODSERVICE,08/01/2020,H59620200110MEFPHNHGB-1,7.26,CA ELMORE GREEN PRIMARY SCHOOL-FOOD & DRINK SUPPLIES,CATERERS,GPC
WALSALL COUNCIL,HTTP://OPENDATACOMMUNITIES.ORG/ID/METROPOLITAN-DISTRICT-COUNCIL/WALSALL,31/03/2020,ECONOMY & ENVIRONMENT,ARCADE FLORISTS,08/01/2020,H59620200110MEGLNFBLZ-1,125.00,LIBRARY OPERATIONS CENTRAL-MISCELLANEOUS ALLOWANCES-FOSTE,FLORISTS,GPC
WALSALL COUNCIL,HTTP://OPENDATACOMMUNITIES.ORG/ID/METROPOLITAN-DISTRICT-COUNCIL/WALSALL,31/03/2020,RESOURCES & TRANSFORMATION,BLAKEMORE FOODSERVICE,08/01/2020,H59620200110MFLXAXEUY-1,248.89,CA ST JOHNS C.E. PRIMARY SCHOO-FOOD & DRINK SUPPLIES,CATERERS,GPC
WALSALL COUNCIL,HTTP://OPENDATACOMMUNITIES.ORG/ID/METROPOLITAN-DISTRICT-COUNCIL/WALSALL,31/03/2020,RESOURCES & TRANSFORMATION,BLAKEMORE FOODSERVICE,08/01/2020,H59620200110MFLXAXEUY-2,35.32,CA ST JOHNS C.E. PRIMARY SCHOO-FOOD & DRINK SUPPLIES,CATERERS,GPC
WALSALL COUNCIL,HTTP://OPENDATACOMMUNITIES.ORG/ID/METROPOLITAN-DISTRICT-COUNCIL/WALSALL,31/03/2020,CHILDRENS SERVICES,MCDONALDS,08/01/2020,H59620200110MNMWUXQXF-1,9.78,ADOLESCENT SERVICE-FOOD & DRINK SUPPLIES,QUICK PAYMENT SERVICE-FAST-FOOD RESTAURANTS,GPC
WALSALL COUNCIL,HTTP://OPENDATACOMMUNITIES.ORG/ID/METROPOLITAN-DISTRICT-COUNCIL/WALSALL,31/03/2020,RESOURCES & TRANSFORMATION,NOBISCO LIMITED,08/01/2020,H59620200110MQGTTEDZG-1,68.99,CA BROWNHILLS WEST PRIMARY SCH-FURNITURE & EQUIPMENT,OTHER INDUSTRIAL SUPPLIES,GPC
WALSALL COUNCIL,HTTP://OPENDATACOMMUNITIES.ORG/ID/METROPOLITAN-DISTRICT-COUNCIL/WALSALL,31/03/2020,ECONOMY & ENVIRONMENT,AMZNMKTPLACE,08/01/2020,H59620200110MSZTGHBDM-1,8.78,WALSALL GALA CENTRE-STATIONERY & GENERAL SUPPLIES,MISCELLANEOUS AND SPECIALTY RETAIL STORES,GPC
WALSALL COUNCIL,HTTP://OPENDATACOMMUNITIES.ORG/ID/METROPOLITAN-DISTRICT-COUNCIL/WALSALL,31/03/2020,ECONOMY & ENVIRONMENT,AMZNMKTPLACE,08/01/2020,H59620200110MSZTGHBDM-2,8.77,DARLASTON LEISURE CENTRE-STATIONERY & GENERAL SUPPLIES,MISCELLANEOUS AND SPECIALTY RETAIL STORES,GPC
WALSALL COUNCIL,HTTP://OPENDATACOMMUNITIES.ORG/ID/METROPOLITAN-DISTRICT-COUNCIL/WALSALL,31/03/2020,SCHOOLS,AMZ*AMAZON.CO.UK,08/01/2020,H59620200110NDSRQRBJO-1,-12.18,ADMINISTRATIVE SUPPLIES-GENERAL MATERIALS,OTHER DIRECT MARKETING-OTHER DIRECT MARKETERS,GPC
WALSALL COUNCIL,HTTP://OPENDATACOMMUNITIES.ORG/ID/METROPOLITAN-DISTRICT-COUNCIL/WALSALL,31/03/2020,ECONOMY & ENVIRONMENT,INGIMEX LIMITED VT,08/01/2020,H59620200110NDYOOUVTH-1,46.36,FLEET-GENERAL MATERIALS,"AUTOMOTIVE PARTS, ACCESSORIES STORES",GPC
WALSALL COUNCIL,HTTP://OPENDATACOMMUNITIES.ORG/ID/METROPOLITAN-DISTRICT-COUNCIL/WALSALL,31/03/2020,CHILDRENS SERVICES,DOLPHIN LIFTS MIDLANDS,08/01/2020,H59620200110NFYXEXMBW-1,270.00,CONTACT SESSIONAL STAFF-GENERAL MATERIALS,DENTAL/LABORATORY/MEDICAL EQUIPMENT & SUPPLIES,GPC
WALSALL COUNCIL,HTTP://OPENDATACOMMUNITIES.ORG/ID/METROPOLITAN-DISTRICT-COUNCIL/WALSALL,31/03/2020,CHILDRENS SERVICES,M AND M DIRECT LTD,08/01/2020,H59620200110NLMMCVWFD-1,103.87,SUPPORT UNDER SECT 23 OF THE C-SUPPORT UNDER SECTION 23 OF TH,SPORTING GOODS STORES,GPC
WALSALL COUNCIL,HTTP://OPENDATACOMMUNITIES.ORG/ID/METROPOLITAN-DISTRICT-COUNCIL/WALSALL,31/03/2020,CHILDRENS SERVICES,M AND M DIRECT LTD,08/01/2020,H59620200110NLMMCVWFD-2,38.98,SUPPORT UNDER SECT 23 OF THE C-SUPPORT UNDER SECTION 23 OF TH,SPORTING GOODS STORES,GPC
WALSALL COUNCIL,HTTP://OPENDATACOMMUNITIES.ORG/ID/METROPOLITAN-DISTRICT-COUNCIL/WALSALL,31/03/2020,RESOURCES & TRANSFORMATION,AMZNMKTPLACE,08/01/2020,H59620200110OFLPLUGMR-1,38.99,ACCOMMODATION SERVICES MANAGEM-STATIONERY & GENERAL SUPPLIES,MISCELLANEOUS AND SPECIALTY RETAIL STORES,GPC
WALSALL COUNCIL,HTTP://OPENDATACOMMUNITIES.ORG/ID/METROPOLITAN-DISTRICT-COUNCIL/WALSALL,31/03/2020,RESOURCES & TRANSFORMATION,AMZNMKTPLACE,08/01/2020,H59620200110OFLPLUGMR-2,7.93,ACCOMMODATION SERVICES MANAGEM-STATIONERY & GENERAL SUPPLIES,MISCELLANEOUS AND SPECIALTY RETAIL STORES,GPC
WALSALL COUNCIL,HTTP://OPENDATACOMMUNITIES.ORG/ID/METROPOLITAN-DISTRICT-COUNCIL/WALSALL,31/03/2020,RESOURCES & TRANSFORMATION,BLAKEMORE FOODSERVICE,08/01/2020,H59620200110OHQGGIHRL-1,15.49,CA MOORCROFT WOOD-FOOD & DRINK SUPPLIES,CATERERS,GPC
WALSALL COUNCIL,HTTP://OPENDATACOMMUNITIES.ORG/ID/METROPOLITAN-DISTRICT-COUNCIL/WALSALL,31/03/2020,RESOURCES & TRANSFORMATION,BLAKEMORE FOODSERVICE,08/01/2020,H59620200110OHQGGIHRL-2,16.72,CA MOORCROFT WOOD-FOOD & DRINK SUPPLIES,CATERERS,GPC
WALSALL COUNCIL,HTTP://OPENDATACOMMUNITIES.ORG/ID/METROPOLITAN-DISTRICT-COUNCIL/WALSALL,31/03/2020,ECONOMY & ENVIRONMENT,WWW.BANNERUK.COM,08/01/2020,H59620200110OPZDPOJKX-1,34.93,CENTRALISED STATIONARY-STATIONERY & GENERAL SUPPLIES,"STATIONERY, OFFICE SUPPLIES AND WRITING PAPER",GPC
WALSALL COUNCIL,HTTP://OPENDATACOMMUNITIES.ORG/ID/METROPOLITAN-DISTRICT-COUNCIL/WALSALL,31/03/2020,ECONOMY & ENVIRONMENT,WALSALL WOOD,08/01/2020,H59620200110OWBVNNZOQ-1,53.49,INFRASTRUCTURE MAINTENANCE-GENERAL MATERIALS,LUMBER & BUILDING MATERIALS STORES,GPC
WALSALL COUNCIL,HTTP://OPENDATACOMMUNITIES.ORG/ID/METROPOLITAN-DISTRICT-COUNCIL/WALSALL,31/03/2020,RESOURCES & TRANSFORMATION,BLAKEMORE FOODSERVICE,08/01/2020,H59620200110PCAIQGWHG-1,211.62,CA MOORCROFT WOOD-CATERING,CATERERS,GPC
WALSALL COUNCIL,HTTP://OPENDATACOMMUNITIES.ORG/ID/METROPOLITAN-DISTRICT-COUNCIL/WALSALL,31/03/2020,ECONOMY & ENVIRONMENT,AMAZON.CO.UK*BR30J3RQ5,08/01/2020,H59620200110PJVTLMBNA-1,18.00,OAK PARK-GENERAL MATERIALS,OTHER DIRECT MARKETING-OTHER DIRECT MARKETERS,GPC
WALSALL COUNCIL,HTTP://OPENDATACOMMUNITIES.ORG/ID/METROPOLITAN-DISTRICT-COUNCIL/WALSALL,31/03/2020,ECONOMY & ENVIRONMENT,AMAZON.CO.UK*BR30J3RQ5,08/01/2020,H59620200110PJVTLMBNA-2,18.00,BLOXWICH LEISURE CENTRE-GENERAL MATERIALS,OTHER DIRECT MARKETING-OTHER DIRECT MARKETERS,GPC
WALSALL COUNCIL,HTTP://OPENDATACOMMUNITIES.ORG/ID/METROPOLITAN-DISTRICT-COUNCIL/WALSALL,31/03/2020,ECONOMY & ENVIRONMENT,AMAZON.CO.UK*BR30J3RQ5,08/01/2020,H59620200110PJVTLMBNA-3,7.49,WALSALL GALA CENTRE-GENERAL MATERIALS,OTHER DIRECT MARKETING-OTHER DIRECT MARKETERS,GPC
WALSALL COUNCIL,HTTP://OPENDATACOMMUNITIES.ORG/ID/METROPOLITAN-DISTRICT-COUNCIL/WALSALL,31/03/2020,ECONOMY & ENVIRONMENT,AMAZON.CO.UK*BR30J3RQ5,08/01/2020,H59620200110PJVTLMBNA-4,7.45,DARLASTON LEISURE CENTRE-GENERAL MATERIALS,OTHER DIRECT MARKETING-OTHER DIRECT MARKETERS,GPC
WALSALL COUNCIL,HTTP://OPENDATACOMMUNITIES.ORG/ID/METROPOLITAN-DISTRICT-COUNCIL/WALSALL,31/03/2020,CHILDRENS SERVICES,WALSALL STN T/O,08/01/2020,H59620200110PJYIZEJDS-1,38.80,SUPPORT UNDER SECT 23 OF THE C-SUPPORT UNDER SECTION 23 OF TH,PASSENGER RAILWAYS,GPC
WALSALL COUNCIL,HTTP://OPENDATACOMMUNITIES.ORG/ID/METROPOLITAN-DISTRICT-COUNCIL/WALSALL,31/03/2020,ECONOMY & ENVIRONMENT,WWW.BANNERUK.COM,08/01/2020,H59620200110PSIBBBSCM-1,59.69,CENTRALISED STATIONARY-STATIONERY & GENERAL SUPPLIES,"STATIONERY, OFFICE SUPPLIES AND WRITING PAPER",GPC
WALSALL COUNCIL,HTTP://OPENDATACOMMUNITIES.ORG/ID/METROPOLITAN-DISTRICT-COUNCIL/WALSALL,31/03/2020,CHILDRENS SERVICES,AMAZON.CO.UK*N664G0205,08/01/2020,H59620200110PYMPGJFKS-1,6.99,LITERACY-LIBRARY BOOKS,OTHER DIRECT MARKETING-OTHER DIRECT MARKETERS,GPC
WALSALL COUNCIL,HTTP://OPENDATACOMMUNITIES.ORG/ID/METROPOLITAN-DISTRICT-COUNCIL/WALSALL,31/03/2020,RESOURCES & TRANSFORMATION,WM MORRISONS STORE,08/01/2020,H59620200110QCSTFGOIQ-1,9.00,CA MOORCROFT WOOD-FOOD & DRINK SUPPLIES,GROCERY STORES AND SUPERMARKETS,GPC
WALSALL COUNCIL,HTTP://OPENDATACOMMUNITIES.ORG/ID/METROPOLITAN-DISTRICT-COUNCIL/WALSALL,31/03/2020,RESOURCES & TRANSFORMATION,BLAKEMORE FOODSERVICE,08/01/2020,H59620200110RBGLLXUZB-1,388.88,CA ELMORE GREEN PRIMARY SCHOOL-FOOD & DRINK SUPPLIES,CATERERS,GPC
WALSALL COUNCIL,HTTP://OPENDATACOMMUNITIES.ORG/ID/METROPOLITAN-DISTRICT-COUNCIL/WALSALL,31/03/2020,RESOURCES & TRANSFORMATION,BLAKEMORE FOODSERVICE,08/01/2020,H59620200110RLAXSEBCV-1,422.74,CA MEADOW VIEW JMI PRIMARY SCH-FOOD & DRINK SUPPLIES,CATERERS,GPC
WALSALL COUNCIL,HTTP://OPENDATACOMMUNITIES.ORG/ID/METROPOLITAN-DISTRICT-COUNCIL/WALSALL,31/03/2020,RESOURCES & TRANSFORMATION,BLAKEMORE FOODSERVICE,08/01/2020,H59620200110RMXMVSYDO-1,167.35,CA OAKWOOD SPECIAL SCHOOL-FOOD & DRINK SUPPLIES,CATERERS,GPC
WALSALL COUNCIL,HTTP://OPENDATACOMMUNITIES.ORG/ID/METROPOLITAN-DISTRICT-COUNCIL/WALSALL,31/03/2020,RESOURCES & TRANSFORMATION,BLAKEMORE FOODSERVICE,08/01/2020,H59620200110RMXMVSYDO-2,23.43,CA OAKWOOD SPECIAL SCHOOL-FOOD & DRINK SUPPLIES,CATERERS,GPC
WALSALL COUNCIL,HTTP://OPENDATACOMMUNITIES.ORG/ID/METROPOLITAN-DISTRICT-COUNCIL/WALSALL,31/03/2020,CHILDRENS SERVICES,AMAZON.CO.UK*5Z3MY21Q5,08/01/2020,H59620200110RQHUNXYDB-1,55.77,LITERACY-LIBRARY BOOKS,OTHER DIRECT MARKETING-OTHER DIRECT MARKETERS,GPC
WALSALL COUNCIL,HTTP://OPENDATACOMMUNITIES.ORG/ID/METROPOLITAN-DISTRICT-COUNCIL/WALSALL,31/03/2020,CHILDRENS SERVICES,PAYPAL *RKEYSCOUK,08/01/2020,H59620200110SHEDLFQJV-1,9.85,ST FRANCIS OF ASSISI CATHOLIC -OPERATIONAL MAINTENANCE,ELECTRONIC SALES,GPC
WALSALL COUNCIL,HTTP://OPENDATACOMMUNITIES.ORG/ID/METROPOLITAN-DISTRICT-COUNCIL/WALSALL,31/03/2020,RESOURCES & TRANSFORMATION,BLAKEMORE FOODSERVICE,08/01/2020,H59620200110SONUVBGBG-1,33.42,CA ELMWOOD SPECIAL SCHOOL-FOOD & DRINK SUPPLIES,CATERERS,GPC
WALSALL COUNCIL,HTTP://OPENDATACOMMUNITIES.ORG/ID/METROPOLITAN-DISTRICT-COUNCIL/WALSALL,31/03/2020,CHILDRENS SERVICES,SAFELINCS,08/01/2020,H59620200110SPVUXOJCO-1,85.14,SALISBURY PRIMARY SCHOOL-OPERATIONAL MAINTENANCE,"EQUIPMENT, FURNITURE, AND HOME FURNISHINGS STORES ",GPC
WALSALL COUNCIL,HTTP://OPENDATACOMMUNITIES.ORG/ID/METROPOLITAN-DISTRICT-COUNCIL/WALSALL,31/03/2020,RESOURCES & TRANSFORMATION,BLAKEMORE FOODSERVICE,08/01/2020,H59620200110SSDNUEHKP-1,238.65,CA ST GILES C.E. PRIMARY SCHOO-FOOD & DRINK SUPPLIES,CATERERS,GPC
WALSALL COUNCIL,HTTP://OPENDATACOMMUNITIES.ORG/ID/METROPOLITAN-DISTRICT-COUNCIL/WALSALL,31/03/2020,CHILDRENS SERVICES,AMZNMKTPLACE,08/01/2020,H59620200110STDHPUCSP-1,25.98,SEN-STATIONERY & GENERAL SUPPLIES,MISCELLANEOUS AND SPECIALTY RETAIL STORES,GPC
WALSALL COUNCIL,HTTP://OPENDATACOMMUNITIES.ORG/ID/METROPOLITAN-DISTRICT-COUNCIL/WALSALL,31/03/2020,CHILDRENS SERVICES,O2,08/01/2020,H59620200110SXNESJOBW-1,33.00,ADMIN-TELEPHONES MOBILE/PAGERS-TELEP,TELECOMMUNICATION SERVICES,GPC
WALSALL COUNCIL,HTTP://OPENDATACOMMUNITIES.ORG/ID/METROPOLITAN-DISTRICT-COUNCIL/WALSALL,31/03/2020,CHILDRENS SERVICES,AMZNMKTPLACE,08/01/2020,H59620200110SZTGNVPSY-1,43.98,ADMINISTRATIVE SUPPLIES-GENERAL MATERIALS,MISCELLANEOUS AND SPECIALTY RETAIL STORES,GPC
WALSALL COUNCIL,HTTP://OPENDATACOMMUNITIES.ORG/ID/METROPOLITAN-DISTRICT-COUNCIL/WALSALL,31/03/2020,RESOURCES & TRANSFORMATION,AMZNMKTPLACE,08/01/2020,H59620200110TYTEOLQXS-1,7.27,ACCOMMODATION SERVICES MANAGEM-STATIONERY & GENERAL SUPPLIES,MISCELLANEOUS AND SPECIALTY RETAIL STORES,GPC
WALSALL COUNCIL,HTTP://OPENDATACOMMUNITIES.ORG/ID/METROPOLITAN-DISTRICT-COUNCIL/WALSALL,31/03/2020,RESOURCES & TRANSFORMATION,BLAKEMORE FOODSERVICE,08/01/2020,H59620200110UMMSKLJDD-1,14.48,CA ELMORE GREEN PRIMARY SCHOOL-FOOD & DRINK SUPPLIES,CATERERS,GPC
WALSALL COUNCIL,HTTP://OPENDATACOMMUNITIES.ORG/ID/METROPOLITAN-DISTRICT-COUNCIL/WALSALL,31/03/2020,RESOURCES & TRANSFORMATION,BLAKEMORE FOODSERVICE,08/01/2020,H59620200110UPPNTPKGE-1,125.10,CA OLD HALL SPECIAL SCHOOL-FOOD & DRINK SUPPLIES,CATERERS,GPC
WALSALL COUNCIL,HTTP://OPENDATACOMMUNITIES.ORG/ID/METROPOLITAN-DISTRICT-COUNCIL/WALSALL,31/03/2020,SCHOOLS,GARDEN GAMES/ BIG GAME,08/01/2020,H59620200110URSPFHYXV-1,121.89,E19-GENERAL MATERIALS,"GAME, TOY, AND HOBBY SHOPS",GPC
WALSALL COUNCIL,HTTP://OPENDATACOMMUNITIES.ORG/ID/METROPOLITAN-DISTRICT-COUNCIL/WALSALL,31/03/2020,CHILDRENS SERVICES,PAYPAL *ILLUMINATE,08/01/2020,H59620200110UTMEECUOS-1,24.99,MEDIA-GENERAL MATERIALS,BOOK STORES,GPC
WALSALL COUNCIL,HTTP://OPENDATACOMMUNITIES.ORG/ID/METROPOLITAN-DISTRICT-COUNCIL/WALSALL,31/03/2020,CHILDRENS SERVICES,PAYPAL *ILLUMINATE,08/01/2020,H59620200110UTMEECUOS-2,3.00,MEDIA-GENERAL MATERIALS,BOOK STORES,GPC
WALSALL COUNCIL,HTTP://OPENDATACOMMUNITIES.ORG/ID/METROPOLITAN-DISTRICT-COUNCIL/WALSALL,31/03/2020,RESOURCES & TRANSFORMATION,AMZNMKTPLACE,08/01/2020,H59620200110UWNOWDVTR-1,15.48,CENTRAL OFFICE ACCOMMODATION-GENERAL MATERIALS,MISCELLANEOUS AND SPECIALTY RETAIL STORES,GPC
WALSALL COUNCIL,HTTP://OPENDATACOMMUNITIES.ORG/ID/METROPOLITAN-DISTRICT-COUNCIL/WALSALL,31/03/2020,CHILDRENS SERVICES,WALSALL STN T/O,08/01/2020,H59620200110UXAUOAUMS-1,96.20,LOOKED AFTER CHILDRENS SOCIAL -OFFICER/STAFF-PUBLIC TRANSPORT,PASSENGER RAILWAYS,GPC
WALSALL COUNCIL,HTTP://OPENDATACOMMUNITIES.ORG/ID/METROPOLITAN-DISTRICT-COUNCIL/WALSALL,31/03/2020,RESOURCES & TRANSFORMATION,BLAKEMORE FOODSERVICE,08/01/2020,H59620200110VGXUXALIV-1,524.63,CA BARCROFT D/C-CATERING,CATERERS,GPC
WALSALL COUNCIL,HTTP://OPENDATACOMMUNITIES.ORG/ID/METROPOLITAN-DISTRICT-COUNCIL/WALSALL,31/03/2020,CHILDRENS SERVICES,WWW.BANNERUK.COM,08/01/2020,H59620200110VNDMFQSOT-1,20.90,LOCALITY FAMILY SUPPORT-NORTH-STATIONERY & GENERAL SUPPLIES,"STATIONERY, OFFICE SUPPLIES AND WRITING PAPER",GPC
WALSALL COUNCIL,HTTP://OPENDATACOMMUNITIES.ORG/ID/METROPOLITAN-DISTRICT-COUNCIL/WALSALL,31/03/2020,ECONOMY & ENVIRONMENT,AMZNMKTPLACE,08/01/2020,H59620200110WIUGFVISH-1,51.26,WALSALL ARENA AND ARTS CENTRE-FOOD & DRINK SUPPLIES,MISCELLANEOUS AND SPECIALTY RETAIL STORES,GPC
WALSALL COUNCIL,HTTP://OPENDATACOMMUNITIES.ORG/ID/METROPOLITAN-DISTRICT-COUNCIL/WALSALL,31/03/2020,RESOURCES & TRANSFORMATION,BLAKEMORE FOODSERVICE,08/01/2020,H59620200110WSXMTRGQT-1,124.56,CA BUSILL JONES PRIMARY SCHOOL-FOOD & DRINK SUPPLIES,CATERERS,GPC
WALSALL COUNCIL,HTTP://OPENDATACOMMUNITIES.ORG/ID/METROPOLITAN-DISTRICT-COUNCIL/WALSALL,31/03/2020,SCHOOLS,DEMCO EUROPE,08/01/2020,H59620200110WVUQKJDNZ-1,98.40,E19-GENERAL MATERIALS,OFFICE AND COMMERCIAL FURNITURE,GPC
WALSALL COUNCIL,HTTP://OPENDATACOMMUNITIES.ORG/ID/METROPOLITAN-DISTRICT-COUNCIL/WALSALL,31/03/2020,CHILDRENS SERVICES,AMAZON.CO.UK*817ZB6QZ5,08/01/2020,H59620200110XMNXQLCDO-1,33.98,LITERACY-LIBRARY BOOKS,OTHER DIRECT MARKETING-OTHER DIRECT MARKETERS,GPC
WALSALL COUNCIL,HTTP://OPENDATACOMMUNITIES.ORG/ID/METROPOLITAN-DISTRICT-COUNCIL/WALSALL,31/03/2020,CHILDRENS SERVICES,TT SKATE PROPERTIES LIMI,08/01/2020,H59620200110XQGSEICMK-1,77.35,SAFEGUARDING & FAMILY SUPPORT-HOTEL ACCOMMODATION-EMPLOYEES,HAMPTON INNS,GPC
WALSALL COUNCIL,HTTP://OPENDATACOMMUNITIES.ORG/ID/METROPOLITAN-DISTRICT-COUNCIL/WALSALL,31/03/2020,RESOURCES & TRANSFORMATION,BLAKEMORE FOODSERVICE,08/01/2020,H59620200110XVWQULXVY-1,315.13,CA LINDENS PRIMARY SCHOOL-FOOD & DRINK SUPPLIES,CATERERS,GPC
WALSALL COUNCIL,HTTP://OPENDATACOMMUNITIES.ORG/ID/METROPOLITAN-DISTRICT-COUNCIL/WALSALL,31/03/2020,ECONOMY & ENVIRONMENT,B & Q 1276,08/01/2020,H59620200110YDZWRLMKO-1,9.50,INFRASTRUCTURE MAINTENANCE-GENERAL MATERIALS,HOME SUPPLY WAREHOUSE STORES,GPC
WALSALL COUNCIL,HTTP://OPENDATACOMMUNITIES.ORG/ID/METROPOLITAN-DISTRICT-COUNCIL/WALSALL,31/03/2020,CHILDRENS SERVICES,AMAZON.CO.UK*631XM85E5,08/01/2020,H59620200110YGFXWUGHY-1,38.45,SEN-STATIONERY & GENERAL SUPPLIES,OTHER DIRECT MARKETING-OTHER DIRECT MARKETERS,GPC
WALSALL COUNCIL,HTTP://OPENDATACOMMUNITIES.ORG/ID/METROPOLITAN-DISTRICT-COUNCIL/WALSALL,31/03/2020,CHILDRENS SERVICES,AMAZON.CO.UK*TF4QR7FK5,08/01/2020,H59620200110YNTOXBNDK-1,6.99,LITERACY-LIBRARY BOOKS,OTHER DIRECT MARKETING-OTHER DIRECT MARKETERS,GPC
WALSALL COUNCIL,HTTP://OPENDATACOMMUNITIES.ORG/ID/METROPOLITAN-DISTRICT-COUNCIL/WALSALL,31/03/2020,SCHOOLS,VINE LODGE PRODUCTS LT,08/01/2020,H59620200110YOMCBRJYW-1,88.96,E19-GENERAL MATERIALS,MISCELLANEOUS PUBLISHING AND PRINTING,GPC
WALSALL COUNCIL,HTTP://OPENDATACOMMUNITIES.ORG/ID/METROPOLITAN-DISTRICT-COUNCIL/WALSALL,31/03/2020,RESOURCES & TRANSFORMATION,BLAKEMORE FOODSERVICE,08/01/2020,H59620200110YPKBLGGDW-1,273.90,CA ST MICHAELS C.E. PRIMARY SC-FOOD & DRINK SUPPLIES,CATERERS,GPC
WALSALL COUNCIL,HTTP://OPENDATACOMMUNITIES.ORG/ID/METROPOLITAN-DISTRICT-COUNCIL/WALSALL,31/03/2020,CHILDRENS SERVICES,WALSALL STN T/O,08/01/2020,H59620200110YSLLMXKKQ-1,264.00,LOOKED AFTER CHILDRENS SOCIAL -OFFICER/STAFF-PUBLIC TRANSPORT,PASSENGER RAILWAYS,GPC
WALSALL COUNCIL,HTTP://OPENDATACOMMUNITIES.ORG/ID/METROPOLITAN-DISTRICT-COUNCIL/WALSALL,31/03/2020,SCHOOLS,ALLIEDVEHICLES.CO.UK,08/01/2020,H59620200110YUMSNFFUP-1,60.00,E19-GENERAL MATERIALS,"AUTOMOBILE SALES, SERVICE, REPAIRS",GPC
WALSALL COUNCIL,HTTP://OPENDATACOMMUNITIES.ORG/ID/METROPOLITAN-DISTRICT-COUNCIL/WALSALL,31/03/2020,CHILDRENS SERVICES,AMZNMKTPLACE,08/01/2020,H59620200110ZIKKLJWVX-1,19.93,SEN-STATIONERY & GENERAL SUPPLIES,MISCELLANEOUS AND SPECIALTY RETAIL STORES,GPC
WALSALL COUNCIL,HTTP://OPENDATACOMMUNITIES.ORG/ID/METROPOLITAN-DISTRICT-COUNCIL/WALSALL,31/03/2020,CHILDRENS SERVICES,ARGOS LTD,08/01/2020,H59620200110ZQDDJEWOF-1,138.66,SAFEGUARDING & FAMILY SUPPORT-SECTION 1/17CHILD CARE ACT 198,DISCOUNT STORES,GPC
WALSALL COUNCIL,HTTP://OPENDATACOMMUNITIES.ORG/ID/METROPOLITAN-DISTRICT-COUNCIL/WALSALL,31/03/2020,CHILDRENS SERVICES,ARGOS LTD,08/01/2020,H59620200110ZQDDJEWOF-2,3.29,SAFEGUARDING & FAMILY SUPPORT-POSTAGES AND COURIER SERVICES,DISCOUNT STORES,GPC
WALSALL COUNCIL,HTTP://OPENDATACOMMUNITIES.ORG/ID/METROPOLITAN-DISTRICT-COUNCIL/WALSALL,31/03/2020,RESOURCES & TRANSFORMATION,AMZNMKTPLACE AMAZON.CO.UK,08/01/2020,H59620200111LMRPTEWDZ-1,24.89,APPLICATIONS-STATIONERY & GENERAL SUPPLIES,MISCELLANEOUS AND SPECIALTY RETAIL STORES,GPC
WALSALL COUNCIL,HTTP://OPENDATACOMMUNITIES.ORG/ID/METROPOLITAN-DISTRICT-COUNCIL/WALSALL,31/03/2020,CHILDRENS SERVICES,HAMPTON BY HILTON BRISTOL,08/01/2020,H59620200111PYKNUYJVK-1,-77.34,SAFEGUARDING & FAMILY SUPPORT-ACCOMMODATION AND RELATED COST,HAMPTON INNS,GPC
WALSALL COUNCIL,HTTP://OPENDATACOMMUNITIES.ORG/ID/METROPOLITAN-DISTRICT-COUNCIL/WALSALL,31/03/2020,CHILDRENS SERVICES,B & M RETAIL,09/01/2020,H59620200111AMUIBTGDW-1,2.89,SAFEGUARDING BOARD-FOOD & DRINK SUPPLIES,DISCOUNT STORES,GPC
WALSALL COUNCIL,HTTP://OPENDATACOMMUNITIES.ORG/ID/METROPOLITAN-DISTRICT-COUNCIL/WALSALL,31/03/2020,RESOURCES & TRANSFORMATION,WILKO RETAIL LIMITED,09/01/2020,H59620200111AWJOKGQWY-1,57.60,WALSALL CRISIS SUPPORT SCHEME-CRISIS SUPPORT PAYMENTS,MISCELLANEOUS GENERAL MERCHANDISE,GPC
WALSALL COUNCIL,HTTP://OPENDATACOMMUNITIES.ORG/ID/METROPOLITAN-DISTRICT-COUNCIL/WALSALL,31/03/2020,RESOURCES & TRANSFORMATION,ASDA,09/01/2020,H59620200111BDCJUTPQR-1,104.00,YOUNG PERSONS HOMELESS SERVICE-FOOD & DRINK SUPPLIES,GROCERY STORES AND SUPERMARKETS,GPC
WALSALL COUNCIL,HTTP://OPENDATACOMMUNITIES.ORG/ID/METROPOLITAN-DISTRICT-COUNCIL/WALSALL,31/03/2020,CHILDRENS SERVICES,AMAZON.CO.UK*DS7340XD5,09/01/2020,H59620200111BDEHNXKTU-1,5.92,PHYSICAL EDUCATION-GENERAL MATERIALS,OTHER DIRECT MARKETING-OTHER DIRECT MARKETERS,GPC
WALSALL COUNCIL,HTTP://OPENDATACOMMUNITIES.ORG/ID/METROPOLITAN-DISTRICT-COUNCIL/WALSALL,31/03/2020,ECONOMY & ENVIRONMENT,AMZNMKTPLACE,09/01/2020,H59620200111BNXSTGLAQ-1,8.50,CENTRALISED STATIONARY-STATIONERY & GENERAL SUPPLIES,MISCELLANEOUS AND SPECIALTY RETAIL STORES,GPC
WALSALL COUNCIL,HTTP://OPENDATACOMMUNITIES.ORG/ID/METROPOLITAN-DISTRICT-COUNCIL/WALSALL,31/03/2020,RESOURCES & TRANSFORMATION,TWITTER ONLINE ADS,09/01/2020,H59620200111BQWLNHYSY-1,10.00,SCHOOL HR TRANSACTIONAL TEAM-ADVERTISING STAFF VACANCIES,ADVERTISING SERVICES,GPC
WALSALL COUNCIL,HTTP://OPENDATACOMMUNITIES.ORG/ID/METROPOLITAN-DISTRICT-COUNCIL/WALSALL,31/03/2020,CHILDRENS SERVICES,WALSALL COUNCIL,09/01/2020,H59620200111BRLXLVKBS-1,42.34,ST JOHNS C.E. PRIMARY SCHOOL-POLICE CHECKS-EMPLOYEES,GOVERNMENT SERVICES,GPC
WALSALL COUNCIL,HTTP://OPENDATACOMMUNITIES.ORG/ID/METROPOLITAN-DISTRICT-COUNCIL/WALSALL,31/03/2020,CHILDRENS SERVICES,WM MORRISONS STORE,09/01/2020,H59620200111BWCHLJWHI-1,17.00,"43A HILTON ROAD, WILLENHALL-CLEANING MATERIALS",GROCERY STORES AND SUPERMARKETS,GPC
WALSALL COUNCIL,HTTP://OPENDATACOMMUNITIES.ORG/ID/METROPOLITAN-DISTRICT-COUNCIL/WALSALL,31/03/2020,ECONOMY & ENVIRONMENT,TOOLSTATION LTD,09/01/2020,H59620200111CELLENBBI-1,2.21,INFRASTRUCTURE MAINTENANCE-GENERAL MATERIALS,HARDWARE STORES,GPC
WALSALL COUNCIL,HTTP://OPENDATACOMMUNITIES.ORG/ID/METROPOLITAN-DISTRICT-COUNCIL/WALSALL,31/03/2020,CHILDRENS SERVICES,ASDA SUPERSTORE,09/01/2020,H59620200111CONNSWYLT-1,5.80,LOCALITY FAMILY SUPPORT-NORTH-CLEANING MATERIALS,GROCERY STORES AND SUPERMARKETS,GPC
WALSALL COUNCIL,HTTP://OPENDATACOMMUNITIES.ORG/ID/METROPOLITAN-DISTRICT-COUNCIL/WALSALL,31/03/2020,CHILDRENS SERVICES,ASDA SUPERSTORE,09/01/2020,H59620200111CONNSWYLT-2,1.90,LOCALITY FAMILY SUPPORT-NORTH-CLEANING MATERIALS,GROCERY STORES AND SUPERMARKETS,GPC
WALSALL COUNCIL,HTTP://OPENDATACOMMUNITIES.ORG/ID/METROPOLITAN-DISTRICT-COUNCIL/WALSALL,31/03/2020,CHILDRENS SERVICES,ASDA SUPERSTORE,09/01/2020,H59620200111CONNSWYLT-3,8.04,LOCALITY FAMILY SUPPORT-NORTH-FOOD & DRINK SUPPLIES,GROCERY STORES AND SUPERMARKETS,GPC
WALSALL COUNCIL,HTTP://OPENDATACOMMUNITIES.ORG/ID/METROPOLITAN-DISTRICT-COUNCIL/WALSALL,31/03/2020,ECONOMY & ENVIRONMENT,AMAZON.CO.UK*MJ2SJ2PF5,09/01/2020,H59620200111DAKXROUPM-1,41.28,WALSALL ARENA AND ARTS CENTRE-FOOD & DRINK SUPPLIES,OTHER DIRECT MARKETING-OTHER DIRECT MARKETERS,GPC
WALSALL COUNCIL,HTTP://OPENDATACOMMUNITIES.ORG/ID/METROPOLITAN-DISTRICT-COUNCIL/WALSALL,31/03/2020,ECONOMY & ENVIRONMENT,TAYLOR NEWS,09/01/2020,H59620200111DCVFRFTKI-1,30.60,STREETLY LIBRARY-NEWSPAPERS/PERIODICALS/MAGAZIN,GROCERY STORES AND SUPERMARKETS,GPC
WALSALL COUNCIL,HTTP://OPENDATACOMMUNITIES.ORG/ID/METROPOLITAN-DISTRICT-COUNCIL/WALSALL,31/03/2020,CHILDRENS SERVICES,PAYPAL *PAPER PLUS,09/01/2020,H59620200111DIXYSSJJO-1,96.96,CURRICULUM STOCK-GENERAL MATERIALS,"OFFICE, SCHOOL SUPPLY, AND STATIONERY STORES",GPC
WALSALL COUNCIL,HTTP://OPENDATACOMMUNITIES.ORG/ID/METROPOLITAN-DISTRICT-COUNCIL/WALSALL,31/03/2020,CHILDRENS SERVICES,ASDA SUPERSTORE,09/01/2020,H59620200111DKKOXOFSU-1,3.32,EARLY HELP HUB-FOOD & DRINK SUPPLIES,GROCERY STORES AND SUPERMARKETS,GPC
WALSALL COUNCIL,HTTP://OPENDATACOMMUNITIES.ORG/ID/METROPOLITAN-DISTRICT-COUNCIL/WALSALL,31/03/2020,CHILDRENS SERVICES,TESCO STORE 3351,09/01/2020,H59620200111ECAIIZJHY-1,10.60,EARLY YEARS DEPARTMENT-GENERAL MATERIALS,GROCERY STORES AND SUPERMARKETS,GPC
WALSALL COUNCIL,HTTP://OPENDATACOMMUNITIES.ORG/ID/METROPOLITAN-DISTRICT-COUNCIL/WALSALL,31/03/2020,ECONOMY & ENVIRONMENT,COSTA COFFEE WALSALL 1,09/01/2020,H59620200111FHKICEHGT-1,6.48,NEW ART GALLERY - ADMIN-OTHER EXPENSES-EXPENSES,QUICK PAYMENT SERVICE-FAST-FOOD RESTAURANTS,GPC
WALSALL COUNCIL,HTTP://OPENDATACOMMUNITIES.ORG/ID/METROPOLITAN-DISTRICT-COUNCIL/WALSALL,31/03/2020,CHILDRENS SERVICES,WALSALL STN T/O,09/01/2020,H59620200111FWDICGCAM-1,9.40,VIRTUAL SCHOOL - CENTRAL PUPIL-OFFICER/STAFF-PUBLIC TRANSPORT,PASSENGER RAILWAYS,GPC
WALSALL COUNCIL,HTTP://OPENDATACOMMUNITIES.ORG/ID/METROPOLITAN-DISTRICT-COUNCIL/WALSALL,31/03/2020,RESOURCES & TRANSFORMATION,FOCUS PROJECT MGMNT (E,09/01/2020,H59620200111GGHDYBELR-1,838.80,WPP PROGRAMME MANAGEMENT OFFIC-EXTERNAL TRAINING,"SCHOOLS, BUSINESS AND SECRETARIAL",GPC
WALSALL COUNCIL,HTTP://OPENDATACOMMUNITIES.ORG/ID/METROPOLITAN-DISTRICT-COUNCIL/WALSALL,31/03/2020,CHILDRENS SERVICES,THETRAINLINE.COM,09/01/2020,H59620200111HBYUVMSFM-1,6.41,INITIAL RESPONSE SERVICE-OFFICER/STAFF-PUBLIC TRANSPORT,PASSENGER RAILWAYS,GPC
WALSALL COUNCIL,HTTP://OPENDATACOMMUNITIES.ORG/ID/METROPOLITAN-DISTRICT-COUNCIL/WALSALL,31/03/2020,CHILDRENS SERVICES,CO-OPERATIVE FOOD,09/01/2020,H59620200111HIYPEUOTI-1,1.60,SAFEGUARDING BOARD-FOOD & DRINK SUPPLIES,GROCERY STORES AND SUPERMARKETS,GPC
WALSALL COUNCIL,HTTP://OPENDATACOMMUNITIES.ORG/ID/METROPOLITAN-DISTRICT-COUNCIL/WALSALL,31/03/2020,CHILDRENS SERVICES,THETRAINLINE.COM,09/01/2020,H59620200111HLBXFYSKI-1,128.65,CHILD PROTECTION & REVIEW SERV-OFFICER/STAFF-PUBLIC TRANSPORT,PASSENGER RAILWAYS,GPC
WALSALL COUNCIL,HTTP://OPENDATACOMMUNITIES.ORG/ID/METROPOLITAN-DISTRICT-COUNCIL/WALSALL,31/03/2020,CHILDRENS SERVICES,AMZNMKTPLACE,09/01/2020,H59620200111HMTPDBTUI-1,22.96,LEARNING ENVIRONMENT-GENERAL MATERIALS,MISCELLANEOUS AND SPECIALTY RETAIL STORES,GPC
WALSALL COUNCIL,HTTP://OPENDATACOMMUNITIES.ORG/ID/METROPOLITAN-DISTRICT-COUNCIL/WALSALL,31/03/2020,CHILDRENS SERVICES,AMAZON.CO.UK*BG63H41H5,09/01/2020,H59620200111INKLWHCNN-1,137.96,BLUEBELLS-RESIDENTS PERSONAL EXPENSES-AL,OTHER DIRECT MARKETING-OTHER DIRECT MARKETERS,GPC
WALSALL COUNCIL,HTTP://OPENDATACOMMUNITIES.ORG/ID/METROPOLITAN-DISTRICT-COUNCIL/WALSALL,31/03/2020,CHILDRENS SERVICES,B&M RETAIL,09/01/2020,H59620200111IUAJXUIRZ-1,12.19,ELMWOOD SCHOOL-CATERING,DISCOUNT STORES,GPC
WALSALL COUNCIL,HTTP://OPENDATACOMMUNITIES.ORG/ID/METROPOLITAN-DISTRICT-COUNCIL/WALSALL,31/03/2020,CHILDRENS SERVICES,B&M RETAIL,09/01/2020,H59620200111IUAJXUIRZ-2,3.28,ELMWOOD SCHOOL-CATERING,DISCOUNT STORES,GPC
WALSALL COUNCIL,HTTP://OPENDATACOMMUNITIES.ORG/ID/METROPOLITAN-DISTRICT-COUNCIL/WALSALL,31/03/2020,SCHOOLS,B&Q DIRECT,09/01/2020,H59620200111JOLKOMOZP-1,110.00,ALUMWELL JUNIOR SCHOOL-OPERATIONAL MAINTENANCE,HOME SUPPLY WAREHOUSE STORES,GPC
WALSALL COUNCIL,HTTP://OPENDATACOMMUNITIES.ORG/ID/METROPOLITAN-DISTRICT-COUNCIL/WALSALL,31/03/2020,ECONOMY & ENVIRONMENT,CARTRIDGE SAVE,09/01/2020,H59620200111JSFLDTKSW-1,110.82,FLEET-GENERAL MATERIALS,"STATIONERY, OFFICE SUPPLIES AND WRITING PAPER",GPC
WALSALL COUNCIL,HTTP://OPENDATACOMMUNITIES.ORG/ID/METROPOLITAN-DISTRICT-COUNCIL/WALSALL,31/03/2020,SCHOOLS,AMZNMKTPLACE,09/01/2020,H59620200111JYCEQCODT-1,9.56,E19-GENERAL MATERIALS,MISCELLANEOUS AND SPECIALTY RETAIL STORES,GPC
WALSALL COUNCIL,HTTP://OPENDATACOMMUNITIES.ORG/ID/METROPOLITAN-DISTRICT-COUNCIL/WALSALL,31/03/2020,CHILDRENS SERVICES,ASDA SUPERSTORE,09/01/2020,H59620200111KEPVVIIDU-1,25.37,REDRUTH ROAD-FOOD & DRINK SUPPLIES,GROCERY STORES AND SUPERMARKETS,GPC
WALSALL COUNCIL,HTTP://OPENDATACOMMUNITIES.ORG/ID/METROPOLITAN-DISTRICT-COUNCIL/WALSALL,31/03/2020,CHILDRENS SERVICES,REGISTRATION SERVICES,09/01/2020,H59620200111KFBTRMBGX-1,11.00,SAFEGUARDING & FAMILY SUPPORT-OTHER FEES & LICENCES-SERVICES,OTHER RECREATION SERVICES,GPC
WALSALL COUNCIL,HTTP://OPENDATACOMMUNITIES.ORG/ID/METROPOLITAN-DISTRICT-COUNCIL/WALSALL,31/03/2020,CHILDRENS SERVICES,AMZNMKTPLACE,09/01/2020,H59620200111KKNODGOIW-1,2.98,INFORMATION SERVICES-STATIONERY & GENERAL SUPPLIES,MISCELLANEOUS AND SPECIALTY RETAIL STORES,GPC
WALSALL COUNCIL,HTTP://OPENDATACOMMUNITIES.ORG/ID/METROPOLITAN-DISTRICT-COUNCIL/WALSALL,31/03/2020,CHILDRENS SERVICES,AMZNMKTPLACE,09/01/2020,H59620200111LVIRAUTXP-1,179.99,LOOKED AFTER CHILDRENS SOCIAL -STATIONERY & GENERAL SUPPLIES,MISCELLANEOUS AND SPECIALTY RETAIL STORES,GPC
WALSALL COUNCIL,HTTP://OPENDATACOMMUNITIES.ORG/ID/METROPOLITAN-DISTRICT-COUNCIL/WALSALL,31/03/2020,CHILDRENS SERVICES,TESCO STORE 3351,09/01/2020,H59620200111MCRKWAJGD-1,0.10,PELSALL VILLAGE SCHOOL-FOOD & DRINK SUPPLIES,GROCERY STORES AND SUPERMARKETS,GPC
WALSALL COUNCIL,HTTP://OPENDATACOMMUNITIES.ORG/ID/METROPOLITAN-DISTRICT-COUNCIL/WALSALL,31/03/2020,CHILDRENS SERVICES,TESCO STORE 3351,09/01/2020,H59620200111MCRKWAJGD-2,4.59,PELSALL VILLAGE SCHOOL-FOOD & DRINK SUPPLIES,GROCERY STORES AND SUPERMARKETS,GPC
WALSALL COUNCIL,HTTP://OPENDATACOMMUNITIES.ORG/ID/METROPOLITAN-DISTRICT-COUNCIL/WALSALL,31/03/2020,ECONOMY & ENVIRONMENT,SIM-MAYOU HARDWARE,09/01/2020,H59620200111MYJPORQIG-1,123.60,INFRASTRUCTURE MAINTENANCE-GENERAL MATERIALS,HARDWARE STORES,GPC
WALSALL COUNCIL,HTTP://OPENDATACOMMUNITIES.ORG/ID/METROPOLITAN-DISTRICT-COUNCIL/WALSALL,31/03/2020,CHILDRENS SERVICES,CURRYS ONLINE,09/01/2020,H59620200111NHNDSKOSD-1,239.00,BIRCHILLS CHILDCARE SERVICES-FURNITURE & EQUIPMENT,ELECTRONIC SALES,GPC
WALSALL COUNCIL,HTTP://OPENDATACOMMUNITIES.ORG/ID/METROPOLITAN-DISTRICT-COUNCIL/WALSALL,31/03/2020,CHILDRENS SERVICES,WM MORRISONS STORE,09/01/2020,H59620200111NKPYBRTMR-1,33.58,"43A HILTON ROAD, WILLENHALL-FOOD & DRINK SUPPLIES",GROCERY STORES AND SUPERMARKETS,GPC
WALSALL COUNCIL,HTTP://OPENDATACOMMUNITIES.ORG/ID/METROPOLITAN-DISTRICT-COUNCIL/WALSALL,31/03/2020,CHILDRENS SERVICES,WM MORRISONS STORE,09/01/2020,H59620200111NKPYBRTMR-2,130.97,"43A HILTON ROAD, WILLENHALL-FOOD & DRINK SUPPLIES",GROCERY STORES AND SUPERMARKETS,GPC
WALSALL COUNCIL,HTTP://OPENDATACOMMUNITIES.ORG/ID/METROPOLITAN-DISTRICT-COUNCIL/WALSALL,31/03/2020,CHILDRENS SERVICES,AMZNMKTPLACE,09/01/2020,H59620200111OLCWLKOWG-1,144.00,SEN-STATIONERY & GENERAL SUPPLIES,MISCELLANEOUS AND SPECIALTY RETAIL STORES,GPC
WALSALL COUNCIL,HTTP://OPENDATACOMMUNITIES.ORG/ID/METROPOLITAN-DISTRICT-COUNCIL/WALSALL,31/03/2020,ECONOMY & ENVIRONMENT,AMAZON.CO.UK*O12CH32U5,09/01/2020,H59620200111PCOHOHGVM-1,27.52,WALSALL ARENA AND ARTS CENTRE-FOOD & DRINK SUPPLIES,OTHER DIRECT MARKETING-OTHER DIRECT MARKETERS,GPC
WALSALL COUNCIL,HTTP://OPENDATACOMMUNITIES.ORG/ID/METROPOLITAN-DISTRICT-COUNCIL/WALSALL,31/03/2020,CHILDRENS SERVICES,AMZNMKTPLACE,09/01/2020,H59620200111PIPPZJTAR-1,11.95,LOOKED AFTER CHILDRENS SOCIAL -STATIONERY & GENERAL SUPPLIES,MISCELLANEOUS AND SPECIALTY RETAIL STORES,GPC
WALSALL COUNCIL,HTTP://OPENDATACOMMUNITIES.ORG/ID/METROPOLITAN-DISTRICT-COUNCIL/WALSALL,31/03/2020,CHILDRENS SERVICES,BCC REGISTER OFFIC,09/01/2020,H59620200111PIRVCYVIQ-1,14.00,SAFEGUARDING & FAMILY SUPPORT-OTHER FEES & LICENCES-SERVICES,GOVERNMENT SERVICES,GPC
WALSALL COUNCIL,HTTP://OPENDATACOMMUNITIES.ORG/ID/METROPOLITAN-DISTRICT-COUNCIL/WALSALL,31/03/2020,CHILDRENS SERVICES,B & Q 1276,09/01/2020,H59620200111QOJKECJUU-1,62.60,REDRUTH ROAD-OPERATIONAL MAINTENANCE,HOME SUPPLY WAREHOUSE STORES,GPC
WALSALL COUNCIL,HTTP://OPENDATACOMMUNITIES.ORG/ID/METROPOLITAN-DISTRICT-COUNCIL/WALSALL,31/03/2020,ECONOMY & ENVIRONMENT,SWIMMING TEACHERS ASSO,09/01/2020,H59620200111QPHSQGYOG-1,100.00,DARLASTON LEISURE CENTRE-FURNITURE & EQUIPMENT,OTHER RECREATION SERVICES,GPC
WALSALL COUNCIL,HTTP://OPENDATACOMMUNITIES.ORG/ID/METROPOLITAN-DISTRICT-COUNCIL/WALSALL,31/03/2020,ECONOMY & ENVIRONMENT,SWIMMING TEACHERS ASSO,09/01/2020,H59620200111QPHSQGYOG-2,100.00,OAK PARK-FURNITURE & EQUIPMENT,OTHER RECREATION SERVICES,GPC
WALSALL COUNCIL,HTTP://OPENDATACOMMUNITIES.ORG/ID/METROPOLITAN-DISTRICT-COUNCIL/WALSALL,31/03/2020,ECONOMY & ENVIRONMENT,SWIMMING TEACHERS ASSO,09/01/2020,H59620200111QPHSQGYOG-3,100.00,BLOXWICH LEISURE CENTRE-FURNITURE & EQUIPMENT,OTHER RECREATION SERVICES,GPC
WALSALL COUNCIL,HTTP://OPENDATACOMMUNITIES.ORG/ID/METROPOLITAN-DISTRICT-COUNCIL/WALSALL,31/03/2020,ECONOMY & ENVIRONMENT,SWIMMING TEACHERS ASSO,09/01/2020,H59620200111QPHSQGYOG-4,100.00,WALSALL GALA CENTRE-FURNITURE & EQUIPMENT,OTHER RECREATION SERVICES,GPC
WALSALL COUNCIL,HTTP://OPENDATACOMMUNITIES.ORG/ID/METROPOLITAN-DISTRICT-COUNCIL/WALSALL,31/03/2020,CHILDRENS SERVICES,AMZNMKTPLACE,09/01/2020,H59620200111QSKNKZBBV-1,16.07,INFORMATION SERVICES-STATIONERY & GENERAL SUPPLIES,MISCELLANEOUS AND SPECIALTY RETAIL STORES,GPC
WALSALL COUNCIL,HTTP://OPENDATACOMMUNITIES.ORG/ID/METROPOLITAN-DISTRICT-COUNCIL/WALSALL,31/03/2020,RESOURCES & TRANSFORMATION,TESCO STORES 6161,09/01/2020,H59620200111QZFLRUGFN-1,1.88,TOWN HALL RESTAURANT BISTRO-FOOD & DRINK SUPPLIES,GROCERY STORES AND SUPERMARKETS,GPC
WALSALL COUNCIL,HTTP://OPENDATACOMMUNITIES.ORG/ID/METROPOLITAN-DISTRICT-COUNCIL/WALSALL,31/03/2020,RESOURCES & TRANSFORMATION,TESCO STORES 6161,09/01/2020,H59620200111QZFLRUGFN-2,23.73,TOWN HALL RESTAURANT BISTRO-FOOD & DRINK SUPPLIES,GROCERY STORES AND SUPERMARKETS,GPC
WALSALL COUNCIL,HTTP://OPENDATACOMMUNITIES.ORG/ID/METROPOLITAN-DISTRICT-COUNCIL/WALSALL,31/03/2020,CHILDRENS SERVICES,ARGOS LTD,09/01/2020,H59620200111RUEFHCAEV-1,31.94,SAFEGUARDING & FAMILY SUPPORT-SECTION 1/17CHILD CARE ACT 198,DISCOUNT STORES,GPC
WALSALL COUNCIL,HTTP://OPENDATACOMMUNITIES.ORG/ID/METROPOLITAN-DISTRICT-COUNCIL/WALSALL,31/03/2020,SCHOOLS,B&Q DIRECT,09/01/2020,H59620200111SICPIIOMI-1,110.00,ALUMWELL JUNIOR SCHOOL-OPERATIONAL MAINTENANCE,HOME SUPPLY WAREHOUSE STORES,GPC
WALSALL COUNCIL,HTTP://OPENDATACOMMUNITIES.ORG/ID/METROPOLITAN-DISTRICT-COUNCIL/WALSALL,31/03/2020,CHILDRENS SERVICES,AMZNMKTPLACE,09/01/2020,H59620200111TOYCUURQC-1,29.99,LOOKED AFTER CHILDRENS SOCIAL -STATIONERY & GENERAL SUPPLIES,MISCELLANEOUS AND SPECIALTY RETAIL STORES,GPC
WALSALL COUNCIL,HTTP://OPENDATACOMMUNITIES.ORG/ID/METROPOLITAN-DISTRICT-COUNCIL/WALSALL,31/03/2020,CHILDRENS SERVICES,WWW.SANDWELL.GOV.UK,09/01/2020,H59620200111UAPRNYCTV-1,22.00,SAFEGUARDING & FAMILY SUPPORT-OTHER FEES & LICENCES-SERVICES,GOVERNMENT SERVICES,GPC
WALSALL COUNCIL,HTTP://OPENDATACOMMUNITIES.ORG/ID/METROPOLITAN-DISTRICT-COUNCIL/WALSALL,31/03/2020,RESOURCES & TRANSFORMATION,CO-OPERATIVE FOOD,09/01/2020,H59620200111UIREBPPEO-1,20.00,WALSALL CRISIS SUPPORT SCHEME-CRISIS SUPPORT PAYMENTS,GROCERY STORES AND SUPERMARKETS,GPC
WALSALL COUNCIL,HTTP://OPENDATACOMMUNITIES.ORG/ID/METROPOLITAN-DISTRICT-COUNCIL/WALSALL,31/03/2020,RESOURCES & TRANSFORMATION,ACCA,09/01/2020,H59620200111UPJUMBCQL-1,422.00,CHARGING & PAYMENTS-EXTERNAL TRAINING,"ASSOCIATIONS-CIVIC, SOCIAL, AND FRATERNAL",GPC
WALSALL COUNCIL,HTTP://OPENDATACOMMUNITIES.ORG/ID/METROPOLITAN-DISTRICT-COUNCIL/WALSALL,31/03/2020,ECONOMY & ENVIRONMENT,MIDLANDCHILLED.CO.,09/01/2020,H59620200111XBMOHRLRR-1,1122.66,BLOXWICH LEISURE CENTRE-FOOD & DRINK SUPPLIES,MOTOR FREIGHT CARRIERS,GPC
WALSALL COUNCIL,HTTP://OPENDATACOMMUNITIES.ORG/ID/METROPOLITAN-DISTRICT-COUNCIL/WALSALL,31/03/2020,CHILDRENS SERVICES,PAYPAL *LAMPSHOPONL,09/01/2020,H59620200111XHRLXMHCJ-1,13.90,ELMWOOD SCHOOL-CLEANING-MATERIALS (INC LIGHT ,MISCELLANEOUS HOUSE FURNISHING SPECIALTY SHOPS,GPC
WALSALL COUNCIL,HTTP://OPENDATACOMMUNITIES.ORG/ID/METROPOLITAN-DISTRICT-COUNCIL/WALSALL,31/03/2020,ECONOMY & ENVIRONMENT,AMZNMKTPLACE,09/01/2020,H59620200111YDFYDVQOV-1,17.09,OAK PARK-GENERAL MATERIALS,MISCELLANEOUS AND SPECIALTY RETAIL STORES,GPC
WALSALL COUNCIL,HTTP://OPENDATACOMMUNITIES.ORG/ID/METROPOLITAN-DISTRICT-COUNCIL/WALSALL,31/03/2020,ECONOMY & ENVIRONMENT,AMZNMKTPLACE,09/01/2020,H59620200111YDFYDVQOV-2,17.08,BLOXWICH LEISURE CENTRE-GENERAL MATERIALS,MISCELLANEOUS AND SPECIALTY RETAIL STORES,GPC
WALSALL COUNCIL,HTTP://OPENDATACOMMUNITIES.ORG/ID/METROPOLITAN-DISTRICT-COUNCIL/WALSALL,31/03/2020,ECONOMY & ENVIRONMENT,SWIMMING TEACHERS ASSO,09/01/2020,H59620200111YEVDZJMIL-1,7.00,DARLASTON LEISURE CENTRE-EXTERNAL TRAINING,OTHER RECREATION SERVICES,GPC
WALSALL COUNCIL,HTTP://OPENDATACOMMUNITIES.ORG/ID/METROPOLITAN-DISTRICT-COUNCIL/WALSALL,31/03/2020,ECONOMY & ENVIRONMENT,SWIMMING TEACHERS ASSO,09/01/2020,H59620200111YEVDZJMIL-2,7.00,OAK PARK-EXTERNAL TRAINING,OTHER RECREATION SERVICES,GPC
WALSALL COUNCIL,HTTP://OPENDATACOMMUNITIES.ORG/ID/METROPOLITAN-DISTRICT-COUNCIL/WALSALL,31/03/2020,ECONOMY & ENVIRONMENT,SWIMMING TEACHERS ASSO,09/01/2020,H59620200111YEVDZJMIL-3,7.00,BLOXWICH LEISURE CENTRE-EXTERNAL TRAINING,OTHER RECREATION SERVICES,GPC
WALSALL COUNCIL,HTTP://OPENDATACOMMUNITIES.ORG/ID/METROPOLITAN-DISTRICT-COUNCIL/WALSALL,31/03/2020,ECONOMY & ENVIRONMENT,SWIMMING TEACHERS ASSO,09/01/2020,H59620200111YEVDZJMIL-4,7.00,WALSALL GALA CENTRE-EXTERNAL TRAINING,OTHER RECREATION SERVICES,GPC
WALSALL COUNCIL,HTTP://OPENDATACOMMUNITIES.ORG/ID/METROPOLITAN-DISTRICT-COUNCIL/WALSALL,31/03/2020,ECONOMY & ENVIRONMENT,B&M RETAIL LTD,09/01/2020,H59620200111YOIFNLCXU-1,15.97,BROWNHILLS LIBRARY-CLEANING MATERIALS,DISCOUNT STORES,GPC
WALSALL COUNCIL,HTTP://OPENDATACOMMUNITIES.ORG/ID/METROPOLITAN-DISTRICT-COUNCIL/WALSALL,31/03/2020,ECONOMY & ENVIRONMENT,B&M RETAIL LTD,09/01/2020,H59620200111YOIFNLCXU-2,1.28,BROWNHILLS LIBRARY-FOOD & DRINK SUPPLIES,DISCOUNT STORES,GPC
WALSALL COUNCIL,HTTP://OPENDATACOMMUNITIES.ORG/ID/METROPOLITAN-DISTRICT-COUNCIL/WALSALL,31/03/2020,RESOURCES & TRANSFORMATION,SITEON LIMITED,09/01/2020,H59620200111YUNIMRIYC-1,3600.00,APPLICATIONS-COMPUTER EQUIPMENT AND SUPPLIE,COMPUTER SOFTWARE STORES,GPC
WALSALL COUNCIL,HTTP://OPENDATACOMMUNITIES.ORG/ID/METROPOLITAN-DISTRICT-COUNCIL/WALSALL,31/03/2020,CHILDRENS SERVICES,AMAZON.CO.UK*105LW48I5,09/01/2020,H59620200111ZGATKNGKS-1,60.89,LITERACY-LIBRARY BOOKS,OTHER DIRECT MARKETING-OTHER DIRECT MARKETERS,GPC
WALSALL COUNCIL,HTTP://OPENDATACOMMUNITIES.ORG/ID/METROPOLITAN-DISTRICT-COUNCIL/WALSALL,31/03/2020,ECONOMY & ENVIRONMENT,AMZNMKTPLACE,09/01/2020,H59620200111ZJGHOHVRG-1,10.52,CENTRALISED STATIONARY-STATIONERY & GENERAL SUPPLIES,MISCELLANEOUS AND SPECIALTY RETAIL STORES,GPC
WALSALL COUNCIL,HTTP://OPENDATACOMMUNITIES.ORG/ID/METROPOLITAN-DISTRICT-COUNCIL/WALSALL,31/03/2020,CHILDRENS SERVICES,WWW.CGPBOOKS.CO.UK,09/01/2020,H59620200111ZKHSOROLP-1,272.25,ASSESSMENT-GENERAL MATERIALS,MISCELLANEOUS AND SPECIALTY RETAIL STORES,GPC
WALSALL COUNCIL,HTTP://OPENDATACOMMUNITIES.ORG/ID/METROPOLITAN-DISTRICT-COUNCIL/WALSALL,31/03/2020,CHILDRENS SERVICES,PREMIER INN44014625,09/01/2020,H59620200114LYCYGNOES-1,80.49,INITIAL RESPONSE SERVICE-HOTEL ACCOMMODATION-EMPLOYEES,PREMIER INN,GPC
WALSALL COUNCIL,HTTP://OPENDATACOMMUNITIES.ORG/ID/METROPOLITAN-DISTRICT-COUNCIL/WALSALL,31/03/2020,CHILDRENS SERVICES,BIRMINGHAM HO,09/01/2020,H59620200114SSMLNUWAU-1,-88.60,LOOKED AFTER CHILDRENS SOCIAL -OFFICER/STAFF-PUBLIC TRANSPORT,PASSENGER RAILWAYS,GPC
WALSALL COUNCIL,HTTP://OPENDATACOMMUNITIES.ORG/ID/METROPOLITAN-DISTRICT-COUNCIL/WALSALL,31/03/2020,CHILDRENS SERVICES,PREMIER INN44027565,09/01/2020,H59620200114TKOENBEBN-1,4.00,CHILD PROTECTION & REVIEW SERV-TRAVEL-FOSTER CARERS,PREMIER INN,GPC
WALSALL COUNCIL,HTTP://OPENDATACOMMUNITIES.ORG/ID/METROPOLITAN-DISTRICT-COUNCIL/WALSALL,31/03/2020,CHILDRENS SERVICES,GO PLANT ENVIRONMENTAL,09/01/2020,H59620200115FQVWQIPFK-1,144.00,PELSALL VILLAGE SCHOOL-OPERATIONAL MAINTENANCE,OTHER INDUSTRIAL SUPPLIES,GPC
WALSALL COUNCIL,HTTP://OPENDATACOMMUNITIES.ORG/ID/METROPOLITAN-DISTRICT-COUNCIL/WALSALL,31/03/2020,RESOURCES & TRANSFORMATION,WWW.SCC.COM,09/01/2020,H59620200115PJJXADKMO-1,306.14,RECHARGEABLE EQUIPMENT-COMPUTER EQUIPMENT AND SUPPLIE,"COMPUTERS, COMPUTER PERIPHERAL EQUIPMENT, SOFTWARE",GPC
WALSALL COUNCIL,HTTP://OPENDATACOMMUNITIES.ORG/ID/METROPOLITAN-DISTRICT-COUNCIL/WALSALL,31/03/2020,RESOURCES & TRANSFORMATION,WWW.SCC.COM,09/01/2020,H59620200115XTGJCBNTF-1,10436.40,RECHARGEABLE EQUIPMENT-COMPUTER EQUIPMENT AND SUPPLIE,"COMPUTERS, COMPUTER PERIPHERAL EQUIPMENT, SOFTWARE",GPC
WALSALL COUNCIL,HTTP://OPENDATACOMMUNITIES.ORG/ID/METROPOLITAN-DISTRICT-COUNCIL/WALSALL,31/03/2020,CHILDRENS SERVICES,POST OFFICE COUNTER,10/01/2020,H59620200114ABBITPWNL-1,30.50,LOCALITY FAMILY SUPPORT-WEST-POSTAGES AND COURIER SERVICES,POSTAL SERVICES - GOVERNMENT ONLY,GPC
WALSALL COUNCIL,HTTP://OPENDATACOMMUNITIES.ORG/ID/METROPOLITAN-DISTRICT-COUNCIL/WALSALL,31/03/2020,ECONOMY & ENVIRONMENT,WALSALL WOOD,10/01/2020,H59620200114AHCUKYUOC-1,29.98,OAK PARK-REPAIR & MAINTENANCE OF FURNIT,LUMBER & BUILDING MATERIALS STORES,GPC
WALSALL COUNCIL,HTTP://OPENDATACOMMUNITIES.ORG/ID/METROPOLITAN-DISTRICT-COUNCIL/WALSALL,31/03/2020,CHILDRENS SERVICES,LEGO,10/01/2020,H59620200114ASJHBGGFT-1,173.97,INFORMATION SERVICES-GENERAL MATERIALS,"GAME, TOY, AND HOBBY SHOPS",GPC
WALSALL COUNCIL,HTTP://OPENDATACOMMUNITIES.ORG/ID/METROPOLITAN-DISTRICT-COUNCIL/WALSALL,31/03/2020,ECONOMY & ENVIRONMENT,AMZNMKTPLACE,10/01/2020,H59620200114BGQNXPHRB-1,12.57,CENTRALISED STATIONARY-STATIONERY & GENERAL SUPPLIES,MISCELLANEOUS AND SPECIALTY RETAIL STORES,GPC
WALSALL COUNCIL,HTTP://OPENDATACOMMUNITIES.ORG/ID/METROPOLITAN-DISTRICT-COUNCIL/WALSALL,31/03/2020,ECONOMY & ENVIRONMENT,MIDLANDNEWS.COM,10/01/2020,H59620200114BTOKVDQDC-1,154.44,DEVELOPMENT MANAGEMENT-PUBLICATIONS/ORGANISATIONS-SUB,NEWS DEALERS AND NEWSSTANDS,GPC
WALSALL COUNCIL,HTTP://OPENDATACOMMUNITIES.ORG/ID/METROPOLITAN-DISTRICT-COUNCIL/WALSALL,31/03/2020,CHILDRENS SERVICES,WWW.BANNERUK.COM,10/01/2020,H59620200114BVECTQIFK-1,12.57,LOCALITY FAMILY SUPPORT-NORTH-STATIONERY & GENERAL SUPPLIES,"STATIONERY, OFFICE SUPPLIES AND WRITING PAPER",GPC
WALSALL COUNCIL,HTTP://OPENDATACOMMUNITIES.ORG/ID/METROPOLITAN-DISTRICT-COUNCIL/WALSALL,31/03/2020,RESOURCES & TRANSFORMATION,SS + JR JOHAL 31968,10/01/2020,H59620200114BXYCPGNOT-1,20.50,WALSALL CRISIS SUPPORT SCHEME-CRISIS SUPPORT PAYMENTS,GROCERY STORES AND SUPERMARKETS,GPC
WALSALL COUNCIL,HTTP://OPENDATACOMMUNITIES.ORG/ID/METROPOLITAN-DISTRICT-COUNCIL/WALSALL,31/03/2020,CHILDRENS SERVICES,AMZNMKTPLACE,10/01/2020,H59620200114CERRDPQSM-1,4.00,YEAR ONE-GENERAL MATERIALS,MISCELLANEOUS AND SPECIALTY RETAIL STORES,GPC
WALSALL COUNCIL,HTTP://OPENDATACOMMUNITIES.ORG/ID/METROPOLITAN-DISTRICT-COUNCIL/WALSALL,31/03/2020,CHILDRENS SERVICES,WILKO RETAIL LIMITED,10/01/2020,H59620200114CRPBUTZMA-1,30.00,SUPPORT UNDER SECT 23 OF THE C-SUPPORT UNDER SECTION 23 OF TH,MISCELLANEOUS GENERAL MERCHANDISE,GPC
WALSALL COUNCIL,HTTP://OPENDATACOMMUNITIES.ORG/ID/METROPOLITAN-DISTRICT-COUNCIL/WALSALL,31/03/2020,CHILDRENS SERVICES,BERRY BROOK FARM WEDNE,10/01/2020,H59620200114DFMKHHPBP-1,3.49,57 LICHFIELD ROAD-FOOD & DRINK SUPPLIES,"BARS, COCKTAIL LOUNGES, DISCOTHEQUES, NIGHTCLUBS",GPC
WALSALL COUNCIL,HTTP://OPENDATACOMMUNITIES.ORG/ID/METROPOLITAN-DISTRICT-COUNCIL/WALSALL,31/03/2020,CHILDRENS SERVICES,AMAZON.CO.UK*ZB53F3MB5,10/01/2020,H59620200114DHOUEDPEC-1,8.48,PRIMARY-GENERAL MATERIALS,OTHER DIRECT MARKETING-OTHER DIRECT MARKETERS,GPC
WALSALL COUNCIL,HTTP://OPENDATACOMMUNITIES.ORG/ID/METROPOLITAN-DISTRICT-COUNCIL/WALSALL,31/03/2020,CHILDRENS SERVICES,BERRY BROOK FARM WEDNE,10/01/2020,H59620200114DPAMGBOTV-1,21.28,57 LICHFIELD ROAD-FOOD & DRINK SUPPLIES,"BARS, COCKTAIL LOUNGES, DISCOTHEQUES, NIGHTCLUBS",GPC
WALSALL COUNCIL,HTTP://OPENDATACOMMUNITIES.ORG/ID/METROPOLITAN-DISTRICT-COUNCIL/WALSALL,31/03/2020,ECONOMY & ENVIRONMENT,TOOLSTATION LTD,10/01/2020,H59620200114EJRDRMEDM-1,19.69,INFRASTRUCTURE MAINTENANCE-GENERAL MATERIALS,HARDWARE STORES,GPC
WALSALL COUNCIL,HTTP://OPENDATACOMMUNITIES.ORG/ID/METROPOLITAN-DISTRICT-COUNCIL/WALSALL,31/03/2020,CHILDRENS SERVICES,CURRYS ONLINE,10/01/2020,H59620200114ETHFJKCGO-1,458.99,VIRTUAL SCHOOL - CENTRAL PUPIL-FURNITURE & EQUIPMENT,ELECTRONIC SALES,GPC
WALSALL COUNCIL,HTTP://OPENDATACOMMUNITIES.ORG/ID/METROPOLITAN-DISTRICT-COUNCIL/WALSALL,31/03/2020,RESOURCES & TRANSFORMATION,CO-OPERATIVE FOOD,10/01/2020,H59620200114EYECXYQXU-1,20.00,WALSALL CRISIS SUPPORT SCHEME-CRISIS SUPPORT PAYMENTS,GROCERY STORES AND SUPERMARKETS,GPC
WALSALL COUNCIL,HTTP://OPENDATACOMMUNITIES.ORG/ID/METROPOLITAN-DISTRICT-COUNCIL/WALSALL,31/03/2020,ECONOMY & ENVIRONMENT,FLEXTRONICS,10/01/2020,H59620200114FLBCSBEQV-1,414.26,DEVELOPMENT MANAGEMENT-COMPUTER EQUIPMENT AND SUPPLIE,"OTHER COMPUTER MAINTENANCE, REPAIR",GPC
WALSALL COUNCIL,HTTP://OPENDATACOMMUNITIES.ORG/ID/METROPOLITAN-DISTRICT-COUNCIL/WALSALL,31/03/2020,ECONOMY & ENVIRONMENT,AMZNMKTPLACE,10/01/2020,H59620200114FMXHOFWBF-1,12.90,CENTRALISED STATIONARY-STATIONERY & GENERAL SUPPLIES,MISCELLANEOUS AND SPECIALTY RETAIL STORES,GPC
WALSALL COUNCIL,HTTP://OPENDATACOMMUNITIES.ORG/ID/METROPOLITAN-DISTRICT-COUNCIL/WALSALL,31/03/2020,ECONOMY & ENVIRONMENT,AMZNMKTPLACE,10/01/2020,H59620200114FRFYPGIGS-1,17.88,FLEET-GENERAL MATERIALS,MISCELLANEOUS AND SPECIALTY RETAIL STORES,GPC
WALSALL COUNCIL,HTTP://OPENDATACOMMUNITIES.ORG/ID/METROPOLITAN-DISTRICT-COUNCIL/WALSALL,31/03/2020,ECONOMY & ENVIRONMENT,WWW.BANNERUK.COM,10/01/2020,H59620200114FSJGEASKC-1,16.34,CENTRALISED STATIONARY-STATIONERY & GENERAL SUPPLIES,"STATIONERY, OFFICE SUPPLIES AND WRITING PAPER",GPC
WALSALL COUNCIL,HTTP://OPENDATACOMMUNITIES.ORG/ID/METROPOLITAN-DISTRICT-COUNCIL/WALSALL,31/03/2020,CHILDRENS SERVICES,AMZNMKTPLACE,10/01/2020,H59620200114GKWQIRQVG-1,18.99,TRANSITION AND LEAVING CARE PL-CARE LEAVERS MTCE PAYMENTS,MISCELLANEOUS AND SPECIALTY RETAIL STORES,GPC
WALSALL COUNCIL,HTTP://OPENDATACOMMUNITIES.ORG/ID/METROPOLITAN-DISTRICT-COUNCIL/WALSALL,31/03/2020,RESOURCES & TRANSFORMATION,NOBISCO LIMITED,10/01/2020,H59620200114GNPENVXDF-1,105.82,CA ELMORE GREEN PRIMARY SCHOOL-FOOD & DRINK SUPPLIES,OTHER INDUSTRIAL SUPPLIES,GPC
WALSALL COUNCIL,HTTP://OPENDATACOMMUNITIES.ORG/ID/METROPOLITAN-DISTRICT-COUNCIL/WALSALL,31/03/2020,RESOURCES & TRANSFORMATION,TESCO STORES 6161,10/01/2020,H59620200114HGBZPHLBM-1,14.99,WALSALL CRISIS SUPPORT SCHEME-FOOD & DRINK SUPPLIES,GROCERY STORES AND SUPERMARKETS,GPC
WALSALL COUNCIL,HTTP://OPENDATACOMMUNITIES.ORG/ID/METROPOLITAN-DISTRICT-COUNCIL/WALSALL,31/03/2020,RESOURCES & TRANSFORMATION,METRO INNS WALSALL,10/01/2020,H59620200114IGHBXGHUM-1,102.00,BED & BREAKFAST PAYMENTS-HOTEL ACCOMMODATION-EMPLOYEES,"HOTELS, MOTELS, RESORTS",GPC
WALSALL COUNCIL,HTTP://OPENDATACOMMUNITIES.ORG/ID/METROPOLITAN-DISTRICT-COUNCIL/WALSALL,31/03/2020,RESOURCES & TRANSFORMATION,THETRAINLINE.COM,10/01/2020,H59620200114IXTSDXGJC-1,24.76,REVENUES-OFFICER/STAFF-PUBLIC TRANSPORT,PASSENGER RAILWAYS,GPC
WALSALL COUNCIL,HTTP://OPENDATACOMMUNITIES.ORG/ID/METROPOLITAN-DISTRICT-COUNCIL/WALSALL,31/03/2020,CHILDRENS SERVICES,BCC REGISTER OFFIC,10/01/2020,H59620200114IYIDGNMFR-1,25.00,SAFEGUARDING & FAMILY SUPPORT-OTHER FEES & LICENCES-SERVICES,GOVERNMENT SERVICES,GPC
WALSALL COUNCIL,HTTP://OPENDATACOMMUNITIES.ORG/ID/METROPOLITAN-DISTRICT-COUNCIL/WALSALL,31/03/2020,CHILDRENS SERVICES,TESCO STORES 6161,10/01/2020,H59620200114JHFTYLYOL-1,41.23,FOOD TECHNOLOGY/HOSPITALITY-GENERAL MATERIALS,GROCERY STORES AND SUPERMARKETS,GPC
WALSALL COUNCIL,HTTP://OPENDATACOMMUNITIES.ORG/ID/METROPOLITAN-DISTRICT-COUNCIL/WALSALL,31/03/2020,ECONOMY & ENVIRONMENT,WWW.BANNERUK.COM,10/01/2020,H59620200114JMGWDTGPF-1,4.79,CENTRALISED STATIONARY-STATIONERY & GENERAL SUPPLIES,"STATIONERY, OFFICE SUPPLIES AND WRITING PAPER",GPC
WALSALL COUNCIL,HTTP://OPENDATACOMMUNITIES.ORG/ID/METROPOLITAN-DISTRICT-COUNCIL/WALSALL,31/03/2020,CHILDRENS SERVICES,NAMCO UK LTD,10/01/2020,H59620200114JMYIQMPGU-1,230.00,REWARDS-GENERAL MATERIALS,"BANDS, ORCHESTRAS, AND MISCELLANEOUS ENTERTAINERS",GPC
WALSALL COUNCIL,HTTP://OPENDATACOMMUNITIES.ORG/ID/METROPOLITAN-DISTRICT-COUNCIL/WALSALL,31/03/2020,CHILDRENS SERVICES,AMZNMKTPLACE,10/01/2020,H59620200114JOHXWHSOX-1,9.57,ELMWOOD SCHOOL-OPERATIONAL MAINTENANCE,MISCELLANEOUS AND SPECIALTY RETAIL STORES,GPC
WALSALL COUNCIL,HTTP://OPENDATACOMMUNITIES.ORG/ID/METROPOLITAN-DISTRICT-COUNCIL/WALSALL,31/03/2020,RESOURCES & TRANSFORMATION,TRAINLINE,10/01/2020,H59620200114KFKJEUIDA-1,76.99,ADVICE & GUIDANCE SERVICE-CRISIS SUPPORT PAYMENTS,PASSENGER RAILWAYS,GPC
WALSALL COUNCIL,HTTP://OPENDATACOMMUNITIES.ORG/ID/METROPOLITAN-DISTRICT-COUNCIL/WALSALL,31/03/2020,CHILDRENS SERVICES,POST OFFICE COUNTER,10/01/2020,H59620200114KJMFYDCNM-1,16.10,WALSALL WOOD PRIMARY SCHOOL-POSTAGES AND COURIER SERVICES,POSTAL SERVICES - GOVERNMENT ONLY,GPC
WALSALL COUNCIL,HTTP://OPENDATACOMMUNITIES.ORG/ID/METROPOLITAN-DISTRICT-COUNCIL/WALSALL,31/03/2020,CHILDRENS SERVICES,AMZNMKTPLACE,10/01/2020,H59620200114KQSAYDYYL-1,107.47,TRANSITION AND LEAVING CARE PL-CARE LEAVERS MTCE PAYMENTS,MISCELLANEOUS AND SPECIALTY RETAIL STORES,GPC
WALSALL COUNCIL,HTTP://OPENDATACOMMUNITIES.ORG/ID/METROPOLITAN-DISTRICT-COUNCIL/WALSALL,31/03/2020,RESOURCES & TRANSFORMATION,AB SUPERMARKET,10/01/2020,H59620200114LTZVFGLJX-1,35.00,ACCOMMODATION SERVICES MANAGEM-FOOD & DRINK SUPPLIES,GROCERY STORES AND SUPERMARKETS,GPC
WALSALL COUNCIL,HTTP://OPENDATACOMMUNITIES.ORG/ID/METROPOLITAN-DISTRICT-COUNCIL/WALSALL,31/03/2020,ECONOMY & ENVIRONMENT,WWW.BANNERUK.COM,10/01/2020,H59620200114LZJAUWRDT-1,35.22,CENTRALISED STATIONARY-STATIONERY & GENERAL SUPPLIES,"STATIONERY, OFFICE SUPPLIES AND WRITING PAPER",GPC
WALSALL COUNCIL,HTTP://OPENDATACOMMUNITIES.ORG/ID/METROPOLITAN-DISTRICT-COUNCIL/WALSALL,31/03/2020,ECONOMY & ENVIRONMENT,AMZNMKTPLACE,10/01/2020,H59620200114MBWMOMGLQ-1,104.96,WALSALL OUTDOOR ADVENTURE CENT-STATIONERY & GENERAL SUPPLIES,MISCELLANEOUS AND SPECIALTY RETAIL STORES,GPC
WALSALL COUNCIL,HTTP://OPENDATACOMMUNITIES.ORG/ID/METROPOLITAN-DISTRICT-COUNCIL/WALSALL,31/03/2020,RESOURCES & TRANSFORMATION,ARTHUR BRETT CATER,10/01/2020,H59620200114MVSBFOVJI-1,11.57,CA ELMWOOD SPECIAL SCHOOL-FOOD & DRINK SUPPLIES,MISCELLANEOUS FOOD STORES & CONVENIENCE STORES,GPC
WALSALL COUNCIL,HTTP://OPENDATACOMMUNITIES.ORG/ID/METROPOLITAN-DISTRICT-COUNCIL/WALSALL,31/03/2020,CHILDRENS SERVICES,AMZNMKTPLACE,10/01/2020,H59620200114MXJGMWQDG-1,13.40,YEAR ONE-GENERAL MATERIALS,MISCELLANEOUS AND SPECIALTY RETAIL STORES,GPC
WALSALL COUNCIL,HTTP://OPENDATACOMMUNITIES.ORG/ID/METROPOLITAN-DISTRICT-COUNCIL/WALSALL,31/03/2020,ECONOMY & ENVIRONMENT,MIDLANDCHILLED.CO.,10/01/2020,H59620200114ODNGFCBYX-1,1122.66,BLOXWICH LEISURE CENTRE-FOOD & DRINK SUPPLIES,MOTOR FREIGHT CARRIERS,GPC
WALSALL COUNCIL,HTTP://OPENDATACOMMUNITIES.ORG/ID/METROPOLITAN-DISTRICT-COUNCIL/WALSALL,31/03/2020,CHILDRENS SERVICES,WM MORRISONS STORE,10/01/2020,H59620200114OOAHGSOOV-1,0.60,57 LICHFIELD ROAD-FOOD & DRINK SUPPLIES,GROCERY STORES AND SUPERMARKETS,GPC
WALSALL COUNCIL,HTTP://OPENDATACOMMUNITIES.ORG/ID/METROPOLITAN-DISTRICT-COUNCIL/WALSALL,31/03/2020,CHILDRENS SERVICES,WM MORRISONS STORE,10/01/2020,H59620200114OOAHGSOOV-2,21.83,57 LICHFIELD ROAD-FOOD & DRINK SUPPLIES,GROCERY STORES AND SUPERMARKETS,GPC
WALSALL COUNCIL,HTTP://OPENDATACOMMUNITIES.ORG/ID/METROPOLITAN-DISTRICT-COUNCIL/WALSALL,31/03/2020,CHILDRENS SERVICES,AMAZON.CO.UK*M385C1UL4,10/01/2020,H59620200114QJEQKVKDT-1,29.38,ADMINISTRATIVE SUPPLIES-GENERAL MATERIALS,OTHER DIRECT MARKETING-OTHER DIRECT MARKETERS,GPC
WALSALL COUNCIL,HTTP://OPENDATACOMMUNITIES.ORG/ID/METROPOLITAN-DISTRICT-COUNCIL/WALSALL,31/03/2020,CHILDRENS SERVICES,CURRYS ONLINE,10/01/2020,H59620200114QNOWCELQK-1,438.99,VIRTUAL SCHOOL - CENTRAL PUPIL-FURNITURE & EQUIPMENT,ELECTRONIC SALES,GPC
WALSALL COUNCIL,HTTP://OPENDATACOMMUNITIES.ORG/ID/METROPOLITAN-DISTRICT-COUNCIL/WALSALL,31/03/2020,CHILDRENS SERVICES,AMZNMKTPLACE,10/01/2020,H59620200114RJVPVXSNS-1,7.98,ADMINISTRATIVE SUPPLIES-STATIONERY & GENERAL SUPPLIES,MISCELLANEOUS AND SPECIALTY RETAIL STORES,GPC
WALSALL COUNCIL,HTTP://OPENDATACOMMUNITIES.ORG/ID/METROPOLITAN-DISTRICT-COUNCIL/WALSALL,31/03/2020,ECONOMY & ENVIRONMENT,FACEBK *6KQEFQ6QX2,10/01/2020,H59620200114RLGGFFTTL-1,28.00,OAK PARK-GENERAL MATERIALS,ADVERTISING SERVICES,GPC
WALSALL COUNCIL,HTTP://OPENDATACOMMUNITIES.ORG/ID/METROPOLITAN-DISTRICT-COUNCIL/WALSALL,31/03/2020,ECONOMY & ENVIRONMENT,FACEBK *6KQEFQ6QX2,10/01/2020,H59620200114RLGGFFTTL-2,28.00,BLOXWICH LEISURE CENTRE-GENERAL MATERIALS,ADVERTISING SERVICES,GPC
WALSALL COUNCIL,HTTP://OPENDATACOMMUNITIES.ORG/ID/METROPOLITAN-DISTRICT-COUNCIL/WALSALL,31/03/2020,ECONOMY & ENVIRONMENT,FACEBK *6KQEFQ6QX2,10/01/2020,H59620200114RLGGFFTTL-3,17.00,WALSALL GALA CENTRE-GENERAL MATERIALS,ADVERTISING SERVICES,GPC
WALSALL COUNCIL,HTTP://OPENDATACOMMUNITIES.ORG/ID/METROPOLITAN-DISTRICT-COUNCIL/WALSALL,31/03/2020,ECONOMY & ENVIRONMENT,FACEBK *6KQEFQ6QX2,10/01/2020,H59620200114RLGGFFTTL-4,17.00,DARLASTON LEISURE CENTRE-GENERAL MATERIALS,ADVERTISING SERVICES,GPC
WALSALL COUNCIL,HTTP://OPENDATACOMMUNITIES.ORG/ID/METROPOLITAN-DISTRICT-COUNCIL/WALSALL,31/03/2020,RESOURCES & TRANSFORMATION,WILKO RETAIL LIMITED,10/01/2020,H59620200114SIVXDSMDX-1,48.10,WALSALL CRISIS SUPPORT SCHEME-CRISIS SUPPORT PAYMENTS,MISCELLANEOUS GENERAL MERCHANDISE,GPC
WALSALL COUNCIL,HTTP://OPENDATACOMMUNITIES.ORG/ID/METROPOLITAN-DISTRICT-COUNCIL/WALSALL,31/03/2020,RESOURCES & TRANSFORMATION,ARTHUR BRETT CATER,10/01/2020,H59620200114TFINSYOGX-1,49.26,CA CASTLEFORT JMI SCHOOL-FOOD & DRINK SUPPLIES,MISCELLANEOUS FOOD STORES & CONVENIENCE STORES,GPC
WALSALL COUNCIL,HTTP://OPENDATACOMMUNITIES.ORG/ID/METROPOLITAN-DISTRICT-COUNCIL/WALSALL,31/03/2020,CHILDRENS SERVICES,CO-OPERATIVE FOOD,10/01/2020,H59620200114THOBXVBYT-1,2.20,PUPIL PREMIUM-GENERAL MATERIALS,GROCERY STORES AND SUPERMARKETS,GPC
WALSALL COUNCIL,HTTP://OPENDATACOMMUNITIES.ORG/ID/METROPOLITAN-DISTRICT-COUNCIL/WALSALL,31/03/2020,ECONOMY & ENVIRONMENT,RS COMPONENTS,10/01/2020,H59620200114UPLFHGODT-1,15.58,FLEET-GENERAL MATERIALS,ELECTRICAL PARTS AND EQUIPMENT,GPC
WALSALL COUNCIL,HTTP://OPENDATACOMMUNITIES.ORG/ID/METROPOLITAN-DISTRICT-COUNCIL/WALSALL,31/03/2020,CHILDRENS SERVICES,THETRAINLINE.COM,10/01/2020,H59620200114USTQZUPGC-1,42.21,VIRTUAL SCHOOL - CENTRAL PUPIL-OFFICER/STAFF-PUBLIC TRANSPORT,PASSENGER RAILWAYS,GPC
WALSALL COUNCIL,HTTP://OPENDATACOMMUNITIES.ORG/ID/METROPOLITAN-DISTRICT-COUNCIL/WALSALL,31/03/2020,CHILDRENS SERVICES,W M MORRISONS.COM,10/01/2020,H59620200114UWQQLPJDD-1,26.10,BLUEBELLS-FOOD & DRINK SUPPLIES,GROCERY STORES AND SUPERMARKETS,GPC
WALSALL COUNCIL,HTTP://OPENDATACOMMUNITIES.ORG/ID/METROPOLITAN-DISTRICT-COUNCIL/WALSALL,31/03/2020,CHILDRENS SERVICES,W M MORRISONS.COM,10/01/2020,H59620200114UWQQLPJDD-2,159.13,BLUEBELLS-FOOD & DRINK SUPPLIES,GROCERY STORES AND SUPERMARKETS,GPC
WALSALL COUNCIL,HTTP://OPENDATACOMMUNITIES.ORG/ID/METROPOLITAN-DISTRICT-COUNCIL/WALSALL,31/03/2020,CHILDRENS SERVICES,ARGOS LTD,10/01/2020,H59620200114UZMMDVWXD-1,283.00,INITIAL RESPONSE SERVICE-SECTION 1/17CHILD CARE ACT 198,DISCOUNT STORES,GPC
WALSALL COUNCIL,HTTP://OPENDATACOMMUNITIES.ORG/ID/METROPOLITAN-DISTRICT-COUNCIL/WALSALL,31/03/2020,CHILDRENS SERVICES,ARGOS LTD,10/01/2020,H59620200114UZMMDVWXD-2,3.95,INITIAL RESPONSE SERVICE-SECTION 1/17CHILD CARE ACT 198,DISCOUNT STORES,GPC
WALSALL COUNCIL,HTTP://OPENDATACOMMUNITIES.ORG/ID/METROPOLITAN-DISTRICT-COUNCIL/WALSALL,31/03/2020,ECONOMY & ENVIRONMENT,ONE STOP 6322,10/01/2020,H59620200114VDCIXRSUT-1,89.99,STREETLY LIBRARY-NEWSPAPERS/PERIODICALS/MAGAZIN,GROCERY STORES AND SUPERMARKETS,GPC
WALSALL COUNCIL,HTTP://OPENDATACOMMUNITIES.ORG/ID/METROPOLITAN-DISTRICT-COUNCIL/WALSALL,31/03/2020,ECONOMY & ENVIRONMENT,ONE STOP 6322,10/01/2020,H59620200114VWUBKSNUX-1,70.74,STREETLY LIBRARY-NEWSPAPERS/PERIODICALS/MAGAZIN,GROCERY STORES AND SUPERMARKETS,GPC
WALSALL COUNCIL,HTTP://OPENDATACOMMUNITIES.ORG/ID/METROPOLITAN-DISTRICT-COUNCIL/WALSALL,31/03/2020,RESOURCES & TRANSFORMATION,TRAVELODGE GB0000,10/01/2020,H59620200114WBMVBBNVG-1,322.00,HOMELESS PREVENTION GRANT-BED & BREAKFAST PAYMENTS,TRAVELODGE,GPC
WALSALL COUNCIL,HTTP://OPENDATACOMMUNITIES.ORG/ID/METROPOLITAN-DISTRICT-COUNCIL/WALSALL,31/03/2020,ECONOMY & ENVIRONMENT,AMAZON.CO.UK*MY87F2FG5,10/01/2020,H59620200114WDOYLEDKY-1,34.97,FLEET-GENERAL MATERIALS,OTHER DIRECT MARKETING-OTHER DIRECT MARKETERS,GPC
WALSALL COUNCIL,HTTP://OPENDATACOMMUNITIES.ORG/ID/METROPOLITAN-DISTRICT-COUNCIL/WALSALL,31/03/2020,CHILDRENS SERVICES,AMZNMKTPLACE,10/01/2020,H59620200114WFGICHUDZ-1,3.95,ELMWOOD SCHOOL-OPERATIONAL MAINTENANCE,MISCELLANEOUS AND SPECIALTY RETAIL STORES,GPC
WALSALL COUNCIL,HTTP://OPENDATACOMMUNITIES.ORG/ID/METROPOLITAN-DISTRICT-COUNCIL/WALSALL,31/03/2020,ECONOMY & ENVIRONMENT,SPILL BUYER,10/01/2020,H59620200114WHPXJNVQA-1,356.32,WALSALL GALA CENTRE-FURNITURE & EQUIPMENT,OTHER COMMERCIAL EQUIPMENT,GPC
WALSALL COUNCIL,HTTP://OPENDATACOMMUNITIES.ORG/ID/METROPOLITAN-DISTRICT-COUNCIL/WALSALL,31/03/2020,ECONOMY & ENVIRONMENT,AMZNMKTPLACE,10/01/2020,H59620200114WQEGLRULO-1,11.98,WALSALL OUTDOOR ADVENTURE CENT-STATIONERY & GENERAL SUPPLIES,MISCELLANEOUS AND SPECIALTY RETAIL STORES,GPC
WALSALL COUNCIL,HTTP://OPENDATACOMMUNITIES.ORG/ID/METROPOLITAN-DISTRICT-COUNCIL/WALSALL,31/03/2020,RESOURCES & TRANSFORMATION,ARTHUR BRETT CATER,10/01/2020,H59620200114XBKRYHMPK-1,67.41,CA BUSILL JONES PRIMARY SCHOOL-FOOD & DRINK SUPPLIES,MISCELLANEOUS FOOD STORES & CONVENIENCE STORES,GPC
WALSALL COUNCIL,HTTP://OPENDATACOMMUNITIES.ORG/ID/METROPOLITAN-DISTRICT-COUNCIL/WALSALL,31/03/2020,ADULT SOCIAL CARE,WWW.BANNERUK.COM,10/01/2020,H59620200114XDPQJCUFU-1,42.23,GOSCOTE-STATIONERY & GENERAL SUPPLIES,"STATIONERY, OFFICE SUPPLIES AND WRITING PAPER",GPC
WALSALL COUNCIL,HTTP://OPENDATACOMMUNITIES.ORG/ID/METROPOLITAN-DISTRICT-COUNCIL/WALSALL,31/03/2020,RESOURCES & TRANSFORMATION,AMZNMKTPLACE,10/01/2020,H59620200114XJZQVSRLX-1,206.77,RECHARGEABLE EQUIPMENT-COMPUTER EQUIPMENT AND SUPPLIE,MISCELLANEOUS AND SPECIALTY RETAIL STORES,GPC
WALSALL COUNCIL,HTTP://OPENDATACOMMUNITIES.ORG/ID/METROPOLITAN-DISTRICT-COUNCIL/WALSALL,31/03/2020,ECONOMY & ENVIRONMENT,WWW.BANNERUK.COM,10/01/2020,H59620200114XKNPJHWXO-1,18.54,CENTRALISED STATIONARY-STATIONERY & GENERAL SUPPLIES,"STATIONERY, OFFICE SUPPLIES AND WRITING PAPER",GPC
WALSALL COUNCIL,HTTP://OPENDATACOMMUNITIES.ORG/ID/METROPOLITAN-DISTRICT-COUNCIL/WALSALL,31/03/2020,RESOURCES & TRANSFORMATION,AMZNMKTPLACE,10/01/2020,H59620200114XMXXGKYWI-1,242.73,RECHARGEABLE EQUIPMENT-COMPUTER EQUIPMENT AND SUPPLIE,MISCELLANEOUS AND SPECIALTY RETAIL STORES,GPC
WALSALL COUNCIL,HTTP://OPENDATACOMMUNITIES.ORG/ID/METROPOLITAN-DISTRICT-COUNCIL/WALSALL,31/03/2020,CHILDRENS SERVICES,WWW.STARCARSBIRMINGHAM,10/01/2020,H59620200114YDSYMTQWH-1,70.50,SUPPORT UNDER SECT 23 OF THE C-TAXIS-TRAVEL ALLOWANCES,TAXI SERVICES,GPC
WALSALL COUNCIL,HTTP://OPENDATACOMMUNITIES.ORG/ID/METROPOLITAN-DISTRICT-COUNCIL/WALSALL,31/03/2020,RESOURCES & TRANSFORMATION,ARTHUR BRETT CATER,10/01/2020,H59620200114YGJWCMEDL-1,38.66,CA ALUMWELL INFANT SCHOOL-FOOD & DRINK SUPPLIES,MISCELLANEOUS FOOD STORES & CONVENIENCE STORES,GPC
WALSALL COUNCIL,HTTP://OPENDATACOMMUNITIES.ORG/ID/METROPOLITAN-DISTRICT-COUNCIL/WALSALL,31/03/2020,CHILDRENS SERVICES,WALSALL COUNCIL,10/01/2020,H59620200114YRJCNKPIQ-1,42.34,ADMINISTRATIVE SUPPLIES-STATIONERY & GENERAL SUPPLIES,GOVERNMENT SERVICES,GPC
WALSALL COUNCIL,HTTP://OPENDATACOMMUNITIES.ORG/ID/METROPOLITAN-DISTRICT-COUNCIL/WALSALL,31/03/2020,RESOURCES & TRANSFORMATION,AMZNMKTPLACE,10/01/2020,H59620200114YSCKUJDST-1,44.95,RECHARGEABLE EQUIPMENT-COMPUTER EQUIPMENT AND SUPPLIE,MISCELLANEOUS AND SPECIALTY RETAIL STORES,GPC
WALSALL COUNCIL,HTTP://OPENDATACOMMUNITIES.ORG/ID/METROPOLITAN-DISTRICT-COUNCIL/WALSALL,31/03/2020,RESOURCES & TRANSFORMATION,SAINSBURYS S/MKTS,10/01/2020,H59620200114YVBAVGTDU-1,16.64,YOUNG PERSONS HOMELESS SERVICE-CLEANING MATERIALS,GROCERY STORES AND SUPERMARKETS,GPC
WALSALL COUNCIL,HTTP://OPENDATACOMMUNITIES.ORG/ID/METROPOLITAN-DISTRICT-COUNCIL/WALSALL,31/03/2020,ECONOMY & ENVIRONMENT,AMZNMKTPLACE,10/01/2020,H59620200114YVBSRVLLO-1,2.99,WALSALL OUTDOOR ADVENTURE CENT-STATIONERY & GENERAL SUPPLIES,MISCELLANEOUS AND SPECIALTY RETAIL STORES,GPC
WALSALL COUNCIL,HTTP://OPENDATACOMMUNITIES.ORG/ID/METROPOLITAN-DISTRICT-COUNCIL/WALSALL,31/03/2020,RESOURCES & TRANSFORMATION,ARTHUR BRETT CATER,10/01/2020,H59620200114YWKPOWTQL-1,10.96,CA RADLEYS PRIMARY SCHOOL-FOOD & DRINK SUPPLIES,MISCELLANEOUS FOOD STORES & CONVENIENCE STORES,GPC
WALSALL COUNCIL,HTTP://OPENDATACOMMUNITIES.ORG/ID/METROPOLITAN-DISTRICT-COUNCIL/WALSALL,31/03/2020,ADULT SOCIAL CARE,THE POST OFFICE,10/01/2020,H59620200114ZWDODCGIL-1,1.90,GOSCOTE-POSTAGES AND COURIER SERVICES,POSTAL SERVICES - GOVERNMENT ONLY,GPC
WALSALL COUNCIL,HTTP://OPENDATACOMMUNITIES.ORG/ID/METROPOLITAN-DISTRICT-COUNCIL/WALSALL,31/03/2020,RESOURCES & TRANSFORMATION,WWW.SCC.COM,10/01/2020,H59620200116WUCXUYOXR-1,1893.60,RECHARGEABLE EQUIPMENT-COMPUTER EQUIPMENT AND SUPPLIE,"COMPUTERS, COMPUTER PERIPHERAL EQUIPMENT, SOFTWARE",GPC
WALSALL COUNCIL,HTTP://OPENDATACOMMUNITIES.ORG/ID/METROPOLITAN-DISTRICT-COUNCIL/WALSALL,31/03/2020,CHILDRENS SERVICES,AMZNMKTPLACE,11/01/2020,H59620200114BOFERJSEM-1,11.53,ADMINISTRATIVE SUPPLIES-STATIONERY & GENERAL SUPPLIES,MISCELLANEOUS AND SPECIALTY RETAIL STORES,GPC
WALSALL COUNCIL,HTTP://OPENDATACOMMUNITIES.ORG/ID/METROPOLITAN-DISTRICT-COUNCIL/WALSALL,31/03/2020,ECONOMY & ENVIRONMENT,TESCO STORES 6161,11/01/2020,H59620200114CGBAYOAQS-1,20.45,WALSALL OUTDOOR ADVENTURE CENT-FOOD & DRINK SUPPLIES,GROCERY STORES AND SUPERMARKETS,GPC
WALSALL COUNCIL,HTTP://OPENDATACOMMUNITIES.ORG/ID/METROPOLITAN-DISTRICT-COUNCIL/WALSALL,31/03/2020,ECONOMY & ENVIRONMENT,TESCO STORES 6161,11/01/2020,H59620200114CGBAYOAQS-2,35.25,WALSALL OUTDOOR ADVENTURE CENT-FOOD & DRINK SUPPLIES,GROCERY STORES AND SUPERMARKETS,GPC
WALSALL COUNCIL,HTTP://OPENDATACOMMUNITIES.ORG/ID/METROPOLITAN-DISTRICT-COUNCIL/WALSALL,31/03/2020,CHILDRENS SERVICES,H & M,11/01/2020,H59620200114HTHCVOCPJ-1,14.99,ADOLESCENT SERVICE-CLOTHING & LAUNDRY,MENS AND WOMENS CLOTHING STORES,GPC
WALSALL COUNCIL,HTTP://OPENDATACOMMUNITIES.ORG/ID/METROPOLITAN-DISTRICT-COUNCIL/WALSALL,31/03/2020,ECONOMY & ENVIRONMENT,MAKRO SELF SERVICE HALESO,11/01/2020,H59620200114IKTOEOEDI-1,34.48,LEATHER MUSEUM-FOOD & DRINK SUPPLIES,WHOLESALE CLUBS,GPC
WALSALL COUNCIL,HTTP://OPENDATACOMMUNITIES.ORG/ID/METROPOLITAN-DISTRICT-COUNCIL/WALSALL,31/03/2020,CHILDRENS SERVICES,GAME RETAIL,11/01/2020,H59620200114JGWGBUWNJ-1,17.99,REDRUTH ROAD-RESIDENTS PERSONAL EXPENSES-AL,"GAME, TOY, AND HOBBY SHOPS",GPC
WALSALL COUNCIL,HTTP://OPENDATACOMMUNITIES.ORG/ID/METROPOLITAN-DISTRICT-COUNCIL/WALSALL,31/03/2020,RESOURCES & TRANSFORMATION,CHICKEN JOES LTD,11/01/2020,H59620200114NUBZPSVVN-1,82.21,CA ELMORE GREEN PRIMARY SCHOOL-FOOD & DRINK SUPPLIES,CATERERS,GPC
WALSALL COUNCIL,HTTP://OPENDATACOMMUNITIES.ORG/ID/METROPOLITAN-DISTRICT-COUNCIL/WALSALL,31/03/2020,CHILDRENS SERVICES,AMZNMKTPLACE,11/01/2020,H59620200114OEWNUSGRK-1,44.98,LEARNING ENVIRONMENT-GENERAL MATERIALS,MISCELLANEOUS AND SPECIALTY RETAIL STORES,GPC
WALSALL COUNCIL,HTTP://OPENDATACOMMUNITIES.ORG/ID/METROPOLITAN-DISTRICT-COUNCIL/WALSALL,31/03/2020,CHILDRENS SERVICES,ASDA SUPERSTORE,11/01/2020,H59620200114PXMTDIYUM-1,7.66,MARY ELLIOTT SCHOOL-FOOD & DRINK SUPPLIES,GROCERY STORES AND SUPERMARKETS,GPC
WALSALL COUNCIL,HTTP://OPENDATACOMMUNITIES.ORG/ID/METROPOLITAN-DISTRICT-COUNCIL/WALSALL,31/03/2020,CHILDRENS SERVICES,ASDA SUPERSTORE,11/01/2020,H59620200114PXMTDIYUM-2,1.02,MARY ELLIOTT SCHOOL-FOOD & DRINK SUPPLIES,GROCERY STORES AND SUPERMARKETS,GPC
WALSALL COUNCIL,HTTP://OPENDATACOMMUNITIES.ORG/ID/METROPOLITAN-DISTRICT-COUNCIL/WALSALL,31/03/2020,ECONOMY & ENVIRONMENT,B&M RETAIL LTD,11/01/2020,H59620200114SRESGFBIN-1,7.87,BROWNHILLS LIBRARY-FOOD & DRINK SUPPLIES,DISCOUNT STORES,GPC
WALSALL COUNCIL,HTTP://OPENDATACOMMUNITIES.ORG/ID/METROPOLITAN-DISTRICT-COUNCIL/WALSALL,31/03/2020,ECONOMY & ENVIRONMENT,TESCO STORES 6161,11/01/2020,H59620200114UBDBKKXLQ-1,2.30,LEATHER MUSEUM-FOOD & DRINK SUPPLIES,GROCERY STORES AND SUPERMARKETS,GPC
WALSALL COUNCIL,HTTP://OPENDATACOMMUNITIES.ORG/ID/METROPOLITAN-DISTRICT-COUNCIL/WALSALL,31/03/2020,SCHOOLS,HP INC UK LIMITED,11/01/2020,H59620200114VNSIHTIRX-1,7.99,ADMINISTRATIVE SUPPLIES-GENERAL MATERIALS,"COMPUTERS, COMPUTER PERIPHERAL EQUIPMENT, SOFTWARE",GPC
WALSALL COUNCIL,HTTP://OPENDATACOMMUNITIES.ORG/ID/METROPOLITAN-DISTRICT-COUNCIL/WALSALL,31/03/2020,CHILDRENS SERVICES,B & M RETAIL,11/01/2020,H59620200114VYDYBKEPR-1,8.99,REDRUTH ROAD-RESIDENTS PERSONAL EXPENSES-AL,DISCOUNT STORES,GPC
WALSALL COUNCIL,HTTP://OPENDATACOMMUNITIES.ORG/ID/METROPOLITAN-DISTRICT-COUNCIL/WALSALL,31/03/2020,CHILDRENS SERVICES,ARGOS LTD,11/01/2020,H59620200114WPTQJEKMA-1,58.95,57 LICHFIELD ROAD-FURNITURE & EQUIPMENT,DISCOUNT STORES,GPC
WALSALL COUNCIL,HTTP://OPENDATACOMMUNITIES.ORG/ID/METROPOLITAN-DISTRICT-COUNCIL/WALSALL,31/03/2020,CHILDRENS SERVICES,AMAZON.CO.UK*CX6W78B75,11/01/2020,H59620200114XGOHRUEGW-1,57.13,LITERACY-LIBRARY BOOKS,OTHER DIRECT MARKETING-OTHER DIRECT MARKETERS,GPC
WALSALL COUNCIL,HTTP://OPENDATACOMMUNITIES.ORG/ID/METROPOLITAN-DISTRICT-COUNCIL/WALSALL,31/03/2020,CHILDRENS SERVICES,H & M,11/01/2020,H59620200114XURYHGPIS-1,14.99,ADOLESCENT SERVICE-CLOTHING & LAUNDRY,MENS AND WOMENS CLOTHING STORES,GPC
WALSALL COUNCIL,HTTP://OPENDATACOMMUNITIES.ORG/ID/METROPOLITAN-DISTRICT-COUNCIL/WALSALL,31/03/2020,CHILDRENS SERVICES,T R MUSIC,11/01/2020,H59620200114YWOYBPSKG-1,864.00,SPORTS GRANT-GENERAL MATERIALS,MUSIC STORES & MUSICAL INSTRUMENTS,GPC
WALSALL COUNCIL,HTTP://OPENDATACOMMUNITIES.ORG/ID/METROPOLITAN-DISTRICT-COUNCIL/WALSALL,31/03/2020,CHILDRENS SERVICES,AMAZON.CO.UK*7884K9Q35,12/01/2020,H59620200114BYNJLGIQE-1,56.05,LITERACY-LIBRARY BOOKS,OTHER DIRECT MARKETING-OTHER DIRECT MARKETERS,GPC
WALSALL COUNCIL,HTTP://OPENDATACOMMUNITIES.ORG/ID/METROPOLITAN-DISTRICT-COUNCIL/WALSALL,31/03/2020,CHILDRENS SERVICES,AMZNMKTPLACE,12/01/2020,H59620200114CLVQLVFEX-1,9.28,YEAR ONE-GENERAL MATERIALS,MISCELLANEOUS AND SPECIALTY RETAIL STORES,GPC
WALSALL COUNCIL,HTTP://OPENDATACOMMUNITIES.ORG/ID/METROPOLITAN-DISTRICT-COUNCIL/WALSALL,31/03/2020,ECONOMY & ENVIRONMENT,AMZNMKTPLACE,12/01/2020,H59620200114CUNXRBVXJ-1,45.04,CENTRALISED STATIONARY-STATIONERY & GENERAL SUPPLIES,MISCELLANEOUS AND SPECIALTY RETAIL STORES,GPC
WALSALL COUNCIL,HTTP://OPENDATACOMMUNITIES.ORG/ID/METROPOLITAN-DISTRICT-COUNCIL/WALSALL,31/03/2020,ECONOMY & ENVIRONMENT,AMZNMKTPLACE,12/01/2020,H59620200114EQEQNMEJA-1,3.99,CENTRALISED STATIONARY-STATIONERY & GENERAL SUPPLIES,MISCELLANEOUS AND SPECIALTY RETAIL STORES,GPC
WALSALL COUNCIL,HTTP://OPENDATACOMMUNITIES.ORG/ID/METROPOLITAN-DISTRICT-COUNCIL/WALSALL,31/03/2020,CHILDRENS SERVICES,AMAZON.CO.UK*LU5PU0PL5,12/01/2020,H59620200114FPSJULVBU-1,11.32,LITERACY-LIBRARY BOOKS,OTHER DIRECT MARKETING-OTHER DIRECT MARKETERS,GPC
WALSALL COUNCIL,HTTP://OPENDATACOMMUNITIES.ORG/ID/METROPOLITAN-DISTRICT-COUNCIL/WALSALL,31/03/2020,RESOURCES & TRANSFORMATION,AMAZON.CO.UK*IB94W8H05,12/01/2020,H59620200114GIVSOYMGE-1,16.49,PRINTING SERVICES-GENERAL MATERIALS,OTHER DIRECT MARKETING-OTHER DIRECT MARKETERS,GPC
WALSALL COUNCIL,HTTP://OPENDATACOMMUNITIES.ORG/ID/METROPOLITAN-DISTRICT-COUNCIL/WALSALL,31/03/2020,CHILDRENS SERVICES,WM MORRISONS STORE,12/01/2020,H59620200114KPDXIEVDV-1,14.70,EARLY HELP HUB-FOOD & DRINK SUPPLIES,GROCERY STORES AND SUPERMARKETS,GPC
WALSALL COUNCIL,HTTP://OPENDATACOMMUNITIES.ORG/ID/METROPOLITAN-DISTRICT-COUNCIL/WALSALL,31/03/2020,CHILDRENS SERVICES,ASDA SUPERSTORE,12/01/2020,H59620200114MQKIDQXVR-1,5.70,WALSALL WOOD PRIMARY SCHOOL-PERSONAL REQUISITES-MATERIALS,GROCERY STORES AND SUPERMARKETS,GPC
WALSALL COUNCIL,HTTP://OPENDATACOMMUNITIES.ORG/ID/METROPOLITAN-DISTRICT-COUNCIL/WALSALL,31/03/2020,ECONOMY & ENVIRONMENT,AMAZON.CO.UK*TV43279T5,12/01/2020,H59620200114NDJGXCOBF-1,86.76,WALSALL OUTDOOR ADVENTURE CENT-STATIONERY & GENERAL SUPPLIES,OTHER DIRECT MARKETING-OTHER DIRECT MARKETERS,GPC
WALSALL COUNCIL,HTTP://OPENDATACOMMUNITIES.ORG/ID/METROPOLITAN-DISTRICT-COUNCIL/WALSALL,31/03/2020,CHILDRENS SERVICES,B&M RETAIL LTD,12/01/2020,H59620200114PLNKWWWFW-1,8.33,EARLY YEARS DEPARTMENT-GENERAL MATERIALS,DISCOUNT STORES,GPC
WALSALL COUNCIL,HTTP://OPENDATACOMMUNITIES.ORG/ID/METROPOLITAN-DISTRICT-COUNCIL/WALSALL,31/03/2020,CHILDRENS SERVICES,AMAZON.CO.UK*3L2VW2HU5,12/01/2020,H59620200114PNQXVGQCF-1,18.84,NEW LEAF PUPIL REFERAL UNIT-DECORATING,OTHER DIRECT MARKETING-OTHER DIRECT MARKETERS,GPC
WALSALL COUNCIL,HTTP://OPENDATACOMMUNITIES.ORG/ID/METROPOLITAN-DISTRICT-COUNCIL/WALSALL,31/03/2020,CHILDRENS SERVICES,HOME BARGAINS,12/01/2020,H59620200114QXVLNRLSR-1,9.54,SEN-GENERAL MATERIALS,HARDWARE STORES,GPC
WALSALL COUNCIL,HTTP://OPENDATACOMMUNITIES.ORG/ID/METROPOLITAN-DISTRICT-COUNCIL/WALSALL,31/03/2020,CHILDRENS SERVICES,W M MORRISONS.COM,12/01/2020,H59620200114UIDIMKEKS-1,8.00,57 LICHFIELD ROAD-FOOD & DRINK SUPPLIES,GROCERY STORES AND SUPERMARKETS,GPC
WALSALL COUNCIL,HTTP://OPENDATACOMMUNITIES.ORG/ID/METROPOLITAN-DISTRICT-COUNCIL/WALSALL,31/03/2020,RESOURCES & TRANSFORMATION,LINKEDIN-433*3757656,12/01/2020,H59620200114VCEEDHOMM-1,16.50,SCHOOL HR TRANSACTIONAL TEAM-ADVERTISING STAFF VACANCIES,DIRECT MARKETING CONTINUITY SUBSCRIPTION MERCHANTS,GPC
WALSALL COUNCIL,HTTP://OPENDATACOMMUNITIES.ORG/ID/METROPOLITAN-DISTRICT-COUNCIL/WALSALL,31/03/2020,CHILDRENS SERVICES,AMAZON.CO.UK*GC4086V65,12/01/2020,H59620200114VKBUEQCGT-1,74.24,LITERACY-LIBRARY BOOKS,OTHER DIRECT MARKETING-OTHER DIRECT MARKETERS,GPC
WALSALL COUNCIL,HTTP://OPENDATACOMMUNITIES.ORG/ID/METROPOLITAN-DISTRICT-COUNCIL/WALSALL,31/03/2020,CHILDRENS SERVICES,SPORTSDIRECT.COM,12/01/2020,H59620200114XICRONKDI-1,-158.75,PUPIL AWARDS-GENERAL MATERIALS,SPORTING GOODS STORES,GPC
WALSALL COUNCIL,HTTP://OPENDATACOMMUNITIES.ORG/ID/METROPOLITAN-DISTRICT-COUNCIL/WALSALL,31/03/2020,CHILDRENS SERVICES,AMZNMKTPLACE,12/01/2020,H59620200114YHJODDHGN-1,6.99,ELMWOOD SCHOOL-OPERATIONAL MAINTENANCE,MISCELLANEOUS AND SPECIALTY RETAIL STORES,GPC
WALSALL COUNCIL,HTTP://OPENDATACOMMUNITIES.ORG/ID/METROPOLITAN-DISTRICT-COUNCIL/WALSALL,31/03/2020,RESOURCES & TRANSFORMATION,AMAZON.CO.UK*1N2TH7U25,12/01/2020,H59620200114ZQHSJPHSF-1,35.18,CL ADMIN-FURNITURE & EQUIPMENT,OTHER DIRECT MARKETING-OTHER DIRECT MARKETERS,GPC
WALSALL COUNCIL,HTTP://OPENDATACOMMUNITIES.ORG/ID/METROPOLITAN-DISTRICT-COUNCIL/WALSALL,31/03/2020,ECONOMY & ENVIRONMENT,AMZNMKTPLACE AMAZON.CO.UK,12/01/2020,H59620200115ATYSNNUXT-1,31.98,OAK PARK-STATIONERY & GENERAL SUPPLIES,MISCELLANEOUS AND SPECIALTY RETAIL STORES,GPC
WALSALL COUNCIL,HTTP://OPENDATACOMMUNITIES.ORG/ID/METROPOLITAN-DISTRICT-COUNCIL/WALSALL,31/03/2020,RESOURCES & TRANSFORMATION,BLAKEMORE FOODSERVICE,13/01/2020,H59620200115AGSGUDJAM-1,194.09,CA OLD HALL SPECIAL SCHOOL-FOOD & DRINK SUPPLIES,CATERERS,GPC
WALSALL COUNCIL,HTTP://OPENDATACOMMUNITIES.ORG/ID/METROPOLITAN-DISTRICT-COUNCIL/WALSALL,31/03/2020,RESOURCES & TRANSFORMATION,BLAKEMORE FOODSERVICE,13/01/2020,H59620200115AGSGUDJAM-2,17.66,CA OLD HALL SPECIAL SCHOOL-FOOD & DRINK SUPPLIES,CATERERS,GPC
WALSALL COUNCIL,HTTP://OPENDATACOMMUNITIES.ORG/ID/METROPOLITAN-DISTRICT-COUNCIL/WALSALL,31/03/2020,CHILDRENS SERVICES,W M MORRISONS.COM,13/01/2020,H59620200115AGXGGHOQK-1,4.56,ROSEDALE C.E. PRIMARY SCHOOL-FOOD & DRINK SUPPLIES,GROCERY STORES AND SUPERMARKETS,GPC
WALSALL COUNCIL,HTTP://OPENDATACOMMUNITIES.ORG/ID/METROPOLITAN-DISTRICT-COUNCIL/WALSALL,31/03/2020,CHILDRENS SERVICES,W M MORRISONS.COM,13/01/2020,H59620200115AGXGGHOQK-2,42.11,ROSEDALE C.E. PRIMARY SCHOOL-FOOD & DRINK SUPPLIES,GROCERY STORES AND SUPERMARKETS,GPC
WALSALL COUNCIL,HTTP://OPENDATACOMMUNITIES.ORG/ID/METROPOLITAN-DISTRICT-COUNCIL/WALSALL,31/03/2020,RESOURCES & TRANSFORMATION,BLAKEMORE FOODSERVICE,13/01/2020,H59620200115BPOGICISE-1,16.41,CA ST MICHAELS C.E. PRIMARY SC-FOOD & DRINK SUPPLIES,CATERERS,GPC
WALSALL COUNCIL,HTTP://OPENDATACOMMUNITIES.ORG/ID/METROPOLITAN-DISTRICT-COUNCIL/WALSALL,31/03/2020,RESOURCES & TRANSFORMATION,BLAKEMORE FOODSERVICE,13/01/2020,H59620200115CKBWJWBMP-1,171.53,CA CROFT COMMUNITY PRIMARY SCH-FOOD & DRINK SUPPLIES,CATERERS,GPC
WALSALL COUNCIL,HTTP://OPENDATACOMMUNITIES.ORG/ID/METROPOLITAN-DISTRICT-COUNCIL/WALSALL,31/03/2020,RESOURCES & TRANSFORMATION,BLAKEMORE FOODSERVICE,13/01/2020,H59620200115CKGTGLVNO-1,230.37,CA CROFT COMMUNITY PRIMARY SCH-FOOD & DRINK SUPPLIES,CATERERS,GPC
WALSALL COUNCIL,HTTP://OPENDATACOMMUNITIES.ORG/ID/METROPOLITAN-DISTRICT-COUNCIL/WALSALL,31/03/2020,RESOURCES & TRANSFORMATION,BLAKEMORE FOODSERVICE,13/01/2020,H59620200115CKHMORUCQ-1,92.78,CA BUSILL JONES PRIMARY SCHOOL-FOOD & DRINK SUPPLIES,CATERERS,GPC
WALSALL COUNCIL,HTTP://OPENDATACOMMUNITIES.ORG/ID/METROPOLITAN-DISTRICT-COUNCIL/WALSALL,31/03/2020,RESOURCES & TRANSFORMATION,BLAKEMORE FOODSERVICE,13/01/2020,H59620200115CKHMORUCQ-2,17.66,CA BUSILL JONES PRIMARY SCHOOL-FOOD & DRINK SUPPLIES,CATERERS,GPC
WALSALL COUNCIL,HTTP://OPENDATACOMMUNITIES.ORG/ID/METROPOLITAN-DISTRICT-COUNCIL/WALSALL,31/03/2020,RESOURCES & TRANSFORMATION,BLAKEMORE FOODSERVICE,13/01/2020,H59620200115DBFWUJJNK-1,203.52,CA COOPER JORDAN CE PRIMARY SC-FOOD & DRINK SUPPLIES,CATERERS,GPC
WALSALL COUNCIL,HTTP://OPENDATACOMMUNITIES.ORG/ID/METROPOLITAN-DISTRICT-COUNCIL/WALSALL,31/03/2020,RESOURCES & TRANSFORMATION,BLAKEMORE FOODSERVICE,13/01/2020,H59620200115DBLIDRPFM-1,206.31,CA ST MICHAELS C.E. PRIMARY SC-FOOD & DRINK SUPPLIES,CATERERS,GPC
WALSALL COUNCIL,HTTP://OPENDATACOMMUNITIES.ORG/ID/METROPOLITAN-DISTRICT-COUNCIL/WALSALL,31/03/2020,ECONOMY & ENVIRONMENT,DVLA VEHICLE TAX,13/01/2020,H59620200115DFGXRUTSX-1,147.50,FLEET-LICENCES-TRANSPORT RUN COSTS,TAX PAYMENTS,GPC
WALSALL COUNCIL,HTTP://OPENDATACOMMUNITIES.ORG/ID/METROPOLITAN-DISTRICT-COUNCIL/WALSALL,31/03/2020,RESOURCES & TRANSFORMATION,BLAKEMORE FOODSERVICE,13/01/2020,H59620200115DPAMTJBJA-1,-29.16,CA RADLEYS PRIMARY SCHOOL-FOOD & DRINK SUPPLIES,CATERERS,GPC
WALSALL COUNCIL,HTTP://OPENDATACOMMUNITIES.ORG/ID/METROPOLITAN-DISTRICT-COUNCIL/WALSALL,31/03/2020,CHILDRENS SERVICES,WM MORRISON FOOD.COM,13/01/2020,H59620200115DWDUEHWGF-1,14.10,BIRCHILLS CHILDCARE SERVICES-FOOD & DRINK SUPPLIES,GROCERY STORES AND SUPERMARKETS,GPC
WALSALL COUNCIL,HTTP://OPENDATACOMMUNITIES.ORG/ID/METROPOLITAN-DISTRICT-COUNCIL/WALSALL,31/03/2020,CHILDRENS SERVICES,WM MORRISON FOOD.COM,13/01/2020,H59620200115DWDUEHWGF-2,130.98,BIRCHILLS CHILDCARE SERVICES-FOOD & DRINK SUPPLIES,GROCERY STORES AND SUPERMARKETS,GPC
WALSALL COUNCIL,HTTP://OPENDATACOMMUNITIES.ORG/ID/METROPOLITAN-DISTRICT-COUNCIL/WALSALL,31/03/2020,CHILDRENS SERVICES,W M MORRISONS.COM,13/01/2020,H59620200115DWHDLDUHP-1,24.18,57 LICHFIELD ROAD-FOOD & DRINK SUPPLIES,GROCERY STORES AND SUPERMARKETS,GPC
WALSALL COUNCIL,HTTP://OPENDATACOMMUNITIES.ORG/ID/METROPOLITAN-DISTRICT-COUNCIL/WALSALL,31/03/2020,CHILDRENS SERVICES,W M MORRISONS.COM,13/01/2020,H59620200115DWHDLDUHP-2,77.74,57 LICHFIELD ROAD-FOOD & DRINK SUPPLIES,GROCERY STORES AND SUPERMARKETS,GPC
WALSALL COUNCIL,HTTP://OPENDATACOMMUNITIES.ORG/ID/METROPOLITAN-DISTRICT-COUNCIL/WALSALL,31/03/2020,RESOURCES & TRANSFORMATION,BLAKEMORE FOODSERVICE,13/01/2020,H59620200115DWXCPYHJS-1,262.47,CA BARCROFT D/C-FOOD & DRINK SUPPLIES,CATERERS,GPC
WALSALL COUNCIL,HTTP://OPENDATACOMMUNITIES.ORG/ID/METROPOLITAN-DISTRICT-COUNCIL/WALSALL,31/03/2020,CHILDRENS SERVICES,MCDONALDS,13/01/2020,H59620200115ERLKKWVKU-1,7.45,ADOLESCENT SERVICE-FOOD & DRINK SUPPLIES,QUICK PAYMENT SERVICE-FAST-FOOD RESTAURANTS,GPC
WALSALL COUNCIL,HTTP://OPENDATACOMMUNITIES.ORG/ID/METROPOLITAN-DISTRICT-COUNCIL/WALSALL,31/03/2020,SCHOOLS,EB *DEVELOPING THE ROL,13/01/2020,H59620200115ETHUSJMRS-1,50.00,ALUMWELL JUNIOR SCHOOL-EXTERNAL TRAINING,OTHER BUSINESS SERVICES,GPC
WALSALL COUNCIL,HTTP://OPENDATACOMMUNITIES.ORG/ID/METROPOLITAN-DISTRICT-COUNCIL/WALSALL,31/03/2020,CHILDRENS SERVICES,WWW.DELMEREHOTEL.CO.UK,13/01/2020,H59620200115EVESVNMGZ-1,148.12,NEW LEAF PUPIL REFERAL UNIT-OTHER/VOLUNTEERS-CAR ALLOWANCE,"HOTELS, MOTELS, RESORTS",GPC
WALSALL COUNCIL,HTTP://OPENDATACOMMUNITIES.ORG/ID/METROPOLITAN-DISTRICT-COUNCIL/WALSALL,31/03/2020,ECONOMY & ENVIRONMENT,DVLA VEHICLE TAX,13/01/2020,H59620200115FEIEIVSOY-1,167.50,FLEET-LICENCES-TRANSPORT RUN COSTS,TAX PAYMENTS,GPC
WALSALL COUNCIL,HTTP://OPENDATACOMMUNITIES.ORG/ID/METROPOLITAN-DISTRICT-COUNCIL/WALSALL,31/03/2020,CHILDRENS SERVICES,AMZNMKTPLACE,13/01/2020,H59620200115FMBCWPXNZ-1,6.99,ADMINISTRATIVE SUPPLIES-STATIONERY & GENERAL SUPPLIES,MISCELLANEOUS AND SPECIALTY RETAIL STORES,GPC
WALSALL COUNCIL,HTTP://OPENDATACOMMUNITIES.ORG/ID/METROPOLITAN-DISTRICT-COUNCIL/WALSALL,31/03/2020,RESOURCES & TRANSFORMATION,WM MORRISONS STORE,13/01/2020,H59620200115FNHJVIIIM-1,7.20,CA MOORCROFT WOOD-FOOD & DRINK SUPPLIES,GROCERY STORES AND SUPERMARKETS,GPC
WALSALL COUNCIL,HTTP://OPENDATACOMMUNITIES.ORG/ID/METROPOLITAN-DISTRICT-COUNCIL/WALSALL,31/03/2020,ECONOMY & ENVIRONMENT,DVLA VEHICLE TAX,13/01/2020,H59620200115GCWDDPTBV-1,617.50,TARMAC-LICENCES-TRANSPORT RUN COSTS,TAX PAYMENTS,GPC
WALSALL COUNCIL,HTTP://OPENDATACOMMUNITIES.ORG/ID/METROPOLITAN-DISTRICT-COUNCIL/WALSALL,31/03/2020,ADULT SOCIAL CARE,WWW.BANNERUK.COM,13/01/2020,H59620200115GEXFWDSFM-1,50.76,"STRATEGY, COMMISSIONING, AND D-STATIONERY & GENERAL SUPPLIES","STATIONERY, OFFICE SUPPLIES AND WRITING PAPER",GPC
WALSALL COUNCIL,HTTP://OPENDATACOMMUNITIES.ORG/ID/METROPOLITAN-DISTRICT-COUNCIL/WALSALL,31/03/2020,RESOURCES & TRANSFORMATION,BLAKEMORE FOODSERVICE,13/01/2020,H59620200115GJODXDQWF-1,202.68,CA CASTLEFORT JMI SCHOOL-FOOD & DRINK SUPPLIES,CATERERS,GPC
WALSALL COUNCIL,HTTP://OPENDATACOMMUNITIES.ORG/ID/METROPOLITAN-DISTRICT-COUNCIL/WALSALL,31/03/2020,SCHOOLS,AMAZON.CO.UK*1K4IN8OQ5,13/01/2020,H59620200115GNWMIMJQH-1,13.01,ALUMWELL JUNIOR SCHOOL-EXTERNAL TRAINING,OTHER DIRECT MARKETING-OTHER DIRECT MARKETERS,GPC
WALSALL COUNCIL,HTTP://OPENDATACOMMUNITIES.ORG/ID/METROPOLITAN-DISTRICT-COUNCIL/WALSALL,31/03/2020,SCHOOLS,AMAZON.CO.UK*1K4IN8OQ5,13/01/2020,H59620200115GNWMIMJQH-2,5.23,E19-GENERAL MATERIALS,OTHER DIRECT MARKETING-OTHER DIRECT MARKETERS,GPC
WALSALL COUNCIL,HTTP://OPENDATACOMMUNITIES.ORG/ID/METROPOLITAN-DISTRICT-COUNCIL/WALSALL,31/03/2020,RESOURCES & TRANSFORMATION,EXPEDIA 7512859967972,13/01/2020,H59620200115HMVEFPLMB-1,36.00,BED & BREAKFAST PAYMENTS-BED & BREAKFAST PAYMENTS,TRAVEL AGENCIES AND TOUR OPERATORS,GPC
WALSALL COUNCIL,HTTP://OPENDATACOMMUNITIES.ORG/ID/METROPOLITAN-DISTRICT-COUNCIL/WALSALL,31/03/2020,RESOURCES & TRANSFORMATION,BLAKEMORE FOODSERVICE,13/01/2020,H59620200115HSVAVKQDQ-1,356.95,CA WHITEHALL JUNIOR COMMUNITY -FOOD & DRINK SUPPLIES,CATERERS,GPC
WALSALL COUNCIL,HTTP://OPENDATACOMMUNITIES.ORG/ID/METROPOLITAN-DISTRICT-COUNCIL/WALSALL,31/03/2020,CHILDRENS SERVICES,AMZNMKTPLACE,13/01/2020,H59620200115IBKBDDCDR-1,15.79,ADMINISTRATIVE SUPPLIES-GENERAL MATERIALS,MISCELLANEOUS AND SPECIALTY RETAIL STORES,GPC
WALSALL COUNCIL,HTTP://OPENDATACOMMUNITIES.ORG/ID/METROPOLITAN-DISTRICT-COUNCIL/WALSALL,31/03/2020,RESOURCES & TRANSFORMATION,BLAKEMORE FOODSERVICE,13/01/2020,H59620200115IHSOTBSNU-1,166.89,CA ST GILES C.E. PRIMARY SCHOO-FOOD & DRINK SUPPLIES,CATERERS,GPC
WALSALL COUNCIL,HTTP://OPENDATACOMMUNITIES.ORG/ID/METROPOLITAN-DISTRICT-COUNCIL/WALSALL,31/03/2020,CHILDRENS SERVICES,TRAINLINE,13/01/2020,H59620200115ISCHYLRZJ-1,170.35,NEW LEAF PUPIL REFERAL UNIT-OTHER/VOLUNTEERS-CAR ALLOWANCE,PASSENGER RAILWAYS,GPC
WALSALL COUNCIL,HTTP://OPENDATACOMMUNITIES.ORG/ID/METROPOLITAN-DISTRICT-COUNCIL/WALSALL,31/03/2020,CHILDRENS SERVICES,TESCO STORES 6672,13/01/2020,H59620200115JCOLVGCWK-1,3.90,EARLY YEARS DEPARTMENT-GENERAL MATERIALS,GROCERY STORES AND SUPERMARKETS,GPC
WALSALL COUNCIL,HTTP://OPENDATACOMMUNITIES.ORG/ID/METROPOLITAN-DISTRICT-COUNCIL/WALSALL,31/03/2020,CHILDRENS SERVICES,TESCO STORES 6672,13/01/2020,H59620200115JCOLVGCWK-2,11.04,EARLY YEARS DEPARTMENT-GENERAL MATERIALS,GROCERY STORES AND SUPERMARKETS,GPC
WALSALL COUNCIL,HTTP://OPENDATACOMMUNITIES.ORG/ID/METROPOLITAN-DISTRICT-COUNCIL/WALSALL,31/03/2020,RESOURCES & TRANSFORMATION,BLAKEMORE FOODSERVICE,13/01/2020,H59620200115JNYUBEHBH-1,72.78,CA JANE LANE SPECIAL SCHOOL-CATERING,CATERERS,GPC
WALSALL COUNCIL,HTTP://OPENDATACOMMUNITIES.ORG/ID/METROPOLITAN-DISTRICT-COUNCIL/WALSALL,31/03/2020,CHILDRENS SERVICES,ALDI 42 772,13/01/2020,H59620200115JRTYEBMJG-1,6.21,REDRUTH ROAD-FOOD & DRINK SUPPLIES,GROCERY STORES AND SUPERMARKETS,GPC
WALSALL COUNCIL,HTTP://OPENDATACOMMUNITIES.ORG/ID/METROPOLITAN-DISTRICT-COUNCIL/WALSALL,31/03/2020,CHILDRENS SERVICES,ALDI 42 772,13/01/2020,H59620200115JRTYEBMJG-2,64.27,REDRUTH ROAD-FOOD & DRINK SUPPLIES,GROCERY STORES AND SUPERMARKETS,GPC
WALSALL COUNCIL,HTTP://OPENDATACOMMUNITIES.ORG/ID/METROPOLITAN-DISTRICT-COUNCIL/WALSALL,31/03/2020,CHILDRENS SERVICES,AMZNMKTPLACE,13/01/2020,H59620200115KOTJSHLYL-1,10.60,STUDENT SUPPORT & MENTORING-GENERAL MATERIALS,MISCELLANEOUS AND SPECIALTY RETAIL STORES,GPC
WALSALL COUNCIL,HTTP://OPENDATACOMMUNITIES.ORG/ID/METROPOLITAN-DISTRICT-COUNCIL/WALSALL,31/03/2020,ECONOMY & ENVIRONMENT,DVLA VEHICLE TAX,13/01/2020,H59620200115KQPYPWKLI-1,617.50,TARMAC-LICENCES-TRANSPORT RUN COSTS,TAX PAYMENTS,GPC
WALSALL COUNCIL,HTTP://OPENDATACOMMUNITIES.ORG/ID/METROPOLITAN-DISTRICT-COUNCIL/WALSALL,31/03/2020,ADULT SOCIAL CARE,HMCOURTS-SERVICE.G,13/01/2020,H59620200115KYJNFDCCB-1,75.00,AMPH SERVICE-EXTERNAL BARRISTERS-SERVICES-F,FINES,GPC
WALSALL COUNCIL,HTTP://OPENDATACOMMUNITIES.ORG/ID/METROPOLITAN-DISTRICT-COUNCIL/WALSALL,31/03/2020,CHILDRENS SERVICES,AMZNMKTPLACE,13/01/2020,H59620200115LEMPONPPD-1,28.00,ST FRANCIS OF ASSISI CATHOLIC -STATIONERY & GENERAL SUPPLIES,MISCELLANEOUS AND SPECIALTY RETAIL STORES,GPC
WALSALL COUNCIL,HTTP://OPENDATACOMMUNITIES.ORG/ID/METROPOLITAN-DISTRICT-COUNCIL/WALSALL,31/03/2020,RESOURCES & TRANSFORMATION,BLAKEMORE FOODSERVICE,13/01/2020,H59620200115LFVWPOUKP-1,259.65,CA BEACON PRIMARY SCHOOL-FOOD & DRINK SUPPLIES,CATERERS,GPC
WALSALL COUNCIL,HTTP://OPENDATACOMMUNITIES.ORG/ID/METROPOLITAN-DISTRICT-COUNCIL/WALSALL,31/03/2020,CHILDRENS SERVICES,ASDA GROCERIES ONLINE,13/01/2020,H59620200115LFYJCCDRX-1,55.52,BREAKFAST CLUB-GENERAL MATERIALS,GROCERY STORES AND SUPERMARKETS,GPC
WALSALL COUNCIL,HTTP://OPENDATACOMMUNITIES.ORG/ID/METROPOLITAN-DISTRICT-COUNCIL/WALSALL,31/03/2020,RESOURCES & TRANSFORMATION,BLAKEMORE FOODSERVICE,13/01/2020,H59620200115LJCTRAUKT-1,209.29,CA RADLEYS PRIMARY SCHOOL-FOOD & DRINK SUPPLIES,CATERERS,GPC
WALSALL COUNCIL,HTTP://OPENDATACOMMUNITIES.ORG/ID/METROPOLITAN-DISTRICT-COUNCIL/WALSALL,31/03/2020,RESOURCES & TRANSFORMATION,BLAKEMORE FOODSERVICE,13/01/2020,H59620200115LMLFKTDUN-1,215.90,CA ELMORE GREEN PRIMARY SCHOOL-FOOD & DRINK SUPPLIES,CATERERS,GPC
WALSALL COUNCIL,HTTP://OPENDATACOMMUNITIES.ORG/ID/METROPOLITAN-DISTRICT-COUNCIL/WALSALL,31/03/2020,RESOURCES & TRANSFORMATION,BLAKEMORE FOODSERVICE,13/01/2020,H59620200115LMPUAXLGJ-1,97.67,TOWN HALL RESTAURANT BISTRO-FOOD & DRINK SUPPLIES,CATERERS,GPC
WALSALL COUNCIL,HTTP://OPENDATACOMMUNITIES.ORG/ID/METROPOLITAN-DISTRICT-COUNCIL/WALSALL,31/03/2020,RESOURCES & TRANSFORMATION,BLAKEMORE FOODSERVICE,13/01/2020,H59620200115LMPUAXLGJ-2,416.28,TOWN HALL RESTAURANT BISTRO-FOOD & DRINK SUPPLIES,CATERERS,GPC
WALSALL COUNCIL,HTTP://OPENDATACOMMUNITIES.ORG/ID/METROPOLITAN-DISTRICT-COUNCIL/WALSALL,31/03/2020,CHILDRENS SERVICES,AMZNMKTPLACE,13/01/2020,H59620200115LSWHEWGVI-1,10.97,STUDENT SUPPORT & MENTORING-STATIONERY & GENERAL SUPPLIES,MISCELLANEOUS AND SPECIALTY RETAIL STORES,GPC
WALSALL COUNCIL,HTTP://OPENDATACOMMUNITIES.ORG/ID/METROPOLITAN-DISTRICT-COUNCIL/WALSALL,31/03/2020,CHILDRENS SERVICES,WM MORRISON FOOD.COM,13/01/2020,H59620200115LVVJMJUBS-1,70.70,PELSALL VILLAGE SCHOOL-FOOD & DRINK SUPPLIES,GROCERY STORES AND SUPERMARKETS,GPC
WALSALL COUNCIL,HTTP://OPENDATACOMMUNITIES.ORG/ID/METROPOLITAN-DISTRICT-COUNCIL/WALSALL,31/03/2020,CHILDRENS SERVICES,WM MORRISON FOOD.COM,13/01/2020,H59620200115LVVJMJUBS-2,2.80,PELSALL VILLAGE SCHOOL-FOOD & DRINK SUPPLIES,GROCERY STORES AND SUPERMARKETS,GPC
WALSALL COUNCIL,HTTP://OPENDATACOMMUNITIES.ORG/ID/METROPOLITAN-DISTRICT-COUNCIL/WALSALL,31/03/2020,CHILDRENS SERVICES,ASDA GROCERIES ONLINE,13/01/2020,H59620200115LWAVHSNFN-1,93.34,FOOD TECHNOLOGY-FOOD & DRINK SUPPLIES,GROCERY STORES AND SUPERMARKETS,GPC
WALSALL COUNCIL,HTTP://OPENDATACOMMUNITIES.ORG/ID/METROPOLITAN-DISTRICT-COUNCIL/WALSALL,31/03/2020,RESOURCES & TRANSFORMATION,BLAKEMORE FOODSERVICE,13/01/2020,H59620200115MZRYSMSYQ-1,234.44,CA ST JOHNS C.E. PRIMARY SCHOO-FOOD & DRINK SUPPLIES,CATERERS,GPC
WALSALL COUNCIL,HTTP://OPENDATACOMMUNITIES.ORG/ID/METROPOLITAN-DISTRICT-COUNCIL/WALSALL,31/03/2020,RESOURCES & TRANSFORMATION,BLAKEMORE FOODSERVICE,13/01/2020,H59620200115NIMHSQEPQ-1,253.29,CA RADLEYS PRIMARY SCHOOL-FOOD & DRINK SUPPLIES,CATERERS,GPC
WALSALL COUNCIL,HTTP://OPENDATACOMMUNITIES.ORG/ID/METROPOLITAN-DISTRICT-COUNCIL/WALSALL,31/03/2020,RESOURCES & TRANSFORMATION,BLAKEMORE FOODSERVICE,13/01/2020,H59620200115NIMHSQEPQ-2,48.86,CA RADLEYS PRIMARY SCHOOL-FOOD & DRINK SUPPLIES,CATERERS,GPC
WALSALL COUNCIL,HTTP://OPENDATACOMMUNITIES.ORG/ID/METROPOLITAN-DISTRICT-COUNCIL/WALSALL,31/03/2020,RESOURCES & TRANSFORMATION,BLAKEMORE FOODSERVICE,13/01/2020,H59620200115NPYZRORYD-1,395.09,CA ST JOHNS C.E. PRIMARY SCHOO-FOOD & DRINK SUPPLIES,CATERERS,GPC
WALSALL COUNCIL,HTTP://OPENDATACOMMUNITIES.ORG/ID/METROPOLITAN-DISTRICT-COUNCIL/WALSALL,31/03/2020,RESOURCES & TRANSFORMATION,BLAKEMORE FOODSERVICE,13/01/2020,H59620200115NPYZRORYD-2,36.64,CA ST JOHNS C.E. PRIMARY SCHOO-FOOD & DRINK SUPPLIES,CATERERS,GPC
WALSALL COUNCIL,HTTP://OPENDATACOMMUNITIES.ORG/ID/METROPOLITAN-DISTRICT-COUNCIL/WALSALL,31/03/2020,CHILDRENS SERVICES,AMZNMKTPLACE,13/01/2020,H59620200115OHDEWNJKP-1,33.15,STUDENT SUPPORT & MENTORING-GENERAL MATERIALS,MISCELLANEOUS AND SPECIALTY RETAIL STORES,GPC
WALSALL COUNCIL,HTTP://OPENDATACOMMUNITIES.ORG/ID/METROPOLITAN-DISTRICT-COUNCIL/WALSALL,31/03/2020,ECONOMY & ENVIRONMENT,L & S ENGINEERS LTD,13/01/2020,H59620200115OHVPDVGXO-1,29.03,INFRASTRUCTURE MAINTENANCE-GENERAL MATERIALS,HARDWARE STORES,GPC
WALSALL COUNCIL,HTTP://OPENDATACOMMUNITIES.ORG/ID/METROPOLITAN-DISTRICT-COUNCIL/WALSALL,31/03/2020,ECONOMY & ENVIRONMENT,DVLA VEHICLE TAX,13/01/2020,H59620200115OMUNYZXSE-1,262.50,FLEET-LICENCES-TRANSPORT RUN COSTS,TAX PAYMENTS,GPC
WALSALL COUNCIL,HTTP://OPENDATACOMMUNITIES.ORG/ID/METROPOLITAN-DISTRICT-COUNCIL/WALSALL,31/03/2020,CHILDRENS SERVICES,HOME BARGAINS,13/01/2020,H59620200115OQFGHOKBP-1,3.38,LOCALITY FAMILY SUPPORT-CENTRA-FOOD & DRINK SUPPLIES,HARDWARE STORES,GPC
WALSALL COUNCIL,HTTP://OPENDATACOMMUNITIES.ORG/ID/METROPOLITAN-DISTRICT-COUNCIL/WALSALL,31/03/2020,CHILDRENS SERVICES,HOME BARGAINS,13/01/2020,H59620200115OQFGHOKBP-2,6.17,LOCALITY FAMILY SUPPORT-CENTRA-FOOD & DRINK SUPPLIES,HARDWARE STORES,GPC
WALSALL COUNCIL,HTTP://OPENDATACOMMUNITIES.ORG/ID/METROPOLITAN-DISTRICT-COUNCIL/WALSALL,31/03/2020,ECONOMY & ENVIRONMENT,DVLA VEHICLE TAX,13/01/2020,H59620200115OZPTCXYXD-1,617.50,TARMAC-LICENCES-TRANSPORT RUN COSTS,TAX PAYMENTS,GPC
WALSALL COUNCIL,HTTP://OPENDATACOMMUNITIES.ORG/ID/METROPOLITAN-DISTRICT-COUNCIL/WALSALL,31/03/2020,CHILDRENS SERVICES,COSMO,13/01/2020,H59620200115PBUDNGEST-1,200.00,ADOLESCENT SERVICE-OUTINGS-ALLOWANCES TO S/S CLIE,"EATING PLACES, RESTAURANTS",GPC
WALSALL COUNCIL,HTTP://OPENDATACOMMUNITIES.ORG/ID/METROPOLITAN-DISTRICT-COUNCIL/WALSALL,31/03/2020,CHILDRENS SERVICES,ASDA SUPERSTORE,13/01/2020,H59620200115PIQWCBUBQ-1,6.60,LOCALITY FAMILY SUPPORT-CENTRA-FOOD & DRINK SUPPLIES,GROCERY STORES AND SUPERMARKETS,GPC
WALSALL COUNCIL,HTTP://OPENDATACOMMUNITIES.ORG/ID/METROPOLITAN-DISTRICT-COUNCIL/WALSALL,31/03/2020,ECONOMY & ENVIRONMENT,AMZNMKTPLACE,13/01/2020,H59620200115PIXHFTKLG-1,17.94,OAK PARK-STATIONERY & GENERAL SUPPLIES,MISCELLANEOUS AND SPECIALTY RETAIL STORES,GPC
WALSALL COUNCIL,HTTP://OPENDATACOMMUNITIES.ORG/ID/METROPOLITAN-DISTRICT-COUNCIL/WALSALL,31/03/2020,ECONOMY & ENVIRONMENT,CATERLINE LIMITED,13/01/2020,H59620200115PKYSXSPOF-1,67.46,BLOXWICH LEISURE CENTRE-FOOD & DRINK SUPPLIES,OTHER COMMERCIAL EQUIPMENT,GPC
WALSALL COUNCIL,HTTP://OPENDATACOMMUNITIES.ORG/ID/METROPOLITAN-DISTRICT-COUNCIL/WALSALL,31/03/2020,RESOURCES & TRANSFORMATION,REGISTRATION SERVICES,13/01/2020,H59620200115POWQXJDTM-1,11.00,ADVICE & GUIDANCE SERVICE-OTHER FEES & LICENCES-SERVICES,OTHER RECREATION SERVICES,GPC
WALSALL COUNCIL,HTTP://OPENDATACOMMUNITIES.ORG/ID/METROPOLITAN-DISTRICT-COUNCIL/WALSALL,31/03/2020,RESOURCES & TRANSFORMATION,BLAKEMORE FOODSERVICE,13/01/2020,H59620200115PTTTWHVGK-1,299.22,CA LINDENS PRIMARY SCHOOL-FOOD & DRINK SUPPLIES,CATERERS,GPC
WALSALL COUNCIL,HTTP://OPENDATACOMMUNITIES.ORG/ID/METROPOLITAN-DISTRICT-COUNCIL/WALSALL,31/03/2020,RESOURCES & TRANSFORMATION,BLAKEMORE FOODSERVICE,13/01/2020,H59620200115PTTTWHVGK-2,244.32,CA LINDENS PRIMARY SCHOOL-FOOD & DRINK SUPPLIES,CATERERS,GPC
WALSALL COUNCIL,HTTP://OPENDATACOMMUNITIES.ORG/ID/METROPOLITAN-DISTRICT-COUNCIL/WALSALL,31/03/2020,CHILDRENS SERVICES,WALSALL STN T/O,13/01/2020,H59620200115PXOPLBXNX-1,206.60,LOOKED AFTER CHILDRENS SOCIAL -OFFICER/STAFF-PUBLIC TRANSPORT,PASSENGER RAILWAYS,GPC
WALSALL COUNCIL,HTTP://OPENDATACOMMUNITIES.ORG/ID/METROPOLITAN-DISTRICT-COUNCIL/WALSALL,31/03/2020,RESOURCES & TRANSFORMATION,BLAKEMORE FOODSERVICE,13/01/2020,H59620200115QRTKGUXQL-1,215.05,CA KINGSHILL SCHOOL-FOOD & DRINK SUPPLIES,CATERERS,GPC
WALSALL COUNCIL,HTTP://OPENDATACOMMUNITIES.ORG/ID/METROPOLITAN-DISTRICT-COUNCIL/WALSALL,31/03/2020,ECONOMY & ENVIRONMENT,AMZNMKTPLACE,13/01/2020,H59620200115QUMHDYXEU-1,161.02,WALSALL OUTDOOR ADVENTURE CENT-STATIONERY & GENERAL SUPPLIES,MISCELLANEOUS AND SPECIALTY RETAIL STORES,GPC
WALSALL COUNCIL,HTTP://OPENDATACOMMUNITIES.ORG/ID/METROPOLITAN-DISTRICT-COUNCIL/WALSALL,31/03/2020,RESOURCES & TRANSFORMATION,BLAKEMORE FOODSERVICE,13/01/2020,H59620200115RBVIJMDGW-1,234.20,CA LEIGHSWOOD PRIMARY SCHOOL-FOOD & DRINK SUPPLIES,CATERERS,GPC
WALSALL COUNCIL,HTTP://OPENDATACOMMUNITIES.ORG/ID/METROPOLITAN-DISTRICT-COUNCIL/WALSALL,31/03/2020,ECONOMY & ENVIRONMENT,DVLA VEHICLE TAX,13/01/2020,H59620200115RHLMSXRBI-1,262.50,FLEET-LICENCES-TRANSPORT RUN COSTS,TAX PAYMENTS,GPC
WALSALL COUNCIL,HTTP://OPENDATACOMMUNITIES.ORG/ID/METROPOLITAN-DISTRICT-COUNCIL/WALSALL,31/03/2020,CHILDRENS SERVICES,ASDA GROCERIES ONLINE,13/01/2020,H59620200115RNYRTXAHJ-1,-1.23,FOOD TECHNOLOGY-FOOD & DRINK SUPPLIES,GROCERY STORES AND SUPERMARKETS,GPC
WALSALL COUNCIL,HTTP://OPENDATACOMMUNITIES.ORG/ID/METROPOLITAN-DISTRICT-COUNCIL/WALSALL,31/03/2020,SCHOOLS,THE PLASTIC BOX COMPANY,13/01/2020,H59620200115SFUKXIXEG-1,24.98,E19-GENERAL MATERIALS,OTHER INDUSTRIAL SUPPLIES,GPC
WALSALL COUNCIL,HTTP://OPENDATACOMMUNITIES.ORG/ID/METROPOLITAN-DISTRICT-COUNCIL/WALSALL,31/03/2020,CHILDRENS SERVICES,AMZNMKTPLACE,13/01/2020,H59620200115SHJYYUZEZ-1,34.98,VIRTUAL SCHOOL - CENTRAL PUPIL-OTHER EXPENSES-EXPENSES,MISCELLANEOUS AND SPECIALTY RETAIL STORES,GPC
WALSALL COUNCIL,HTTP://OPENDATACOMMUNITIES.ORG/ID/METROPOLITAN-DISTRICT-COUNCIL/WALSALL,31/03/2020,CHILDRENS SERVICES,WWW.SHROPSHIRE-C.GOV.,13/01/2020,H59620200115TPYTWADKS-1,180.00,LOOKED AFTER CHILDRENS SOCIAL -EXTERNAL TRAINING,"COLLEGES, UNIVERSITIES, PROFESSIONAL SCHOOLS",GPC
WALSALL COUNCIL,HTTP://OPENDATACOMMUNITIES.ORG/ID/METROPOLITAN-DISTRICT-COUNCIL/WALSALL,31/03/2020,RESOURCES & TRANSFORMATION,TURPIN44(0)01767604800,13/01/2020,H59620200115TQQVBYXPP-1,55.33,COHESION-MISC FEES AND EXPENSES,DIRECT MARKETING COMBINATION CATALOG,GPC
WALSALL COUNCIL,HTTP://OPENDATACOMMUNITIES.ORG/ID/METROPOLITAN-DISTRICT-COUNCIL/WALSALL,31/03/2020,RESOURCES & TRANSFORMATION,TRAVELODGE GB0000,13/01/2020,H59620200115TSZZWQPOM-1,73.50,BED & BREAKFAST PAYMENTS-HOTEL ACCOMMODATION-EMPLOYEES,TRAVELODGE,GPC
WALSALL COUNCIL,HTTP://OPENDATACOMMUNITIES.ORG/ID/METROPOLITAN-DISTRICT-COUNCIL/WALSALL,31/03/2020,RESOURCES & TRANSFORMATION,TRAVELODGE GB0000,13/01/2020,H59620200115TSZZWQPOM-2,284.93,BED & BREAKFAST PAYMENTS-HOTEL ACCOMMODATION-EMPLOYEES,TRAVELODGE,GPC
WALSALL COUNCIL,HTTP://OPENDATACOMMUNITIES.ORG/ID/METROPOLITAN-DISTRICT-COUNCIL/WALSALL,31/03/2020,RESOURCES & TRANSFORMATION,BLAKEMORE FOODSERVICE,13/01/2020,H59620200115TXHOIGYSQ-1,29.16,CA RADLEYS PRIMARY SCHOOL-FOOD & DRINK SUPPLIES,CATERERS,GPC
WALSALL COUNCIL,HTTP://OPENDATACOMMUNITIES.ORG/ID/METROPOLITAN-DISTRICT-COUNCIL/WALSALL,31/03/2020,RESOURCES & TRANSFORMATION,BLAKEMORE FOODSERVICE,13/01/2020,H59620200115UNJNGZGWJ-1,201.39,CA MOORCROFT WOOD-FOOD & DRINK SUPPLIES,CATERERS,GPC
WALSALL COUNCIL,HTTP://OPENDATACOMMUNITIES.ORG/ID/METROPOLITAN-DISTRICT-COUNCIL/WALSALL,31/03/2020,ECONOMY & ENVIRONMENT,HOLE IN THE WALL C,13/01/2020,H59620200115VGKSCLLNE-1,6.60,LIBRARY OPERATIONS CENTRAL-EVENTS AND VISUAL ARTS,"FURNITURE-REUPHOLSTERY AND REPAIR, REFINISHING",GPC
WALSALL COUNCIL,HTTP://OPENDATACOMMUNITIES.ORG/ID/METROPOLITAN-DISTRICT-COUNCIL/WALSALL,31/03/2020,SCHOOLS,AMAZON MUSIC*II6MO4EA5,13/01/2020,H59620200115VLDUUPQES-1,9.99,E19-GENERAL MATERIALS,RECORD SHOPS,GPC
WALSALL COUNCIL,HTTP://OPENDATACOMMUNITIES.ORG/ID/METROPOLITAN-DISTRICT-COUNCIL/WALSALL,31/03/2020,CHILDRENS SERVICES,REGISTRATION SERVICES,13/01/2020,H59620200115VSSIDLTME-1,33.00,SAFEGUARDING & FAMILY SUPPORT-OTHER FEES & LICENCES-SERVICES,OTHER RECREATION SERVICES,GPC
WALSALL COUNCIL,HTTP://OPENDATACOMMUNITIES.ORG/ID/METROPOLITAN-DISTRICT-COUNCIL/WALSALL,31/03/2020,CHILDRENS SERVICES,AMZNMKTPLACE,13/01/2020,H59620200115WSEUTGQQR-1,34.90,SCIENCE-GENERAL MATERIALS,MISCELLANEOUS AND SPECIALTY RETAIL STORES,GPC
WALSALL COUNCIL,HTTP://OPENDATACOMMUNITIES.ORG/ID/METROPOLITAN-DISTRICT-COUNCIL/WALSALL,31/03/2020,CHILDRENS SERVICES,B&M RETAIL,13/01/2020,H59620200115YGLQNZLOG-1,9.85,LOCALITY FAMILY SUPPORT-CENTRA-GENERAL MATERIALS,DISCOUNT STORES,GPC
WALSALL COUNCIL,HTTP://OPENDATACOMMUNITIES.ORG/ID/METROPOLITAN-DISTRICT-COUNCIL/WALSALL,31/03/2020,RESOURCES & TRANSFORMATION,BLAKEMORE FOODSERVICE,13/01/2020,H59620200115YOXDALNUQ-1,54.06,CA LINDENS PRIMARY SCHOOL-FOOD & DRINK SUPPLIES,CATERERS,GPC
WALSALL COUNCIL,HTTP://OPENDATACOMMUNITIES.ORG/ID/METROPOLITAN-DISTRICT-COUNCIL/WALSALL,31/03/2020,CHILDRENS SERVICES,COSMO,13/01/2020,H59620200115YZMWXHPUV-1,88.15,ADOLESCENT SERVICE-OUTINGS-ALLOWANCES TO S/S CLIE,"EATING PLACES, RESTAURANTS",GPC
WALSALL COUNCIL,HTTP://OPENDATACOMMUNITIES.ORG/ID/METROPOLITAN-DISTRICT-COUNCIL/WALSALL,31/03/2020,CHILDRENS SERVICES,ASDA SUPERSTORE,13/01/2020,H59620200115ZCTOMRHBG-1,3.00,LOCALITY FAMILY SUPPORT-CENTRA-FOOD & DRINK SUPPLIES,GROCERY STORES AND SUPERMARKETS,GPC
WALSALL COUNCIL,HTTP://OPENDATACOMMUNITIES.ORG/ID/METROPOLITAN-DISTRICT-COUNCIL/WALSALL,31/03/2020,RESOURCES & TRANSFORMATION,WILKO RETAIL LIMITED,13/01/2020,H59620200115ZVDLYHPEQ-1,50.70,ADVICE & GUIDANCE SERVICE-CRISIS SUPPORT PAYMENTS,MISCELLANEOUS GENERAL MERCHANDISE,GPC
WALSALL COUNCIL,HTTP://OPENDATACOMMUNITIES.ORG/ID/METROPOLITAN-DISTRICT-COUNCIL/WALSALL,31/03/2020,ECONOMY & ENVIRONMENT,TRAINLINE,13/01/2020,H59620200116OESMUCENK-1,26.80,CENTRAL SUPPORT SERVICES LEISU-OFFICER/STAFF-PUBLIC TRANSPORT,PASSENGER RAILWAYS,GPC
WALSALL COUNCIL,HTTP://OPENDATACOMMUNITIES.ORG/ID/METROPOLITAN-DISTRICT-COUNCIL/WALSALL,31/03/2020,RESOURCES & TRANSFORMATION,TESCO STORES 6161,14/01/2020,H59620200116AOBGWPJXJ-1,20.00,WALSALL CRISIS SUPPORT SCHEME-CRISIS SUPPORT PAYMENTS,GROCERY STORES AND SUPERMARKETS,GPC
WALSALL COUNCIL,HTTP://OPENDATACOMMUNITIES.ORG/ID/METROPOLITAN-DISTRICT-COUNCIL/WALSALL,31/03/2020,CHILDRENS SERVICES,PAYPAL *ORANGEMONKI,14/01/2020,H59620200116BAPPLIMLR-1,299.82,PHOTOGRAPHY-GENERAL MATERIALS,MISCELLANEOUS AND SPECIALTY RETAIL STORES,GPC
WALSALL COUNCIL,HTTP://OPENDATACOMMUNITIES.ORG/ID/METROPOLITAN-DISTRICT-COUNCIL/WALSALL,31/03/2020,ECONOMY & ENVIRONMENT,WWW.BANNERUK.COM,14/01/2020,H59620200116BGWKLNUMD-1,26.00,CENTRALISED STATIONARY-STATIONERY & GENERAL SUPPLIES,"STATIONERY, OFFICE SUPPLIES AND WRITING PAPER",GPC
WALSALL COUNCIL,HTTP://OPENDATACOMMUNITIES.ORG/ID/METROPOLITAN-DISTRICT-COUNCIL/WALSALL,31/03/2020,RESOURCES & TRANSFORMATION,ARTHUR BRETT CATER,14/01/2020,H59620200116BPVSITIKQ-1,77.21,CA CROFT COMMUNITY PRIMARY SCH-FOOD & DRINK SUPPLIES,MISCELLANEOUS FOOD STORES & CONVENIENCE STORES,GPC
WALSALL COUNCIL,HTTP://OPENDATACOMMUNITIES.ORG/ID/METROPOLITAN-DISTRICT-COUNCIL/WALSALL,31/03/2020,CHILDRENS SERVICES,WWW.BANNERUK.COM,14/01/2020,H59620200116BQXPHCNDW-1,17.13,BLUEBELLS-STATIONERY & GENERAL SUPPLIES,"STATIONERY, OFFICE SUPPLIES AND WRITING PAPER",GPC
WALSALL COUNCIL,HTTP://OPENDATACOMMUNITIES.ORG/ID/METROPOLITAN-DISTRICT-COUNCIL/WALSALL,31/03/2020,RESOURCES & TRANSFORMATION,TESCO STORES 6161,14/01/2020,H59620200116BSKBGKRNU-1,0.20,TOWN HALL RESTAURANT BISTRO-OTHER EXPENSES-EXPENSES,GROCERY STORES AND SUPERMARKETS,GPC
WALSALL COUNCIL,HTTP://OPENDATACOMMUNITIES.ORG/ID/METROPOLITAN-DISTRICT-COUNCIL/WALSALL,31/03/2020,RESOURCES & TRANSFORMATION,TESCO STORES 6161,14/01/2020,H59620200116BSKBGKRNU-2,18.20,TOWN HALL RESTAURANT BISTRO-FOOD & DRINK SUPPLIES,GROCERY STORES AND SUPERMARKETS,GPC
WALSALL COUNCIL,HTTP://OPENDATACOMMUNITIES.ORG/ID/METROPOLITAN-DISTRICT-COUNCIL/WALSALL,31/03/2020,CHILDRENS SERVICES,WALSALL STN T/O,14/01/2020,H59620200116CDZBXYNAT-1,96.20,LOOKED AFTER CHILDRENS SOCIAL -OFFICER/STAFF-PUBLIC TRANSPORT,PASSENGER RAILWAYS,GPC
WALSALL COUNCIL,HTTP://OPENDATACOMMUNITIES.ORG/ID/METROPOLITAN-DISTRICT-COUNCIL/WALSALL,31/03/2020,RESOURCES & TRANSFORMATION,ARTHUR BRETT CATER,14/01/2020,H59620200116DEEODWMMR-1,29.80,CA CASTLEFORT JMI SCHOOL-FOOD & DRINK SUPPLIES,MISCELLANEOUS FOOD STORES & CONVENIENCE STORES,GPC
WALSALL COUNCIL,HTTP://OPENDATACOMMUNITIES.ORG/ID/METROPOLITAN-DISTRICT-COUNCIL/WALSALL,31/03/2020,CHILDRENS SERVICES,BAKER ROSS,14/01/2020,H59620200116DMFDNILDQ-1,87.55,SEN-GENERAL MATERIALS,"ARTIST SUPPLY STORES, CRAFT SHOPS",GPC
WALSALL COUNCIL,HTTP://OPENDATACOMMUNITIES.ORG/ID/METROPOLITAN-DISTRICT-COUNCIL/WALSALL,31/03/2020,CHILDRENS SERVICES,THETRAINLINE.COM,14/01/2020,H59620200116DOVSTVEWN-1,51.10,EARLY YEARS AND DISABILITIES S-OTHER-TRAVEL ALLOWANCES,PASSENGER RAILWAYS,GPC
WALSALL COUNCIL,HTTP://OPENDATACOMMUNITIES.ORG/ID/METROPOLITAN-DISTRICT-COUNCIL/WALSALL,31/03/2020,CHILDRENS SERVICES,TRAVEL WEST MIDLAN,14/01/2020,H59620200116DRDADUILL-1,440.00,SAFEGUARDING & FAMILY SUPPORT-OFFICER/STAFF-PUBLIC TRANSPORT,BUS LINES,GPC
WALSALL COUNCIL,HTTP://OPENDATACOMMUNITIES.ORG/ID/METROPOLITAN-DISTRICT-COUNCIL/WALSALL,31/03/2020,CHILDRENS SERVICES,NISA LOCAL,14/01/2020,H59620200116DVOJSHLOH-1,3.38,REDRUTH ROAD-FOOD & DRINK SUPPLIES,MISCELLANEOUS FOOD STORES & CONVENIENCE STORES,GPC
WALSALL COUNCIL,HTTP://OPENDATACOMMUNITIES.ORG/ID/METROPOLITAN-DISTRICT-COUNCIL/WALSALL,31/03/2020,ECONOMY & ENVIRONMENT,WWW.FOCUS-TRAINING.COM,14/01/2020,H59620200116DVUTEYCYM-1,95.00,BLOXWICH LEISURE CENTRE-OTHER FEES & LICENCES-SERVICES,"SCHOOLS, CORRESPONDENCE",GPC
WALSALL COUNCIL,HTTP://OPENDATACOMMUNITIES.ORG/ID/METROPOLITAN-DISTRICT-COUNCIL/WALSALL,31/03/2020,CHILDRENS SERVICES,POST OFFICE COUNTER,14/01/2020,H59620200116FILNNEGGP-1,33.60,FAMILY PLACEMENTS-POSTAGES AND COURIER SERVICES,POSTAL SERVICES - GOVERNMENT ONLY,GPC
WALSALL COUNCIL,HTTP://OPENDATACOMMUNITIES.ORG/ID/METROPOLITAN-DISTRICT-COUNCIL/WALSALL,31/03/2020,RESOURCES & TRANSFORMATION,ARTHUR BRETT CATER,14/01/2020,H59620200116FQVBBIBMJ-1,52.58,CA ALUMWELL INFANT SCHOOL-FOOD & DRINK SUPPLIES,MISCELLANEOUS FOOD STORES & CONVENIENCE STORES,GPC
WALSALL COUNCIL,HTTP://OPENDATACOMMUNITIES.ORG/ID/METROPOLITAN-DISTRICT-COUNCIL/WALSALL,31/03/2020,CHILDRENS SERVICES,TESCO STORES 6161,14/01/2020,H59620200116GEFUATUZD-1,5.90,LOOKED AFTER CHILDRENS SOCIAL -FOOD & DRINK SUPPLIES,GROCERY STORES AND SUPERMARKETS,GPC
WALSALL COUNCIL,HTTP://OPENDATACOMMUNITIES.ORG/ID/METROPOLITAN-DISTRICT-COUNCIL/WALSALL,31/03/2020,CHILDRENS SERVICES,TESCO STORES 6161,14/01/2020,H59620200116GEFUATUZD-2,9.25,LOOKED AFTER CHILDRENS SOCIAL -FOOD & DRINK SUPPLIES,GROCERY STORES AND SUPERMARKETS,GPC
WALSALL COUNCIL,HTTP://OPENDATACOMMUNITIES.ORG/ID/METROPOLITAN-DISTRICT-COUNCIL/WALSALL,31/03/2020,SCHOOLS,RYMANS 1186,14/01/2020,H59620200116GEHMBKRDT-1,33.28,ADMINISTRATIVE SUPPLIES-GENERAL MATERIALS,"OFFICE, SCHOOL SUPPLY, AND STATIONERY STORES",GPC
WALSALL COUNCIL,HTTP://OPENDATACOMMUNITIES.ORG/ID/METROPOLITAN-DISTRICT-COUNCIL/WALSALL,31/03/2020,ECONOMY & ENVIRONMENT,AMZNMKTPLACE,14/01/2020,H59620200116GEPLKMQYE-1,114.20,OAK PARK-STATIONERY & GENERAL SUPPLIES,MISCELLANEOUS AND SPECIALTY RETAIL STORES,GPC
WALSALL COUNCIL,HTTP://OPENDATACOMMUNITIES.ORG/ID/METROPOLITAN-DISTRICT-COUNCIL/WALSALL,31/03/2020,RESOURCES & TRANSFORMATION,THETRAINLINE.COM,14/01/2020,H59620200116GHUZZQZCV-1,14.10,CORE SKILLS-OFFICER/STAFF-PUBLIC TRANSPORT,PASSENGER RAILWAYS,GPC
WALSALL COUNCIL,HTTP://OPENDATACOMMUNITIES.ORG/ID/METROPOLITAN-DISTRICT-COUNCIL/WALSALL,31/03/2020,RESOURCES & TRANSFORMATION,ARTHUR BRETT CATER,14/01/2020,H59620200116HCBNZMNTR-1,3.77,CA WHITEHALL JUNIOR COMMUNITY -FOOD & DRINK SUPPLIES,MISCELLANEOUS FOOD STORES & CONVENIENCE STORES,GPC
WALSALL COUNCIL,HTTP://OPENDATACOMMUNITIES.ORG/ID/METROPOLITAN-DISTRICT-COUNCIL/WALSALL,31/03/2020,RESOURCES & TRANSFORMATION,ARTHUR BRETT CATER,14/01/2020,H59620200116HFUFYGWFA-1,15.48,CA CASTLEFORT JMI SCHOOL-FOOD & DRINK SUPPLIES,MISCELLANEOUS FOOD STORES & CONVENIENCE STORES,GPC
WALSALL COUNCIL,HTTP://OPENDATACOMMUNITIES.ORG/ID/METROPOLITAN-DISTRICT-COUNCIL/WALSALL,31/03/2020,RESOURCES & TRANSFORMATION,ALDI 772 129,14/01/2020,H59620200116HJNRVMCOD-1,5.39,YOUNG PERSONS HOMELESS SERVICE-FOOD & DRINK SUPPLIES,GROCERY STORES AND SUPERMARKETS,GPC
WALSALL COUNCIL,HTTP://OPENDATACOMMUNITIES.ORG/ID/METROPOLITAN-DISTRICT-COUNCIL/WALSALL,31/03/2020,SCHOOLS,AMZNMKTPLACE,14/01/2020,H59620200116HRBPGBYOR-1,32.85,BUTTS PRIMARY SCHOOL-OPERATIONAL MAINTENANCE,MISCELLANEOUS AND SPECIALTY RETAIL STORES,GPC
WALSALL COUNCIL,HTTP://OPENDATACOMMUNITIES.ORG/ID/METROPOLITAN-DISTRICT-COUNCIL/WALSALL,31/03/2020,ECONOMY & ENVIRONMENT,WWW.BANNERUK.COM,14/01/2020,H59620200116HXFPGVHJV-1,-4.20,CENTRALISED STATIONARY-STATIONERY & GENERAL SUPPLIES,"STATIONERY, OFFICE SUPPLIES AND WRITING PAPER",GPC
WALSALL COUNCIL,HTTP://OPENDATACOMMUNITIES.ORG/ID/METROPOLITAN-DISTRICT-COUNCIL/WALSALL,31/03/2020,RESOURCES & TRANSFORMATION,ARTHUR BRETT CATER,14/01/2020,H59620200116JNHTTEEGS-1,130.35,CA ELMORE GREEN PRIMARY SCHOOL-FOOD & DRINK SUPPLIES,MISCELLANEOUS FOOD STORES & CONVENIENCE STORES,GPC
WALSALL COUNCIL,HTTP://OPENDATACOMMUNITIES.ORG/ID/METROPOLITAN-DISTRICT-COUNCIL/WALSALL,31/03/2020,RESOURCES & TRANSFORMATION,ARTHUR BRETT CATER,14/01/2020,H59620200116JRKRVIOVP-1,50.11,CA LITTLE BLOXWICH CE PRIMARY -FOOD & DRINK SUPPLIES,MISCELLANEOUS FOOD STORES & CONVENIENCE STORES,GPC
WALSALL COUNCIL,HTTP://OPENDATACOMMUNITIES.ORG/ID/METROPOLITAN-DISTRICT-COUNCIL/WALSALL,31/03/2020,RESOURCES & TRANSFORMATION,ARTHUR BRETT CATER,14/01/2020,H59620200116JTKJNSLSI-1,30.10,CA MOORCROFT WOOD-FOOD & DRINK SUPPLIES,MISCELLANEOUS FOOD STORES & CONVENIENCE STORES,GPC
WALSALL COUNCIL,HTTP://OPENDATACOMMUNITIES.ORG/ID/METROPOLITAN-DISTRICT-COUNCIL/WALSALL,31/03/2020,CHILDRENS SERVICES,CITY OF WOLVERHAMPTON,14/01/2020,H59620200116JVQXPHOCW-1,38.00,SAFEGUARDING & FAMILY SUPPORT-OTHER FEES & LICENCES-SERVICES,GOVERNMENT SERVICES,GPC
WALSALL COUNCIL,HTTP://OPENDATACOMMUNITIES.ORG/ID/METROPOLITAN-DISTRICT-COUNCIL/WALSALL,31/03/2020,ECONOMY & ENVIRONMENT,AMZNMKTPLACE,14/01/2020,H59620200116KDEETPVVO-1,2.93,GALLERY LIBRARY-LIBRARY BOOKS,MISCELLANEOUS AND SPECIALTY RETAIL STORES,GPC
WALSALL COUNCIL,HTTP://OPENDATACOMMUNITIES.ORG/ID/METROPOLITAN-DISTRICT-COUNCIL/WALSALL,31/03/2020,CHILDRENS SERVICES,WALSALL COUNCIL,14/01/2020,H59620200116KMSXBAZYW-1,2.00,ADOLESCENT SERVICE-OTHER FEES & LICENCES-SERVICES,GOVERNMENT SERVICES,GPC
WALSALL COUNCIL,HTTP://OPENDATACOMMUNITIES.ORG/ID/METROPOLITAN-DISTRICT-COUNCIL/WALSALL,31/03/2020,ECONOMY & ENVIRONMENT,AMZNMKTPLACE,14/01/2020,H59620200116KXBKHKMDB-1,20.97,OAK PARK-GENERAL MATERIALS,MISCELLANEOUS AND SPECIALTY RETAIL STORES,GPC
WALSALL COUNCIL,HTTP://OPENDATACOMMUNITIES.ORG/ID/METROPOLITAN-DISTRICT-COUNCIL/WALSALL,31/03/2020,RESOURCES & TRANSFORMATION,MIXAM UK,14/01/2020,H59620200116KXLFHQQDP-1,180.38,INTEGRATED COMMUNITIES PROGRAM-EXTERNAL PRINTING SERVICES,MISCELLANEOUS PUBLISHING AND PRINTING,GPC
WALSALL COUNCIL,HTTP://OPENDATACOMMUNITIES.ORG/ID/METROPOLITAN-DISTRICT-COUNCIL/WALSALL,31/03/2020,RESOURCES & TRANSFORMATION,ARTHUR BRETT CATER,14/01/2020,H59620200116KXMPEDRWS-1,51.97,CA BUSILL JONES PRIMARY SCHOOL-FOOD & DRINK SUPPLIES,MISCELLANEOUS FOOD STORES & CONVENIENCE STORES,GPC
WALSALL COUNCIL,HTTP://OPENDATACOMMUNITIES.ORG/ID/METROPOLITAN-DISTRICT-COUNCIL/WALSALL,31/03/2020,CHILDRENS SERVICES,HOME BARGAINS,14/01/2020,H59620200116KYOJBZDJO-1,24.47,LOCALITY FAMILY SUPPORT-NORTH-EVENTS AND VISUAL ARTS,HARDWARE STORES,GPC
WALSALL COUNCIL,HTTP://OPENDATACOMMUNITIES.ORG/ID/METROPOLITAN-DISTRICT-COUNCIL/WALSALL,31/03/2020,CHILDRENS SERVICES,REGISTRATION SERVICES,14/01/2020,H59620200116KYQIPOILH-1,33.00,GENERAL MANAGEMENT SUPPORT (IN-OTHER FEES & LICENCES-SERVICES,OTHER RECREATION SERVICES,GPC
WALSALL COUNCIL,HTTP://OPENDATACOMMUNITIES.ORG/ID/METROPOLITAN-DISTRICT-COUNCIL/WALSALL,31/03/2020,ECONOMY & ENVIRONMENT,WWW.FOCUS-TRAINING.COM,14/01/2020,H59620200116LEGBPSSTE-1,95.00,BLOXWICH LEISURE CENTRE-EXTERNAL TRAINING,"SCHOOLS, CORRESPONDENCE",GPC
WALSALL COUNCIL,HTTP://OPENDATACOMMUNITIES.ORG/ID/METROPOLITAN-DISTRICT-COUNCIL/WALSALL,31/03/2020,RESOURCES & TRANSFORMATION,ARTHUR BRETT CATER,14/01/2020,H59620200116LLEFFWWGY-1,26.03,CA OLD HALL SPECIAL SCHOOL-FOOD & DRINK SUPPLIES,MISCELLANEOUS FOOD STORES & CONVENIENCE STORES,GPC
WALSALL COUNCIL,HTTP://OPENDATACOMMUNITIES.ORG/ID/METROPOLITAN-DISTRICT-COUNCIL/WALSALL,31/03/2020,RESOURCES & TRANSFORMATION,ARTHUR BRETT CATER,14/01/2020,H59620200116MFKYLGRCS-1,69.67,CA RUSHALL JMI SCHOOL-FOOD & DRINK SUPPLIES,MISCELLANEOUS FOOD STORES & CONVENIENCE STORES,GPC
WALSALL COUNCIL,HTTP://OPENDATACOMMUNITIES.ORG/ID/METROPOLITAN-DISTRICT-COUNCIL/WALSALL,31/03/2020,RESOURCES & TRANSFORMATION,ARTHUR BRETT CATER,14/01/2020,H59620200116MKGCGLGXK-1,33.19,CA ST BERNADETTES CATHOLIC PRI-FOOD & DRINK SUPPLIES,MISCELLANEOUS FOOD STORES & CONVENIENCE STORES,GPC
WALSALL COUNCIL,HTTP://OPENDATACOMMUNITIES.ORG/ID/METROPOLITAN-DISTRICT-COUNCIL/WALSALL,31/03/2020,CHILDRENS SERVICES,BOOTS OPTICIANS,14/01/2020,H59620200116MTJUECWHU-1,40.00,SUPPORT UNDER SECT 23 OF THE C-SUPPORT UNDER SECTION 23 OF TH,"OPTICIANS, OPTICAL GOODS, AND EYEGLASSES",GPC
WALSALL COUNCIL,HTTP://OPENDATACOMMUNITIES.ORG/ID/METROPOLITAN-DISTRICT-COUNCIL/WALSALL,31/03/2020,RESOURCES & TRANSFORMATION,ARTHUR BRETT CATER,14/01/2020,H59620200116NDBAIKWZB-1,40.70,CA LEAMORE PRIMARY SCHOOL-FOOD & DRINK SUPPLIES,MISCELLANEOUS FOOD STORES & CONVENIENCE STORES,GPC
WALSALL COUNCIL,HTTP://OPENDATACOMMUNITIES.ORG/ID/METROPOLITAN-DISTRICT-COUNCIL/WALSALL,31/03/2020,RESOURCES & TRANSFORMATION,ARTHUR BRETT CATER,14/01/2020,H59620200116NDDEHOPBW-1,128.38,CA LINDENS PRIMARY SCHOOL-FOOD & DRINK SUPPLIES,MISCELLANEOUS FOOD STORES & CONVENIENCE STORES,GPC
WALSALL COUNCIL,HTTP://OPENDATACOMMUNITIES.ORG/ID/METROPOLITAN-DISTRICT-COUNCIL/WALSALL,31/03/2020,RESOURCES & TRANSFORMATION,HOTEL ON BOOKING.COM,14/01/2020,H59620200116NDREEKXDN-1,48.00,ACCOMMODATION SERVICES MANAGEM-BED & BREAKFAST PAYMENTS,"HOTELS, MOTELS, RESORTS",GPC
WALSALL COUNCIL,HTTP://OPENDATACOMMUNITIES.ORG/ID/METROPOLITAN-DISTRICT-COUNCIL/WALSALL,31/03/2020,RESOURCES & TRANSFORMATION,ARTHUR BRETT CATER,14/01/2020,H59620200116NFQQNALXD-1,63.29,CA ST GILES C.E. PRIMARY SCHOO-FOOD & DRINK SUPPLIES,MISCELLANEOUS FOOD STORES & CONVENIENCE STORES,GPC
